Workbook

Sheet 1
C4: مسلسل | D4: رقم الفاتورة | E4: تاريخ | F4: اسم العميل | G4: الكمية | H4: سعر | I4: قيمة | J4: ض.ق.م | K4: اجمالى المبيعات مضاف الضريبة | L4: اجمالى قيمة الضريبة
B5: =IF(AND('فاتورة مبيعات'!$F$3=E5,'فاتورة مبيعات'!$D$3=D5),COUNTIFS($E$5:E5,E5,$D$5:D5,D5),"") ->  | C5: 1 | D5: 258 | E5: 2019-01-15 | F5: س | G5: 12 | H5: 100 | I5: =H5*G5 -> 1200 | J5: 0.14 | K5: =I5*J5 -> 168 | L5: =I5+K5 -> 1368
B6: =IF(AND('فاتورة مبيعات'!$F$3=E6,'فاتورة مبيعات'!$D$3=D6),COUNTIFS($E$5:E6,E6,$D$5:D6,D6),"") ->  | C6: 2 | D6: 258 | E6: 2019-01-15 | F6: س | G6: 10 | H6: 105 | I6: 1050 | J6: 0.14 | K6: 147 | L6: =I6+K6 -> 1197
B7: =IF(AND('فاتورة مبيعات'!$F$3=E7,'فاتورة مبيعات'!$D$3=D7),COUNTIFS($E$5:E7,E7,$D$5:D7,D7),"") ->  | C7: 3 | D7: 258 | E7: 2019-01-15 | F7: س | G7: 20 | H7: 105 | I7: 2100 | J7: 0.14 | K7: 294 | L7: =I7+K7 -> 2394
B8: =IF(AND('فاتورة مبيعات'!$F$3=E8,'فاتورة مبيعات'!$D$3=D8),COUNTIFS($E$5:E8,E8,$D$5:D8,D8),"") ->  | C8: 4 | D8: 258 | E8: 2019-01-15 | F8: س | G8: 50 | H8: 105 | I8: 5250 | J8: 0.14 | K8: 735 | L8: =I8+K8 -> 5985
B9: =IF(AND('فاتورة مبيعات'!$F$3=E9,'فاتورة مبيعات'!$D$3=D9),COUNTIFS($E$5:E9,E9,$D$5:D9,D9),"") ->  | C9: 5 | D9: 258 | E9: 2019-01-15 | F9: س | G9: 22 | H9: 105 | I9: 2310 | J9: 0.14 | K9: 323.4 | L9: 2633.4
B10: =IF(AND('فاتورة مبيعات'!$F$3=E10,'فاتورة مبيعات'!$D$3=D10),COUNTIFS($E$5:E10,E10,$D$5:D10,D10),"") ->  | C10: 6 | D10: 259 | E10: 2019-01-15 | F10: ص | I10: 0 | J10: 0.14 | K10: 0 | L10: 0
B11: =IF(AND('فاتورة مبيعات'!$F$3=E11,'فاتورة مبيعات'!$D$3=D11),COUNTIFS($E$5:E11,E11,$D$5:D11,D11),"") ->  | C11: 7 | D11: 259 | E11: 2019-01-15 | F11: ص | I11: 0 | J11: 0.14 | K11: 0 | L11: 0
B12: =IF(AND('فاتورة مبيعات'!$F$3=E12,'فاتورة مبيعات'!$D$3=D12),COUNTIFS($E$5:E12,E12,$D$5:D12,D12),"") ->  | C12: 8 | D12: 260 | E12: 2019-01-15 | F12: ع | I12: 0 | J12: 0.14 | K12: 0 | L12: 0
B13: =IF(AND('فاتورة مبيعات'!$F$3=E13,'فاتورة مبيعات'!$D$3=D13),COUNTIFS($E$5:E13,E13,$D$5:D13,D13),"") ->  | C13: 9 | D13: 260 | E13: 2019-01-15 | F13: ع | I13: 0 | J13: 0.14 | K13: 0 | L13: 0
B14: =IF(AND('فاتورة مبيعات'!$F$3=E14,'فاتورة مبيعات'!$D$3=D14),COUNTIFS($E$5:E14,E14,$D$5:D14,D14),"") ->  | C14: 10 | D14: 260 | E14: 2019-01-15 | F14: ع | I14: 0 | J14: 0.14 | K14: 0 | L14: 0
B15: =IF(AND('فاتورة مبيعات'!$F$3=E15,'فاتورة مبيعات'!$D$3=D15),COUNTIFS($E$5:E15,E15,$D$5:D15,D15),"") ->  | C15: 11 | D15: 261 | E15: 2019-01-15 | F15: ي | I15: 0 | J15: 0.14 | K15: 0 | L15: 0
B16: =IF(AND('فاتورة مبيعات'!$F$3=E16,'فاتورة مبيعات'!$D$3=D16),COUNTIFS($E$5:E16,E16,$D$5:D16,D16),"") ->  | C16: 12 | D16: 261 | E16: 2019-01-15 | F16: ي | I16: 0 | J16: 0.14 | K16: 0 | L16: 0
B17: =IF(AND('فاتورة مبيعات'!$F$3=E17,'فاتورة مبيعات'!$D$3=D17),COUNTIFS($E$5:E17,E17,$D$5:D17,D17),"") ->  | C17: 24 | D17: 262 | I17: 0 | J17: 0.14 | K17: 0 | L17: 0
B18: =IF(AND('فاتورة مبيعات'!$F$3=E18,'فاتورة مبيعات'!$D$3=D18),COUNTIFS($E$5:E18,E18,$D$5:D18,D18),"") ->  | C18: 25 | D18: 262 | I18: 0 | J18: 0.14 | K18: 0 | L18: 0
B19: =IF(AND('فاتورة مبيعات'!$F$3=E19,'فاتورة مبيعات'!$D$3=D19),COUNTIFS($E$5:E19,E19,$D$5:D19,D19),"") ->  | C19: 26 | D19: 262 | I19: 0 | J19: 0.14 | K19: 0 | L19: 0
B20: =IF(AND('فاتورة مبيعات'!$F$3=E20,'فاتورة مبيعات'!$D$3=D20),COUNTIFS($E$5:E20,E20,$D$5:D20,D20),"") ->  | C20: 27 | D20: 262 | I20: 0 | J20: 0.14 | K20: 0 | L20: 0
B21: =IF(AND('فاتورة مبيعات'!$F$3=E21,'فاتورة مبيعات'!$D$3=D21),COUNTIFS($E$5:E21,E21,$D$5:D21,D21),"") ->  | C21: 28 | D21: 262 | I21: 0 | J21: 0.14 | K21: 0 | L21: 0
B22: =IF(AND('فاتورة مبيعات'!$F$3=E22,'فاتورة مبيعات'!$D$3=D22),COUNTIFS($E$5:E22,E22,$D$5:D22,D22),"") ->  | C22: 29 | D22: 262 | I22: 0 | J22: 0.14 | K22: 0 | L22: 0
B23: =IF(AND('فاتورة مبيعات'!$F$3=E23,'فاتورة مبيعات'!$D$3=D23),COUNTIFS($E$5:E23,E23,$D$5:D23,D23),"") ->  | C23: 30 | D23: 262 | I23: 0 | J23: 0.14 | K23: 0 | L23: 0
B24: =IF(AND('فاتورة مبيعات'!$F$3=E24,'فاتورة مبيعات'!$D$3=D24),COUNTIFS($E$5:E24,E24,$D$5:D24,D24),"") ->  | C24: 31 | D24: 262 | I24: 0 | J24: 0.14 | K24: 0 | L24: 0
B25: =IF(AND('فاتورة مبيعات'!$F$3=E25,'فاتورة مبيعات'!$D$3=D25),COUNTIFS($E$5:E25,E25,$D$5:D25,D25),"") ->  | C25: 32 | D25: 262 | I25: 0 | J25: 0.14 | K25: 0 | L25: 0
B26: =IF(AND('فاتورة مبيعات'!$F$3=E26,'فاتورة مبيعات'!$D$3=D26),COUNTIFS($E$5:E26,E26,$D$5:D26,D26),"") ->  | C26: 33 | D26: 262 | I26: 0 | J26: 0.14 | K26: 0 | L26: 0
B27: =IF(AND('فاتورة مبيعات'!$F$3=E27,'فاتورة مبيعات'!$D$3=D27),COUNTIFS($E$5:E27,E27,$D$5:D27,D27),"") ->  | C27: 34 | D27: 262 | I27: 0 | J27: 0.14 | K27: 0 | L27: 0
B28: =IF(AND('فاتورة مبيعات'!$F$3=E28,'فاتورة مبيعات'!$D$3=D28),COUNTIFS($E$5:E28,E28,$D$5:D28,D28),"") ->  | C28: 35 | D28: 262 | I28: 0 | J28: 0.14 | K28: 0 | L28: 0
B29: =IF(AND('فاتورة مبيعات'!$F$3=E29,'فاتورة مبيعات'!$D$3=D29),COUNTIFS($E$5:E29,E29,$D$5:D29,D29),"") ->  | C29: 36 | D29: 262 | I29: 0 | J29: 0.14 | K29: 0 | L29: 0
B30: =IF(AND('فاتورة مبيعات'!$F$3=E30,'فاتورة مبيعات'!$D$3=D30),COUNTIFS($E$5:E30,E30,$D$5:D30,D30),"") ->  | C30: 37 | D30: 263 | I30: 0 | J30: 0.14 | K30: 0 | L30: 0
B31: =IF(AND('فاتورة مبيعات'!$F$3=E31,'فاتورة مبيعات'!$D$3=D31),COUNTIFS($E$5:E31,E31,$D$5:D31,D31),"") ->  | C31: 38 | D31: 264 | I31: 0 | J31: 0.14 | K31: 0 | L31: 0
B32: =IF(AND('فاتورة مبيعات'!$F$3=E32,'فاتورة مبيعات'!$D$3=D32),COUNTIFS($E$5:E32,E32,$D$5:D32,D32),"") ->  | C32: 39 | D32: 264 | I32: 0 | J32: 0.14 | K32: 0 | L32: 0
B33: =IF(AND('فاتورة مبيعات'!$F$3=E33,'فاتورة مبيعات'!$D$3=D33),COUNTIFS($E$5:E33,E33,$D$5:D33,D33),"") ->  | C33: 40 | D33: 264 | I33: 0 | J33: 0.14 | K33: 0 | L33: 0
B34: =IF(AND('فاتورة مبيعات'!$F$3=E34,'فاتورة مبيعات'!$D$3=D34),COUNTIFS($E$5:E34,E34,$D$5:D34,D34),"") ->  | C34: 41 | D34: 264 | I34: 0 | J34: 0.14 | K34: 0 | L34: 0
B35: =IF(AND('فاتورة مبيعات'!$F$3=E35,'فاتورة مبيعات'!$D$3=D35),COUNTIFS($E$5:E35,E35,$D$5:D35,D35),"") ->  | C35: 42 | D35: 264 | I35: 0 | J35: 0.14 | K35: 0 | L35: 0
B36: =IF(AND('فاتورة مبيعات'!$F$3=E36,'فاتورة مبيعات'!$D$3=D36),COUNTIFS($E$5:E36,E36,$D$5:D36,D36),"") ->  | C36: 43 | D36: 264 | I36: 0 | J36: 0.14 | K36: 0 | L36: 0
B37: =IF(AND('فاتورة مبيعات'!$F$3=E37,'فاتورة مبيعات'!$D$3=D37),COUNTIFS($E$5:E37,E37,$D$5:D37,D37),"") ->  | C37: 44 | D37: 264 | I37: =H37*G37 -> 0 | J37: 0.14 | K37: =I37*J37 -> 0 | L37: 0
B38: =IF(AND('فاتورة مبيعات'!$F$3=E38,'فاتورة مبيعات'!$D$3=D38),COUNTIFS($E$5:E38,E38,$D$5:D38,D38),"") ->  | C38: 45 | D38: 264 | I38: 0 | J38: 0.14 | K38: 0 | L38: 0
B39: =IF(AND('فاتورة مبيعات'!$F$3=E39,'فاتورة مبيعات'!$D$3=D39),COUNTIFS($E$5:E39,E39,$D$5:D39,D39),"") ->  | C39: 81 | D39: 988 | I39: 0 | J39: 0.14 | K39: 0 | L39: 0
B40: =IF(AND('فاتورة مبيعات'!$F$3=E40,'فاتورة مبيعات'!$D$3=D40),COUNTIFS($E$5:E40,E40,$D$5:D40,D40),"") ->  | C40: 82 | D40: 988 | I40: 0 | J40: 0.14 | K40: 0 | L40: 0
B41: =IF(AND('فاتورة مبيعات'!$F$3=E41,'فاتورة مبيعات'!$D$3=D41),COUNTIFS($E$5:E41,E41,$D$5:D41,D41),"") ->  | C41: 83 | D41: 988 | I41: 0 | J41: 0.14 | K41: 0 | L41: 0
B42: =IF(AND('فاتورة مبيعات'!$F$3=E42,'فاتورة مبيعات'!$D$3=D42),COUNTIFS($E$5:E42,E42,$D$5:D42,D42),"") ->  | C42: 84 | D42: 988 | I42: 0 | J42: 0.14 | K42: 0 | L42: 0
B43: =IF(AND('فاتورة مبيعات'!$F$3=E43,'فاتورة مبيعات'!$D$3=D43),COUNTIFS($E$5:E43,E43,$D$5:D43,D43),"") ->  | C43: 85 | D43: 988 | I43: 0 | J43: 0.14 | K43: 0 | L43: 0
B44: =IF(AND('فاتورة مبيعات'!$F$3=E44,'فاتورة مبيعات'!$D$3=D44),COUNTIFS($E$5:E44,E44,$D$5:D44,D44),"") ->  | C44: 86 | D44: 988 | I44: 0 | J44: 0.14 | K44: 0 | L44: 0
B45: =IF(AND('فاتورة مبيعات'!$F$3=E45,'فاتورة مبيعات'!$D$3=D45),COUNTIFS($E$5:E45,E45,$D$5:D45,D45),"") ->  | C45: 87 | D45: 988 | I45: 0 | J45: 0.14 | K45: 0 | L45: 0
B46: =IF(AND('فاتورة مبيعات'!$F$3=E46,'فاتورة مبيعات'!$D$3=D46),COUNTIFS($E$5:E46,E46,$D$5:D46,D46),"") ->  | C46: 96 | D46: 989 | I46: 0 | J46: 0.14 | K46: 0 | L46: 0
B47: =IF(AND('فاتورة مبيعات'!$F$3=E47,'فاتورة مبيعات'!$D$3=D47),COUNTIFS($E$5:E47,E47,$D$5:D47,D47),"") ->  | C47: 97 | D47: 989 | I47: 0 | J47: 0.14 | K47: 0 | L47: 0
B48: =IF(AND('فاتورة مبيعات'!$F$3=E48,'فاتورة مبيعات'!$D$3=D48),COUNTIFS($E$5:E48,E48,$D$5:D48,D48),"") ->  | C48: 98 | D48: 989 | I48: 0 | J48: 0.14 | K48: 0 | L48: 0
B49: =IF(AND('فاتورة مبيعات'!$F$3=E49,'فاتورة مبيعات'!$D$3=D49),COUNTIFS($E$5:E49,E49,$D$5:D49,D49),"") ->  | C49: 99 | D49: 989 | I49: 0 | J49: 0.14 | K49: 0 | L49: 0
B50: =IF(AND('فاتورة مبيعات'!$F$3=E50,'فاتورة مبيعات'!$D$3=D50),COUNTIFS($E$5:E50,E50,$D$5:D50,D50),"") ->  | C50: 100 | D50: 989 | I50: 0 | J50: 0.14 | K50: 0 | L50: 0
B51: =IF(AND('فاتورة مبيعات'!$F$3=E51,'فاتورة مبيعات'!$D$3=D51),COUNTIFS($E$5:E51,E51,$D$5:D51,D51),"") ->  | C51: 101 | D51: 989 | I51: 0 | J51: 0.14 | K51: 0 | L51: 0
B52: =IF(AND('فاتورة مبيعات'!$F$3=E52,'فاتورة مبيعات'!$D$3=D52),COUNTIFS($E$5:E52,E52,$D$5:D52,D52),"") ->  | C52: 102 | D52: 989 | I52: 0 | J52: 0.14 | K52: 0 | L52: 0
B53: =IF(AND('فاتورة مبيعات'!$F$3=E53,'فاتورة مبيعات'!$D$3=D53),COUNTIFS($E$5:E53,E53,$D$5:D53,D53),"") ->  | C53: 103 | D53: 989 | I53: 0 | J53: 0.14 | K53: 0 | L53: 0
B54: =IF(AND('فاتورة مبيعات'!$F$3=E54,'فاتورة مبيعات'!$D$3=D54),COUNTIFS($E$5:E54,E54,$D$5:D54,D54),"") ->  | C54: 104 | D54: 989 | I54: 0 | J54: 0.14 | K54: 0 | L54: 0
B55: =IF(AND('فاتورة مبيعات'!$F$3=E55,'فاتورة مبيعات'!$D$3=D55),COUNTIFS($E$5:E55,E55,$D$5:D55,D55),"") ->  | C55: 105 | D55: 989 | I55: 0 | J55: 0.14 | K55: 0 | L55: 0
B56: =IF(AND('فاتورة مبيعات'!$F$3=E56,'فاتورة مبيعات'!$D$3=D56),COUNTIFS($E$5:E56,E56,$D$5:D56,D56),"") ->  | C56: 106 | D56: 989 | I56: 0 | J56: 0.14 | K56: 0 | L56: 0
B57: =IF(AND('فاتورة مبيعات'!$F$3=E57,'فاتورة مبيعات'!$D$3=D57),COUNTIFS($E$5:E57,E57,$D$5:D57,D57),"") ->  | C57: 107 | D57: 990 | I57: 0 | J57: 0.14 | K57: 0 | L57: 0
B58: =IF(AND('فاتورة مبيعات'!$F$3=E58,'فاتورة مبيعات'!$D$3=D58),COUNTIFS($E$5:E58,E58,$D$5:D58,D58),"") ->  | C58: 108 | D58: 990 | I58: 0 | J58: 0.14 | K58: 0 | L58: 0
B59: =IF(AND('فاتورة مبيعات'!$F$3=E59,'فاتورة مبيعات'!$D$3=D59),COUNTIFS($E$5:E59,E59,$D$5:D59,D59),"") ->  | C59: 109 | D59: 990 | I59: 0 | J59: 0.14 | K59: 0 | L59: 0
B60: =IF(AND('فاتورة مبيعات'!$F$3=E60,'فاتورة مبيعات'!$D$3=D60),COUNTIFS($E$5:E60,E60,$D$5:D60,D60),"") ->  | C60: 110 | D60: 990 | I60: 0 | J60: 0.14 | K60: 0 | L60: 0
B61: =IF(AND('فاتورة مبيعات'!$F$3=E61,'فاتورة مبيعات'!$D$3=D61),COUNTIFS($E$5:E61,E61,$D$5:D61,D61),"") ->  | C61: 111 | D61: 990 | I61: 0 | J61: 0.14 | K61: 0 | L61: 0
B62: =IF(AND('فاتورة مبيعات'!$F$3=E62,'فاتورة مبيعات'!$D$3=D62),COUNTIFS($E$5:E62,E62,$D$5:D62,D62),"") ->  | C62: 112 | D62: 990 | I62: 0 | J62: 0.14 | K62: 0 | L62: 0
B63: =IF(AND('فاتورة مبيعات'!$F$3=E63,'فاتورة مبيعات'!$D$3=D63),COUNTIFS($E$5:E63,E63,$D$5:D63,D63),"") ->  | C63: 113 | D63: 990 | I63: 0 | J63: 0.14 | K63: 0 | L63: 0
B64: =IF(AND('فاتورة مبيعات'!$F$3=E64,'فاتورة مبيعات'!$D$3=D64),COUNTIFS($E$5:E64,E64,$D$5:D64,D64),"") ->  | C64: 114 | D64: 990 | I64: 0 | J64: 0.14 | K64: 0 | L64: 0
B65: =IF(AND('فاتورة مبيعات'!$F$3=E65,'فاتورة مبيعات'!$D$3=D65),COUNTIFS($E$5:E65,E65,$D$5:D65,D65),"") ->  | C65: 115 | D65: 990 | I65: 0 | J65: 0.14 | K65: 0 | L65: 0
B66: =IF(AND('فاتورة مبيعات'!$F$3=E66,'فاتورة مبيعات'!$D$3=D66),COUNTIFS($E$5:E66,E66,$D$5:D66,D66),"") ->  | C66: 116 | D66: 990 | I66: 0 | J66: 0.14 | K66: 0 | L66: 0
B67: =IF(AND('فاتورة مبيعات'!$F$3=E67,'فاتورة مبيعات'!$D$3=D67),COUNTIFS($E$5:E67,E67,$D$5:D67,D67),"") ->  | C67: 117 | D67: 991 | I67: 0 | J67: 0 | K67: 0 | L67: 0
B68: =IF(AND('فاتورة مبيعات'!$F$3=E68,'فاتورة مبيعات'!$D$3=D68),COUNTIFS($E$5:E68,E68,$D$5:D68,D68),"") ->  | C68: 118 | D68: 991 | I68: 0 | J68: 0 | K68: 0 | L68: 0
B69: =IF(AND('فاتورة مبيعات'!$F$3=E69,'فاتورة مبيعات'!$D$3=D69),COUNTIFS($E$5:E69,E69,$D$5:D69,D69),"") ->  | C69: 119 | D69: 992 | I69: =H69*G69 -> 0 | J69: 0.14 | K69: =I69*J69 -> 0 | L69: 0
B70: =IF(AND('فاتورة مبيعات'!$F$3=E70,'فاتورة مبيعات'!$D$3=D70),COUNTIFS($E$5:E70,E70,$D$5:D70,D70),"") ->  | C70: 120 | D70: 992 | I70: 0 | J70: 0.14 | K70: 0 | L70: 0
B71: =IF(AND('فاتورة مبيعات'!$F$3=E71,'فاتورة مبيعات'!$D$3=D71),COUNTIFS($E$5:E71,E71,$D$5:D71,D71),"") ->  | C71: 121 | D71: 992 | I71: 0 | J71: 0.14 | K71: 0 | L71: 0
B72: =IF(AND('فاتورة مبيعات'!$F$3=E72,'فاتورة مبيعات'!$D$3=D72),COUNTIFS($E$5:E72,E72,$D$5:D72,D72),"") ->  | C72: 122 | D72: 993 | I72: 0 | J72: 0.14 | K72: 0 | L72: =I72+K72 -> 0
B73: =IF(AND('فاتورة مبيعات'!$F$3=E73,'فاتورة مبيعات'!$D$3=D73),COUNTIFS($E$5:E73,E73,$D$5:D73,D73),"") ->  | C73: 123 | D73: 994 | I73: 0 | J73: 0.14 | K73: 0 | L73: 0
B74: =IF(AND('فاتورة مبيعات'!$F$3=E74,'فاتورة مبيعات'!$D$3=D74),COUNTIFS($E$5:E74,E74,$D$5:D74,D74),"") ->  | C74: 124 | D74: 995 | I74: 0 | J74: 0.14 | K74: 0 | L74: 0
B75: =IF(AND('فاتورة مبيعات'!$F$3=E75,'فاتورة مبيعات'!$D$3=D75),COUNTIFS($E$5:E75,E75,$D$5:D75,D75),"") ->  | C75: 125 | D75: 996 | I75: 0 | J75: 0.14 | K75: 0 | L75: 0
B76: =IF(AND('فاتورة مبيعات'!$F$3=E76,'فاتورة مبيعات'!$D$3=D76),COUNTIFS($E$5:E76,E76,$D$5:D76,D76),"") ->  | C76: 126 | D76: 996 | I76: 0 | J76: 0.14 | K76: 0 | L76: 0
B77: =IF(AND('فاتورة مبيعات'!$F$3=E77,'فاتورة مبيعات'!$D$3=D77),COUNTIFS($E$5:E77,E77,$D$5:D77,D77),"") ->  | C77: 60 | D77: 268 | I77: 0 | J77: 0.14 | K77: 0 | L77: 0
B78: =IF(AND('فاتورة مبيعات'!$F$3=E78,'فاتورة مبيعات'!$D$3=D78),COUNTIFS($E$5:E78,E78,$D$5:D78,D78),"") ->  | C78: 61 | D78: 268 | I78: 0 | J78: 0.14 | K78: 0 | L78: 0
B79: =IF(AND('فاتورة مبيعات'!$F$3=E79,'فاتورة مبيعات'!$D$3=D79),COUNTIFS($E$5:E79,E79,$D$5:D79,D79),"") ->  | C79: 62 | D79: 268 | I79: 0 | J79: 0.14 | K79: 0 | L79: 0
B80: =IF(AND('فاتورة مبيعات'!$F$3=E80,'فاتورة مبيعات'!$D$3=D80),COUNTIFS($E$5:E80,E80,$D$5:D80,D80),"") ->  | C80: 59 | D80: 269 | I80: 0 | J80: 0.14 | K80: 0 | L80: 0
B81: =IF(AND('فاتورة مبيعات'!$F$3=E81,'فاتورة مبيعات'!$D$3=D81),COUNTIFS($E$5:E81,E81,$D$5:D81,D81),"") ->  | C81: 63 | D81: 268 | I81: 0 | J81: 0.14 | K81: 0 | L81: 0
B82: =IF(AND('فاتورة مبيعات'!$F$3=E82,'فاتورة مبيعات'!$D$3=D82),COUNTIFS($E$5:E82,E82,$D$5:D82,D82),"") ->  | C82: 64 | D82: 268 | I82: 0 | J82: 0.14 | K82: 0 | L82: 0
B83: =IF(AND('فاتورة مبيعات'!$F$3=E83,'فاتورة مبيعات'!$D$3=D83),COUNTIFS($E$5:E83,E83,$D$5:D83,D83),"") ->  | C83: 65 | D83: 268 | I83: 0 | J83: 0.14 | K83: 0 | L83: 0
B84: =IF(AND('فاتورة مبيعات'!$F$3=E84,'فاتورة مبيعات'!$D$3=D84),COUNTIFS($E$5:E84,E84,$D$5:D84,D84),"") ->  | C84: 69 | D84: 56 | I84: 0 | J84: 0.14 | K84: 0 | L84: 0
B85: =IF(AND('فاتورة مبيعات'!$F$3=E85,'فاتورة مبيعات'!$D$3=D85),COUNTIFS($E$5:E85,E85,$D$5:D85,D85),"") ->  | C85: 70 | D85: 56 | I85: 0 | J85: 0.14 | K85: 0 | L85: 0
B86: =IF(AND('فاتورة مبيعات'!$F$3=E86,'فاتورة مبيعات'!$D$3=D86),COUNTIFS($E$5:E86,E86,$D$5:D86,D86),"") ->  | C86: 71 | D86: 56 | I86: 0 | J86: 0.14 | K86: 0 | L86: 0
B87: =IF(AND('فاتورة مبيعات'!$F$3=E87,'فاتورة مبيعات'!$D$3=D87),COUNTIFS($E$5:E87,E87,$D$5:D87,D87),"") ->  | C87: 72 | D87: 56 | I87: 0 | J87: 0.14 | K87: 0 | L87: 0
B88: =IF(AND('فاتورة مبيعات'!$F$3=E88,'فاتورة مبيعات'!$D$3=D88),COUNTIFS($E$5:E88,E88,$D$5:D88,D88),"") ->  | C88: 73 | D88: 56 | I88: 0 | J88: 0.14 | K88: 0 | L88: 0
B89: =IF(AND('فاتورة مبيعات'!$F$3=E89,'فاتورة مبيعات'!$D$3=D89),COUNTIFS($E$5:E89,E89,$D$5:D89,D89),"") ->  | C89: 74 | D89: 56 | I89: 0 | J89: 0.14 | K89: 0 | L89: 0
B90: =IF(AND('فاتورة مبيعات'!$F$3=E90,'فاتورة مبيعات'!$D$3=D90),COUNTIFS($E$5:E90,E90,$D$5:D90,D90),"") ->  | C90: 75 | D90: 56 | I90: 0 | J90: 0.14 | K90: 0 | L90: 0
B91: =IF(AND('فاتورة مبيعات'!$F$3=E91,'فاتورة مبيعات'!$D$3=D91),COUNTIFS($E$5:E91,E91,$D$5:D91,D91),"") ->  | C91: 76 | D91: 56 | I91: 0 | J91: 0.14 | K91: 0 | L91: 0
B92: =IF(AND('فاتورة مبيعات'!$F$3=E92,'فاتورة مبيعات'!$D$3=D92),COUNTIFS($E$5:E92,E92,$D$5:D92,D92),"") ->  | C92: 77 | D92: 56 | I92: 0 | J92: 0.14 | K92: 0 | L92: 0
B93: =IF(AND('فاتورة مبيعات'!$F$3=E93,'فاتورة مبيعات'!$D$3=D93),COUNTIFS($E$5:E93,E93,$D$5:D93,D93),"") ->  | C93: 78 | D93: 56 | I93: 0 | J93: 0.14 | K93: 0 | L93: 0
B94: =IF(AND('فاتورة مبيعات'!$F$3=E94,'فاتورة مبيعات'!$D$3=D94),COUNTIFS($E$5:E94,E94,$D$5:D94,D94),"") ->  | C94: 79 | D94: 56 | I94: 0 | J94: 0.14 | K94: 0 | L94: 0
B95: =IF(AND('فاتورة مبيعات'!$F$3=E95,'فاتورة مبيعات'!$D$3=D95),COUNTIFS($E$5:E95,E95,$D$5:D95,D95),"") ->  | C95: 80 | D95: 56 | I95: 0 | J95: 0.14 | K95: 0 | L95: 0
B96: =IF(AND('فاتورة مبيعات'!$F$3=E96,'فاتورة مبيعات'!$D$3=D96),COUNTIFS($E$5:E96,E96,$D$5:D96,D96),"") ->  | C96: 66 | D96: 268 | I96: 0 | J96: 0.14 | K96: 0 | L96: 0
B97: =IF(AND('فاتورة مبيعات'!$F$3=E97,'فاتورة مبيعات'!$D$3=D97),COUNTIFS($E$5:E97,E97,$D$5:D97,D97),"") ->  | C97: 93 | D97: 39 | I97: 0 | J97: 0.14 | K97: 0 | L97: =K97+#REF! -> 
B98: =IF(AND('فاتورة مبيعات'!$F$3=E98,'فاتورة مبيعات'!$D$3=D98),COUNTIFS($E$5:E98,E98,$D$5:D98,D98),"") ->  | C98: 94 | D98: 39 | I98: 0 | J98: 0.14 | K98: 0 | L98: =K98+#REF! -> 
B99: =IF(AND('فاتورة مبيعات'!$F$3=E99,'فاتورة مبيعات'!$D$3=D99),COUNTIFS($E$5:E99,E99,$D$5:D99,D99),"") ->  | C99: 95 | D99: 39 | I99: 0 | J99: 0.14 | K99: 0 | L99: =K99+#REF! -> 
B100: =IF(AND('فاتورة مبيعات'!$F$3=E100,'فاتورة مبيعات'!$D$3=D100),COUNTIFS($E$5:E100,E100,$D$5:D100,D100),"") ->  | C100: 13 | D100: 265 | I100: 0 | J100: 0.14 | K100: 0 | L100: =K100+#REF! -> 
B101: =IF(AND('فاتورة مبيعات'!$F$3=E101,'فاتورة مبيعات'!$D$3=D101),COUNTIFS($E$5:E101,E101,$D$5:D101,D101),"") ->  | C101: 14 | D101: 265 | I101: =H101*G101 -> 0 | J101: 0.14 | K101: =I101*J101 -> 0 | L101: =K101+#REF! -> 
B102: =IF(AND('فاتورة مبيعات'!$F$3=E102,'فاتورة مبيعات'!$D$3=D102),COUNTIFS($E$5:E102,E102,$D$5:D102,D102),"") ->  | C102: 15 | D102: 265 | I102: 0 | J102: 0.14 | K102: 0 | L102: =K102+#REF! -> 
B103: =IF(AND('فاتورة مبيعات'!$F$3=E103,'فاتورة مبيعات'!$D$3=D103),COUNTIFS($E$5:E103,E103,$D$5:D103,D103),"") ->  | C103: 16 | D103: 265 | I103: 0 | J103: 0.14 | K103: 0 | L103: =K103+#REF! -> 
B104: =IF(AND('فاتورة مبيعات'!$F$3=E104,'فاتورة مبيعات'!$D$3=D104),COUNTIFS($E$5:E104,E104,$D$5:D104,D104),"") ->  | C104: 17 | D104: 265 | I104: 0 | J104: 0.14 | K104: 0 | L104: =K104+#REF! -> 
B105: =IF(AND('فاتورة مبيعات'!$F$3=E105,'فاتورة مبيعات'!$D$3=D105),COUNTIFS($E$5:E105,E105,$D$5:D105,D105),"") ->  | C105: 18 | D105: 265 | I105: 0 | J105: 0.14 | K105: 0 | L105: =K105+#REF! -> 
B106: =IF(AND('فاتورة مبيعات'!$F$3=E106,'فاتورة مبيعات'!$D$3=D106),COUNTIFS($E$5:E106,E106,$D$5:D106,D106),"") ->  | C106: 19 | D106: 265 | I106: 0 | J106: 0.14 | K106: 0 | L106: =K106+#REF! -> 
B107: =IF(AND('فاتورة مبيعات'!$F$3=E107,'فاتورة مبيعات'!$D$3=D107),COUNTIFS($E$5:E107,E107,$D$5:D107,D107),"") ->  | C107: 20 | D107: 265 | I107: 0 | J107: 0.14 | K107: 0 | L107: =K107+#REF! -> 
B108: =IF(AND('فاتورة مبيعات'!$F$3=E108,'فاتورة مبيعات'!$D$3=D108),COUNTIFS($E$5:E108,E108,$D$5:D108,D108),"") ->  | C108: 21 | D108: 265 | I108: 0 | J108: 0.14 | K108: 0 | L108: =K108+#REF! -> 
B109: =IF(AND('فاتورة مبيعات'!$F$3=E109,'فاتورة مبيعات'!$D$3=D109),COUNTIFS($E$5:E109,E109,$D$5:D109,D109),"") ->  | C109: 22 | D109: 265 | I109: 0 | J109: 0.14 | K109: 0 | L109: =K109+#REF! -> 
B110: =IF(AND('فاتورة مبيعات'!$F$3=E110,'فاتورة مبيعات'!$D$3=D110),COUNTIFS($E$5:E110,E110,$D$5:D110,D110),"") ->  | C110: 23 | D110: 265 | I110: 0 | J110: 0.14 | K110: 0 | L110: =K110+#REF! -> 
B111: =IF(AND('فاتورة مبيعات'!$F$3=E111,'فاتورة مبيعات'!$D$3=D111),COUNTIFS($E$5:E111,E111,$D$5:D111,D111),"") ->  | C111: 46 | D111: 266 | I111: 0 | J111: 0.14 | K111: 0 | L111: =K111+#REF! -> 
B112: =IF(AND('فاتورة مبيعات'!$F$3=E112,'فاتورة مبيعات'!$D$3=D112),COUNTIFS($E$5:E112,E112,$D$5:D112,D112),"") ->  | C112: 47 | D112: 266 | I112: 0 | J112: 0.14 | K112: 0 | L112: =K112+#REF! -> 
B113: =IF(AND('فاتورة مبيعات'!$F$3=E113,'فاتورة مبيعات'!$D$3=D113),COUNTIFS($E$5:E113,E113,$D$5:D113,D113),"") ->  | C113: 48 | D113: 266 | I113: 0 | J113: 0.14 | K113: 0 | L113: =K113+#REF! -> 
B114: =IF(AND('فاتورة مبيعات'!$F$3=E114,'فاتورة مبيعات'!$D$3=D114),COUNTIFS($E$5:E114,E114,$D$5:D114,D114),"") ->  | C114: 49 | D114: 266 | I114: 0 | J114: 0.14 | K114: 0 | L114: =K114+#REF! -> 
B115: =IF(AND('فاتورة مبيعات'!$F$3=E115,'فاتورة مبيعات'!$D$3=D115),COUNTIFS($E$5:E115,E115,$D$5:D115,D115),"") ->  | C115: 50 | D115: 266 | I115: 0 | J115: 0.14 | K115: 0 | L115: =K115+#REF! -> 
B116: =IF(AND('فاتورة مبيعات'!$F$3=E116,'فاتورة مبيعات'!$D$3=D116),COUNTIFS($E$5:E116,E116,$D$5:D116,D116),"") ->  | C116: 51 | D116: 266 | I116: 0 | J116: 0.14 | K116: 0 | L116: =K116+#REF! -> 
B117: =IF(AND('فاتورة مبيعات'!$F$3=E117,'فاتورة مبيعات'!$D$3=D117),COUNTIFS($E$5:E117,E117,$D$5:D117,D117),"") ->  | C117: 52 | D117: 266 | I117: 0 | J117: 0.14 | K117: 0 | L117: =K117+#REF! -> 
B118: =IF(AND('فاتورة مبيعات'!$F$3=E118,'فاتورة مبيعات'!$D$3=D118),COUNTIFS($E$5:E118,E118,$D$5:D118,D118),"") ->  | C118: 53 | D118: 266 | I118: 0 | J118: 0.14 | K118: 0 | L118: =K118+#REF! -> 
B119: =IF(AND('فاتورة مبيعات'!$F$3=E119,'فاتورة مبيعات'!$D$3=D119),COUNTIFS($E$5:E119,E119,$D$5:D119,D119),"") ->  | C119: 54 | D119: 266 | I119: 0 | J119: 0.14 | K119: 0 | L119: =K119+#REF! -> 
B120: =IF(AND('فاتورة مبيعات'!$F$3=E120,'فاتورة مبيعات'!$D$3=D120),COUNTIFS($E$5:E120,E120,$D$5:D120,D120),"") ->  | C120: 55 | D120: 266 | I120: 0 | J120: 0.14 | K120: 0 | L120: =K120+#REF! -> 
B121: =IF(AND('فاتورة مبيعات'!$F$3=E121,'فاتورة مبيعات'!$D$3=D121),COUNTIFS($E$5:E121,E121,$D$5:D121,D121),"") ->  | C121: 56 | D121: 266 | I121: 0 | J121: 0.14 | K121: 0 | L121: =K121+#REF! -> 
B122: =IF(AND('فاتورة مبيعات'!$F$3=E122,'فاتورة مبيعات'!$D$3=D122),COUNTIFS($E$5:E122,E122,$D$5:D122,D122),"") ->  | C122: 57 | D122: 266 | I122: 0 | J122: 0.14 | K122: 0 | L122: =K122+#REF! -> 
B123: =IF(AND('فاتورة مبيعات'!$F$3=E123,'فاتورة مبيعات'!$D$3=D123),COUNTIFS($E$5:E123,E123,$D$5:D123,D123),"") ->  | C123: 58 | D123: 266 | I123: 0 | J123: 0.14 | K123: 0 | L123: =K123+#REF! -> 
B124: =IF(AND('فاتورة مبيعات'!$F$3=E124,'فاتورة مبيعات'!$D$3=D124),COUNTIFS($E$5:E124,E124,$D$5:D124,D124),"") -> 
C125: الاجماليات | G125: =SUM(G5:G124) -> 114 | H125: =SUM(H5:H124) -> 520 | I125: =SUM(I5:I124) -> 11910 | K125: =SUM(K5:K124) -> 1667.4 | L125: =SUM(L5:L124) -> 
C127: الاجماليات | G127: =SUBTOTAL(9,G5:G124) -> 114 | H127: =SUBTOTAL(9,H5:H124) -> 520 | I127: =SUBTOTAL(9,I5:I124) -> 11910 | K127: =SUBTOTAL(9,K5:K124) -> 1667.4 | L127: =SUBTOTAL(9,L5:L124) -> 

Sheet 2
C4: مسلسل | D4: رقم الفاتورة | E4: تاريخ | F4: اسم العميل | G4: الكمية | H4: سعر | I4: قيمة | J4: ض.ق.م | K4: اجمالى المبيعات مضاف الضريبة | L4: اجمالى قيمة الضريبة
B5: =IF(AND('فاتورة مبيعات'!$F$3=E5,'فاتورة مبيعات'!$D$3=D5),COUNTIFS($E$5:E5,E5,$D$5:D5,D5),"") -> 1 | C5: 9 | D5: 273 | E5: 2019-02-15 | F5: تتتتت | G5: 12 | H5: 100 | I5: =H5*G5 -> 1200 | J5: 0.14 | K5: =I5*J5 -> 168 | L5: =I5+K5 -> 1368
B6: =IF(AND('فاتورة مبيعات'!$F$3=E6,'فاتورة مبيعات'!$D$3=D6),COUNTIFS($E$5:E6,E6,$D$5:D6,D6),"") -> 2 | C6: 10 | D6: 273 | E6: 2019-02-15 | F6: تتتتت | G6: 10 | H6: 105 | I6: 1050 | J6: 0.14 | K6: 147 | L6: =I6+K6 -> 1197
B7: =IF(AND('فاتورة مبيعات'!$F$3=E7,'فاتورة مبيعات'!$D$3=D7),COUNTIFS($E$5:E7,E7,$D$5:D7,D7),"") -> 3 | C7: 11 | D7: 273 | E7: 2019-02-15 | F7: تتتتت | G7: 4 | H7: 5 | I7: 20 | J7: 0.14 | K7: 2.8 | L7: =I7+K7 -> 22.8
B8: =IF(AND('فاتورة مبيعات'!$F$3=E8,'فاتورة مبيعات'!$D$3=D8),COUNTIFS($E$5:E8,E8,$D$5:D8,D8),"") -> 4 | C8: 1 | D8: 273 | E8: 2019-02-15 | F8: تتتتت | G8: 5 | H8: 6 | I8: 30 | J8: 0.14 | K8: 4.2 | L8: =I8+K8 -> 34.2
B9: =IF(AND('فاتورة مبيعات'!$F$3=E9,'فاتورة مبيعات'!$D$3=D9),COUNTIFS($E$5:E9,E9,$D$5:D9,D9),"") -> 5 | C9: 2 | D9: 273 | E9: 2019-02-15 | F9: تتتتت | G9: 6 | H9: 7 | I9: 42 | J9: 0.14 | K9: 5.88 | L9: 47.88
B10: =IF(AND('فاتورة مبيعات'!$F$3=E10,'فاتورة مبيعات'!$D$3=D10),COUNTIFS($E$5:E10,E10,$D$5:D10,D10),"") -> 6 | C10: 3 | D10: 273 | E10: 2019-02-15 | F10: تتتتت | G10: 7 | H10: 8 | I10: 56 | J10: 0.14 | K10: 7.84 | L10: 63.84
B11: =IF(AND('فاتورة مبيعات'!$F$3=E11,'فاتورة مبيعات'!$D$3=D11),COUNTIFS($E$5:E11,E11,$D$5:D11,D11),"") -> 7 | C11: 4 | D11: 273 | E11: 2019-02-15 | F11: تتتتت | G11: 8 | H11: 9 | I11: 72 | J11: 0.14 | K11: 10.08 | L11: 82.08
B12: =IF(AND('فاتورة مبيعات'!$F$3=E12,'فاتورة مبيعات'!$D$3=D12),COUNTIFS($E$5:E12,E12,$D$5:D12,D12),"") -> 8 | C12: 5 | D12: 273 | E12: 2019-02-15 | F12: تتتتت | G12: 9 | H12: 10 | I12: 90 | J12: 0.14 | K12: 12.6 | L12: 102.6
B13: =IF(AND('فاتورة مبيعات'!$F$3=E13,'فاتورة مبيعات'!$D$3=D13),COUNTIFS($E$5:E13,E13,$D$5:D13,D13),"") -> 9 | C13: 6 | D13: 273 | E13: 2019-02-15 | F13: تتتتت | G13: 10 | H13: 11 | I13: 110 | J13: 0.14 | K13: 15.4 | L13: 125.4
B14: =IF(AND('فاتورة مبيعات'!$F$3=E14,'فاتورة مبيعات'!$D$3=D14),COUNTIFS($E$5:E14,E14,$D$5:D14,D14),"") -> 10 | C14: 7 | D14: 273 | E14: 2019-02-15 | F14: تتتتت | G14: 11 | H14: 12 | I14: 132 | J14: 0.14 | K14: 18.48 | L14: 150.48
B15: =IF(AND('فاتورة مبيعات'!$F$3=E15,'فاتورة مبيعات'!$D$3=D15),COUNTIFS($E$5:E15,E15,$D$5:D15,D15),"") -> 11 | C15: 8 | D15: 273 | E15: 2019-02-15 | F15: تتتتت | G15: 12 | H15: 13 | I15: 156 | J15: 0.14 | K15: 21.84 | L15: 177.84
B16: =IF(AND('فاتورة مبيعات'!$F$3=E16,'فاتورة مبيعات'!$D$3=D16),COUNTIFS($E$5:E16,E16,$D$5:D16,D16),"") ->  | C16: 28 | D16: 40 | I16: 0 | J16: 0.14 | K16: 0 | L16: 0
B17: =IF(AND('فاتورة مبيعات'!$F$3=E17,'فاتورة مبيعات'!$D$3=D17),COUNTIFS($E$5:E17,E17,$D$5:D17,D17),"") ->  | C17: 35 | D17: 274 | I17: 0 | J17: 0.14 | K17: 0 | L17: 0
B18: =IF(AND('فاتورة مبيعات'!$F$3=E18,'فاتورة مبيعات'!$D$3=D18),COUNTIFS($E$5:E18,E18,$D$5:D18,D18),"") ->  | C18: 36 | D18: 274 | I18: 0 | J18: 0.14 | K18: 0 | L18: 0
B19: =IF(AND('فاتورة مبيعات'!$F$3=E19,'فاتورة مبيعات'!$D$3=D19),COUNTIFS($E$5:E19,E19,$D$5:D19,D19),"") ->  | C19: 37 | D19: 274 | I19: 0 | J19: 0.14 | K19: 0 | L19: 0
B20: =IF(AND('فاتورة مبيعات'!$F$3=E20,'فاتورة مبيعات'!$D$3=D20),COUNTIFS($E$5:E20,E20,$D$5:D20,D20),"") ->  | C20: 38 | D20: 274 | I20: 0 | J20: 0.14 | K20: 0 | L20: 0
B21: =IF(AND('فاتورة مبيعات'!$F$3=E21,'فاتورة مبيعات'!$D$3=D21),COUNTIFS($E$5:E21,E21,$D$5:D21,D21),"") ->  | C21: 39 | D21: 274 | I21: 0 | J21: 0.14 | K21: 0 | L21: 0
B22: =IF(AND('فاتورة مبيعات'!$F$3=E22,'فاتورة مبيعات'!$D$3=D22),COUNTIFS($E$5:E22,E22,$D$5:D22,D22),"") ->  | C22: 40 | D22: 274 | I22: 0 | J22: 0.14 | K22: 0 | L22: 0
B23: =IF(AND('فاتورة مبيعات'!$F$3=E23,'فاتورة مبيعات'!$D$3=D23),COUNTIFS($E$5:E23,E23,$D$5:D23,D23),"") ->  | C23: 41 | D23: 274 | I23: 0 | J23: 0.14 | K23: 0 | L23: 0
B24: =IF(AND('فاتورة مبيعات'!$F$3=E24,'فاتورة مبيعات'!$D$3=D24),COUNTIFS($E$5:E24,E24,$D$5:D24,D24),"") ->  | C24: 42 | D24: 274 | I24: 0 | J24: 0.14 | K24: 0 | L24: 0
B25: =IF(AND('فاتورة مبيعات'!$F$3=E25,'فاتورة مبيعات'!$D$3=D25),COUNTIFS($E$5:E25,E25,$D$5:D25,D25),"") ->  | C25: 43 | D25: 274 | I25: 0 | J25: 0.14 | K25: 0 | L25: 0
B26: =IF(AND('فاتورة مبيعات'!$F$3=E26,'فاتورة مبيعات'!$D$3=D26),COUNTIFS($E$5:E26,E26,$D$5:D26,D26),"") ->  | C26: 44 | D26: 274 | I26: 0 | J26: 0.14 | K26: 0 | L26: 0
B27: =IF(AND('فاتورة مبيعات'!$F$3=E27,'فاتورة مبيعات'!$D$3=D27),COUNTIFS($E$5:E27,E27,$D$5:D27,D27),"") ->  | C27: 45 | D27: 274 | I27: 0 | J27: 0.14 | K27: 0 | L27: 0
B28: =IF(AND('فاتورة مبيعات'!$F$3=E28,'فاتورة مبيعات'!$D$3=D28),COUNTIFS($E$5:E28,E28,$D$5:D28,D28),"") ->  | C28: 46 | D28: 274 | I28: 0 | J28: 0.14 | K28: 0 | L28: 0
B29: =IF(AND('فاتورة مبيعات'!$F$3=E29,'فاتورة مبيعات'!$D$3=D29),COUNTIFS($E$5:E29,E29,$D$5:D29,D29),"") ->  | C29: 47 | D29: 274 | I29: 0 | J29: 0.14 | K29: 0 | L29: 0
B30: =IF(AND('فاتورة مبيعات'!$F$3=E30,'فاتورة مبيعات'!$D$3=D30),COUNTIFS($E$5:E30,E30,$D$5:D30,D30),"") ->  | C30: 48 | D30: 275 | I30: 0 | J30: 0.14 | K30: 0 | L30: 0
B31: =IF(AND('فاتورة مبيعات'!$F$3=E31,'فاتورة مبيعات'!$D$3=D31),COUNTIFS($E$5:E31,E31,$D$5:D31,D31),"") ->  | C31: 49 | D31: 276 | I31: 0 | J31: 0.14 | K31: 0 | L31: 0
B32: =IF(AND('فاتورة مبيعات'!$F$3=E32,'فاتورة مبيعات'!$D$3=D32),COUNTIFS($E$5:E32,E32,$D$5:D32,D32),"") ->  | C32: 50 | D32: 276 | I32: 0 | J32: 0.14 | K32: 0 | L32: 0
B33: =IF(AND('فاتورة مبيعات'!$F$3=E33,'فاتورة مبيعات'!$D$3=D33),COUNTIFS($E$5:E33,E33,$D$5:D33,D33),"") ->  | C33: 51 | D33: 276 | I33: 0 | J33: 0.14 | K33: 0 | L33: 0
B34: =IF(AND('فاتورة مبيعات'!$F$3=E34,'فاتورة مبيعات'!$D$3=D34),COUNTIFS($E$5:E34,E34,$D$5:D34,D34),"") ->  | C34: 52 | D34: 276 | I34: 0 | J34: 0.14 | K34: 0 | L34: 0
B35: =IF(AND('فاتورة مبيعات'!$F$3=E35,'فاتورة مبيعات'!$D$3=D35),COUNTIFS($E$5:E35,E35,$D$5:D35,D35),"") ->  | C35: 53 | D35: 276 | I35: 0 | J35: 0.14 | K35: 0 | L35: 0
B36: =IF(AND('فاتورة مبيعات'!$F$3=E36,'فاتورة مبيعات'!$D$3=D36),COUNTIFS($E$5:E36,E36,$D$5:D36,D36),"") ->  | C36: 54 | D36: 276 | I36: 0 | J36: 0.14 | K36: 0 | L36: 0
B37: =IF(AND('فاتورة مبيعات'!$F$3=E37,'فاتورة مبيعات'!$D$3=D37),COUNTIFS($E$5:E37,E37,$D$5:D37,D37),"") ->  | C37: 55 | D37: 276 | I37: 0 | J37: 0.14 | K37: 0 | L37: 0
B38: =IF(AND('فاتورة مبيعات'!$F$3=E38,'فاتورة مبيعات'!$D$3=D38),COUNTIFS($E$5:E38,E38,$D$5:D38,D38),"") ->  | C38: 56 | D38: 276 | I38: 0 | J38: 0.14 | K38: 0 | L38: 0
B39: =IF(AND('فاتورة مبيعات'!$F$3=E39,'فاتورة مبيعات'!$D$3=D39),COUNTIFS($E$5:E39,E39,$D$5:D39,D39),"") ->  | C39: 57 | D39: 276 | I39: 0 | J39: 0.14 | K39: 0 | L39: 0
B40: =IF(AND('فاتورة مبيعات'!$F$3=E40,'فاتورة مبيعات'!$D$3=D40),COUNTIFS($E$5:E40,E40,$D$5:D40,D40),"") ->  | C40: 205 | I40: 0 | J40: 0.14 | K40: 0 | L40: =I40+K40 -> 0
B41: =IF(AND('فاتورة مبيعات'!$F$3=E41,'فاتورة مبيعات'!$D$3=D41),COUNTIFS($E$5:E41,E41,$D$5:D41,D41),"") -> 
C42: الاجماليات | G42: =SUM(G5:G41) -> 94 | H42: =SUM(H5:H41) -> 286 | I42: =SUM(I5:I41) -> 2958 | K42: =SUM(K5:K41) -> 414.12 | L42: =SUM(L5:L41) -> 3372.12
C44: الاجماليات | G44: =SUBTOTAL(9,G5:G41) -> 94 | H44: =SUBTOTAL(9,H5:H41) -> 286 | I44: =SUBTOTAL(9,I5:I41) -> 2958 | K44: =SUBTOTAL(9,K5:K41) -> 414.12 | L44: =SUBTOTAL(9,L5:L41) -> 3372.12

Sheet 3
C4: مسلسل | D4: رقم الفاتورة | E4: تاريخ | F4: اسم العميل | G4: الكمية | H4: سعر | I4: قيمة | J4: ض.ق.م | K4: اجمالى المبيعات مضاف الضريبة | L4: اجمالى قيمة الضريبة
B5: =IF(AND('فاتورة مبيعات'!$F$3=E5,'فاتورة مبيعات'!$D$3=D5),COUNTIFS($E$5:E5,E5,$D$5:D5,D5),"") ->  | C5: 1 | D5: 285 | G5: 12 | H5: 100 | I5: =H5*G5 -> 1200 | J5: 0.14 | K5: =I5*J5 -> 168 | L5: =I5+K5 -> 1368
B6: =IF(AND('فاتورة مبيعات'!$F$3=E6,'فاتورة مبيعات'!$D$3=D6),COUNTIFS($E$5:E6,E6,$D$5:D6,D6),"") ->  | C6: 2 | D6: 285 | G6: 10 | H6: 105 | I6: 1050 | J6: 0.14 | K6: 147 | L6: =I6+K6 -> 1197
B7: =IF(AND('فاتورة مبيعات'!$F$3=E7,'فاتورة مبيعات'!$D$3=D7),COUNTIFS($E$5:E7,E7,$D$5:D7,D7),"") ->  | C7: 3 | D7: 285 | I7: 0 | J7: 0.14 | K7: 0 | L7: =I7+K7 -> 0
B8: =IF(AND('فاتورة مبيعات'!$F$3=E8,'فاتورة مبيعات'!$D$3=D8),COUNTIFS($E$5:E8,E8,$D$5:D8,D8),"") ->  | C8: 4 | D8: 285 | I8: 0 | J8: 0.14 | K8: 0 | L8: =I8+K8 -> 0
B9: =IF(AND('فاتورة مبيعات'!$F$3=E9,'فاتورة مبيعات'!$D$3=D9),COUNTIFS($E$5:E9,E9,$D$5:D9,D9),"") ->  | C9: 5 | D9: 285 | I9: 0 | J9: 0.14 | K9: 0 | L9: 0
B10: =IF(AND('فاتورة مبيعات'!$F$3=E10,'فاتورة مبيعات'!$D$3=D10),COUNTIFS($E$5:E10,E10,$D$5:D10,D10),"") ->  | C10: 6 | D10: 286 | I10: 0 | J10: 0.14 | K10: 0 | L10: 0
B11: =IF(AND('فاتورة مبيعات'!$F$3=E11,'فاتورة مبيعات'!$D$3=D11),COUNTIFS($E$5:E11,E11,$D$5:D11,D11),"") ->  | C11: 7 | D11: 286 | I11: 0 | J11: 0.14 | K11: 0 | L11: 0
B12: =IF(AND('فاتورة مبيعات'!$F$3=E12,'فاتورة مبيعات'!$D$3=D12),COUNTIFS($E$5:E12,E12,$D$5:D12,D12),"") ->  | C12: 8 | D12: 286 | I12: 0 | J12: 0.14 | K12: 0 | L12: 0
B13: =IF(AND('فاتورة مبيعات'!$F$3=E13,'فاتورة مبيعات'!$D$3=D13),COUNTIFS($E$5:E13,E13,$D$5:D13,D13),"") ->  | C13: 9 | D13: 286 | I13: 0 | J13: 0.14 | K13: 0 | L13: 0
B14: =IF(AND('فاتورة مبيعات'!$F$3=E14,'فاتورة مبيعات'!$D$3=D14),COUNTIFS($E$5:E14,E14,$D$5:D14,D14),"") ->  | C14: 10 | D14: 286 | I14: 0 | J14: 0.14 | K14: 0 | L14: 0
B15: =IF(AND('فاتورة مبيعات'!$F$3=E15,'فاتورة مبيعات'!$D$3=D15),COUNTIFS($E$5:E15,E15,$D$5:D15,D15),"") ->  | C15: 11 | D15: 286 | I15: 0 | J15: 0.14 | K15: 0 | L15: 0
B16: =IF(AND('فاتورة مبيعات'!$F$3=E16,'فاتورة مبيعات'!$D$3=D16),COUNTIFS($E$5:E16,E16,$D$5:D16,D16),"") ->  | C16: 12 | D16: 286 | I16: 0 | J16: 0.14 | K16: 0 | L16: 0
B17: =IF(AND('فاتورة مبيعات'!$F$3=E17,'فاتورة مبيعات'!$D$3=D17),COUNTIFS($E$5:E17,E17,$D$5:D17,D17),"") ->  | C17: 13 | D17: 286 | I17: 0 | J17: 0.14 | K17: 0 | L17: 0
B18: =IF(AND('فاتورة مبيعات'!$F$3=E18,'فاتورة مبيعات'!$D$3=D18),COUNTIFS($E$5:E18,E18,$D$5:D18,D18),"") ->  | C18: 14 | D18: 286 | I18: 0 | J18: 0.14 | K18: 0 | L18: 0
B19: =IF(AND('فاتورة مبيعات'!$F$3=E19,'فاتورة مبيعات'!$D$3=D19),COUNTIFS($E$5:E19,E19,$D$5:D19,D19),"") ->  | C19: 15 | D19: 287 | I19: 0 | J19: 0.14 | K19: 0 | L19: 0
B20: =IF(AND('فاتورة مبيعات'!$F$3=E20,'فاتورة مبيعات'!$D$3=D20),COUNTIFS($E$5:E20,E20,$D$5:D20,D20),"") ->  | C20: 16 | D20: 287 | I20: 0 | J20: 0.14 | K20: 0 | L20: 0
B21: =IF(AND('فاتورة مبيعات'!$F$3=E21,'فاتورة مبيعات'!$D$3=D21),COUNTIFS($E$5:E21,E21,$D$5:D21,D21),"") ->  | C21: 17 | D21: 287 | I21: 0 | J21: 0.14 | K21: 0 | L21: 0
B22: =IF(AND('فاتورة مبيعات'!$F$3=E22,'فاتورة مبيعات'!$D$3=D22),COUNTIFS($E$5:E22,E22,$D$5:D22,D22),"") ->  | C22: 18 | D22: 287 | I22: 0 | J22: 0.14 | K22: 0 | L22: 0
B23: =IF(AND('فاتورة مبيعات'!$F$3=E23,'فاتورة مبيعات'!$D$3=D23),COUNTIFS($E$5:E23,E23,$D$5:D23,D23),"") ->  | C23: 19 | D23: 287 | I23: 0 | J23: 0.14 | K23: 0 | L23: 0
B24: =IF(AND('فاتورة مبيعات'!$F$3=E24,'فاتورة مبيعات'!$D$3=D24),COUNTIFS($E$5:E24,E24,$D$5:D24,D24),"") ->  | C24: 20 | D24: 287 | I24: 0 | J24: 0.14 | K24: 0 | L24: 0
B25: =IF(AND('فاتورة مبيعات'!$F$3=E25,'فاتورة مبيعات'!$D$3=D25),COUNTIFS($E$5:E25,E25,$D$5:D25,D25),"") ->  | C25: 21 | D25: 287 | I25: 0 | J25: 0.14 | K25: 0 | L25: 0
B26: =IF(AND('فاتورة مبيعات'!$F$3=E26,'فاتورة مبيعات'!$D$3=D26),COUNTIFS($E$5:E26,E26,$D$5:D26,D26),"") ->  | C26: 22 | D26: 287 | I26: 0 | J26: 0.14 | K26: 0 | L26: 0
B27: =IF(AND('فاتورة مبيعات'!$F$3=E27,'فاتورة مبيعات'!$D$3=D27),COUNTIFS($E$5:E27,E27,$D$5:D27,D27),"") ->  | C27: 23 | D27: 287 | I27: 0 | J27: 0.14 | K27: 0 | L27: 0
B28: =IF(AND('فاتورة مبيعات'!$F$3=E28,'فاتورة مبيعات'!$D$3=D28),COUNTIFS($E$5:E28,E28,$D$5:D28,D28),"") ->  | C28: 24 | D28: 287 | I28: 0 | J28: 0.14 | K28: 0 | L28: 0
B29: =IF(AND('فاتورة مبيعات'!$F$3=E29,'فاتورة مبيعات'!$D$3=D29),COUNTIFS($E$5:E29,E29,$D$5:D29,D29),"") ->  | C29: 25 | D29: 287 | I29: 0 | J29: 0.14 | K29: 0 | L29: 0
B30: =IF(AND('فاتورة مبيعات'!$F$3=E30,'فاتورة مبيعات'!$D$3=D30),COUNTIFS($E$5:E30,E30,$D$5:D30,D30),"") ->  | C30: 26 | D30: 288 | I30: 0 | J30: 0.14 | K30: 0 | L30: 0
B31: =IF(AND('فاتورة مبيعات'!$F$3=E31,'فاتورة مبيعات'!$D$3=D31),COUNTIFS($E$5:E31,E31,$D$5:D31,D31),"") ->  | C31: 27 | D31: 289 | I31: 0 | J31: 0.14 | K31: 0 | L31: 0
B32: =IF(AND('فاتورة مبيعات'!$F$3=E32,'فاتورة مبيعات'!$D$3=D32),COUNTIFS($E$5:E32,E32,$D$5:D32,D32),"") ->  | C32: 229 | I32: 0 | J32: 0.14 | K32: 0 | L32: 0
B33: =IF(AND('فاتورة مبيعات'!$F$3=E33,'فاتورة مبيعات'!$D$3=D33),COUNTIFS($E$5:E33,E33,$D$5:D33,D33),"") ->  | C33: 230 | I33: 0 | J33: 0.14 | K33: 0 | L33: 0
B34: =IF(AND('فاتورة مبيعات'!$F$3=E34,'فاتورة مبيعات'!$D$3=D34),COUNTIFS($E$5:E34,E34,$D$5:D34,D34),"") -> 
C35: الاجماليات | G35: =SUM(G5:G34) -> 22 | H35: =SUM(H5:H34) -> 205 | I35: =SUM(I5:I34) -> 2250 | K35: =SUM(K5:K34) -> 315 | L35: =SUM(L5:L34) -> 2565
C37: الاجماليات | G37: =SUBTOTAL(9,G5:G34) -> 22 | H37: =SUBTOTAL(9,H5:H34) -> 205 | I37: =SUBTOTAL(9,I5:I34) -> 2250 | K37: =SUBTOTAL(9,K5:K34) -> 315 | L37: =SUBTOTAL(9,L5:L34) -> 2565

Sheet 4
C4: مسلسل | D4: رقم الفاتورة | E4: تاريخ | F4: اسم العميل | G4: الكمية | H4: سعر | I4: قيمة | J4: ض.ق.م | K4: اجمالى المبيعات مضاف الضريبة | L4: اجمالى قيمة الضريبة
B5: =IF(AND('فاتورة مبيعات'!$F$3=E5,'فاتورة مبيعات'!$D$3=D5),COUNTIFS($E$5:E5,E5,$D$5:D5,D5),"") ->  | C5: 1 | D5: 297 | G5: 12 | H5: 100 | I5: =H5*G5 -> 1200 | J5: 0.14 | K5: =I5*J5 -> 168 | L5: =I5+K5 -> 1368
B6: =IF(AND('فاتورة مبيعات'!$F$3=E6,'فاتورة مبيعات'!$D$3=D6),COUNTIFS($E$5:E6,E6,$D$5:D6,D6),"") ->  | C6: 2 | D6: 297 | G6: 10 | H6: 105 | I6: 1050 | J6: 0.14 | K6: 147 | L6: =I6+K6 -> 1197
B7: =IF(AND('فاتورة مبيعات'!$F$3=E7,'فاتورة مبيعات'!$D$3=D7),COUNTIFS($E$5:E7,E7,$D$5:D7,D7),"") ->  | C7: 3 | D7: 297 | I7: 0 | J7: 0.14 | K7: 0 | L7: =I7+K7 -> 0
B8: =IF(AND('فاتورة مبيعات'!$F$3=E8,'فاتورة مبيعات'!$D$3=D8),COUNTIFS($E$5:E8,E8,$D$5:D8,D8),"") ->  | C8: 4 | D8: 297 | I8: 0 | J8: 0.14 | K8: 0 | L8: =I8+K8 -> 0
B9: =IF(AND('فاتورة مبيعات'!$F$3=E9,'فاتورة مبيعات'!$D$3=D9),COUNTIFS($E$5:E9,E9,$D$5:D9,D9),"") ->  | C9: 5 | D9: 60 | I9: 0 | J9: 0.14 | K9: 0 | L9: 0
B10: =IF(AND('فاتورة مبيعات'!$F$3=E10,'فاتورة مبيعات'!$D$3=D10),COUNTIFS($E$5:E10,E10,$D$5:D10,D10),"") ->  | C10: 6 | D10: 60 | I10: 0 | J10: 0.14 | K10: 0 | L10: 0
B11: =IF(AND('فاتورة مبيعات'!$F$3=E11,'فاتورة مبيعات'!$D$3=D11),COUNTIFS($E$5:E11,E11,$D$5:D11,D11),"") ->  | C11: 7 | D11: 60 | I11: 0 | J11: 0.14 | K11: 0 | L11: 0
B12: =IF(AND('فاتورة مبيعات'!$F$3=E12,'فاتورة مبيعات'!$D$3=D12),COUNTIFS($E$5:E12,E12,$D$5:D12,D12),"") ->  | C12: 8 | D12: 60 | I12: 0 | J12: 0.14 | K12: 0 | L12: 0
B13: =IF(AND('فاتورة مبيعات'!$F$3=E13,'فاتورة مبيعات'!$D$3=D13),COUNTIFS($E$5:E13,E13,$D$5:D13,D13),"") ->  | C13: 9 | D13: 60 | I13: 0 | J13: 0.14 | K13: 0 | L13: 0
B14: =IF(AND('فاتورة مبيعات'!$F$3=E14,'فاتورة مبيعات'!$D$3=D14),COUNTIFS($E$5:E14,E14,$D$5:D14,D14),"") ->  | C14: 10 | D14: 60 | I14: 0 | J14: 0.14 | K14: 0 | L14: 0
B15: =IF(AND('فاتورة مبيعات'!$F$3=E15,'فاتورة مبيعات'!$D$3=D15),COUNTIFS($E$5:E15,E15,$D$5:D15,D15),"") ->  | C15: 11 | D15: 60 | I15: 0 | J15: 0.14 | K15: 0 | L15: 0
B16: =IF(AND('فاتورة مبيعات'!$F$3=E16,'فاتورة مبيعات'!$D$3=D16),COUNTIFS($E$5:E16,E16,$D$5:D16,D16),"") ->  | C16: 12 | D16: 60 | I16: 0 | J16: 0.14 | K16: 0 | L16: 0
B17: =IF(AND('فاتورة مبيعات'!$F$3=E17,'فاتورة مبيعات'!$D$3=D17),COUNTIFS($E$5:E17,E17,$D$5:D17,D17),"") ->  | C17: 13 | D17: 60 | I17: 0 | J17: 0.14 | K17: 0 | L17: 0
B18: =IF(AND('فاتورة مبيعات'!$F$3=E18,'فاتورة مبيعات'!$D$3=D18),COUNTIFS($E$5:E18,E18,$D$5:D18,D18),"") ->  | C18: 14 | D18: 60 | I18: 0 | J18: 0.14 | K18: 0 | L18: 0
B19: =IF(AND('فاتورة مبيعات'!$F$3=E19,'فاتورة مبيعات'!$D$3=D19),COUNTIFS($E$5:E19,E19,$D$5:D19,D19),"") ->  | C19: 15 | D19: 61 | I19: 0 | J19: 0.14 | K19: 0 | L19: 0
B20: =IF(AND('فاتورة مبيعات'!$F$3=E20,'فاتورة مبيعات'!$D$3=D20),COUNTIFS($E$5:E20,E20,$D$5:D20,D20),"") ->  | C20: 16 | D20: 61 | I20: 0 | J20: 0.14 | K20: 0 | L20: 0
B21: =IF(AND('فاتورة مبيعات'!$F$3=E21,'فاتورة مبيعات'!$D$3=D21),COUNTIFS($E$5:E21,E21,$D$5:D21,D21),"") ->  | C21: 17 | D21: 61 | I21: 0 | J21: 0.14 | K21: 0 | L21: 0
B22: =IF(AND('فاتورة مبيعات'!$F$3=E22,'فاتورة مبيعات'!$D$3=D22),COUNTIFS($E$5:E22,E22,$D$5:D22,D22),"") ->  | C22: 18 | D22: 61 | I22: 0 | J22: 0.14 | K22: 0 | L22: 0
B23: =IF(AND('فاتورة مبيعات'!$F$3=E23,'فاتورة مبيعات'!$D$3=D23),COUNTIFS($E$5:E23,E23,$D$5:D23,D23),"") ->  | C23: 19 | D23: 61 | I23: 0 | J23: 0.14 | K23: 0 | L23: 0
B24: =IF(AND('فاتورة مبيعات'!$F$3=E24,'فاتورة مبيعات'!$D$3=D24),COUNTIFS($E$5:E24,E24,$D$5:D24,D24),"") ->  | C24: 20 | D24: 61 | I24: 0 | J24: 0.14 | K24: 0 | L24: 0
B25: =IF(AND('فاتورة مبيعات'!$F$3=E25,'فاتورة مبيعات'!$D$3=D25),COUNTIFS($E$5:E25,E25,$D$5:D25,D25),"") ->  | C25: 21 | D25: 61 | I25: 0 | J25: 0.14 | K25: 0 | L25: 0
B26: =IF(AND('فاتورة مبيعات'!$F$3=E26,'فاتورة مبيعات'!$D$3=D26),COUNTIFS($E$5:E26,E26,$D$5:D26,D26),"") ->  | C26: 22 | D26: 61 | I26: 0 | J26: 0.14 | K26: 0 | L26: 0
B27: =IF(AND('فاتورة مبيعات'!$F$3=E27,'فاتورة مبيعات'!$D$3=D27),COUNTIFS($E$5:E27,E27,$D$5:D27,D27),"") ->  | C27: 23 | D27: 61 | I27: 0 | J27: 0.14 | K27: 0 | L27: 0
B28: =IF(AND('فاتورة مبيعات'!$F$3=E28,'فاتورة مبيعات'!$D$3=D28),COUNTIFS($E$5:E28,E28,$D$5:D28,D28),"") ->  | C28: 24 | D28: 47 | I28: 0 | J28: 0.14 | K28: 0 | L28: 0
B29: =IF(AND('فاتورة مبيعات'!$F$3=E29,'فاتورة مبيعات'!$D$3=D29),COUNTIFS($E$5:E29,E29,$D$5:D29,D29),"") ->  | C29: 25 | D29: 47 | I29: 0 | J29: 0.14 | K29: 0 | L29: 0
B30: =IF(AND('فاتورة مبيعات'!$F$3=E30,'فاتورة مبيعات'!$D$3=D30),COUNTIFS($E$5:E30,E30,$D$5:D30,D30),"") ->  | C30: 26 | D30: 47 | I30: 0 | J30: 0.14 | K30: 0 | L30: 0
B31: =IF(AND('فاتورة مبيعات'!$F$3=E31,'فاتورة مبيعات'!$D$3=D31),COUNTIFS($E$5:E31,E31,$D$5:D31,D31),"") ->  | C31: 27 | D31: 47 | I31: 0 | J31: 0.14 | K31: 0 | L31: 0
B32: =IF(AND('فاتورة مبيعات'!$F$3=E32,'فاتورة مبيعات'!$D$3=D32),COUNTIFS($E$5:E32,E32,$D$5:D32,D32),"") ->  | C32: 28 | D32: 48 | I32: 0 | J32: 0.14 | K32: 0 | L32: 0
B33: =IF(AND('فاتورة مبيعات'!$F$3=E33,'فاتورة مبيعات'!$D$3=D33),COUNTIFS($E$5:E33,E33,$D$5:D33,D33),"") ->  | C33: 340 | I33: 0 | J33: 0.14 | K33: 0 | L33: 0
B34: =IF(AND('فاتورة مبيعات'!$F$3=E34,'فاتورة مبيعات'!$D$3=D34),COUNTIFS($E$5:E34,E34,$D$5:D34,D34),"") -> 
C35: الاجماليات | G35: =SUM(G5:G34) -> 22 | H35: =SUM(H5:H34) -> 205 | I35: =SUM(I5:I34) -> 2250 | K35: =SUM(K5:K34) -> 315 | L35: =SUM(L5:L34) -> 2565
C37: الاجماليات | G37: =SUBTOTAL(9,G5:G34) -> 22 | H37: =SUBTOTAL(9,H5:H34) -> 205 | I37: =SUBTOTAL(9,I5:I34) -> 2250 | K37: =SUBTOTAL(9,K5:K34) -> 315 | L37: =SUBTOTAL(9,L5:L34) -> 2565
E40: توقيع مدير المشروع
E41: الاسم :-
E42: التوقيع :-

Sheet 5
C4: مسلسل | D4: رقم الفاتورة | E4: تاريخ | F4: اسم العميل | G4: الكمية | H4: سعر | I4: قيمة | J4: ض.ق.م | K4: اجمالى المبيعات مضاف الضريبة | L4: اجمالى قيمة الضريبة
B5: =IF(AND('فاتورة مبيعات'!$F$3=E5,'فاتورة مبيعات'!$D$3=D5),COUNTIFS($E$5:E5,E5,$D$5:D5,D5),"") ->  | G5: 12 | H5: 100 | I5: =H5*G5 -> 1200 | J5: 0.14 | K5: =I5*J5 -> 168 | L5: =I5+K5 -> 1368
B6: =IF(AND('فاتورة مبيعات'!$F$3=E6,'فاتورة مبيعات'!$D$3=D6),COUNTIFS($E$5:E6,E6,$D$5:D6,D6),"") ->  | G6: 10 | H6: 105 | I6: 1050 | J6: 0.14 | K6: 147 | L6: =I6+K6 -> 1197
B7: =IF(AND('فاتورة مبيعات'!$F$3=E7,'فاتورة مبيعات'!$D$3=D7),COUNTIFS($E$5:E7,E7,$D$5:D7,D7),"") ->  | I7: 0 | J7: 0.14 | K7: 0 | L7: =I7+K7 -> 0
B8: =IF(AND('فاتورة مبيعات'!$F$3=E8,'فاتورة مبيعات'!$D$3=D8),COUNTIFS($E$5:E8,E8,$D$5:D8,D8),"") ->  | I8: 0 | J8: 0.14 | K8: 0 | L8: =I8+K8 -> 0
B9: =IF(AND('فاتورة مبيعات'!$F$3=E9,'فاتورة مبيعات'!$D$3=D9),COUNTIFS($E$5:E9,E9,$D$5:D9,D9),"") ->  | I9: 0 | J9: 0.14 | K9: 0 | L9: 0
B10: =IF(AND('فاتورة مبيعات'!$F$3=E10,'فاتورة مبيعات'!$D$3=D10),COUNTIFS($E$5:E10,E10,$D$5:D10,D10),"") ->  | I10: 0 | J10: 0.14 | K10: 0 | L10: 0
B11: =IF(AND('فاتورة مبيعات'!$F$3=E11,'فاتورة مبيعات'!$D$3=D11),COUNTIFS($E$5:E11,E11,$D$5:D11,D11),"") ->  | I11: 0 | J11: 0.14 | K11: 0 | L11: 0
B12: =IF(AND('فاتورة مبيعات'!$F$3=E12,'فاتورة مبيعات'!$D$3=D12),COUNTIFS($E$5:E12,E12,$D$5:D12,D12),"") ->  | I12: 0 | J12: 0.14 | K12: 0 | L12: 0
B13: =IF(AND('فاتورة مبيعات'!$F$3=E13,'فاتورة مبيعات'!$D$3=D13),COUNTIFS($E$5:E13,E13,$D$5:D13,D13),"") ->  | I13: 0 | J13: 0.14 | K13: 0 | L13: 0
B14: =IF(AND('فاتورة مبيعات'!$F$3=E14,'فاتورة مبيعات'!$D$3=D14),COUNTIFS($E$5:E14,E14,$D$5:D14,D14),"") ->  | I14: 0 | J14: 0.14 | K14: 0 | L14: 0
B15: =IF(AND('فاتورة مبيعات'!$F$3=E15,'فاتورة مبيعات'!$D$3=D15),COUNTIFS($E$5:E15,E15,$D$5:D15,D15),"") ->  | I15: 0 | J15: 0.14 | K15: 0 | L15: 0
B16: =IF(AND('فاتورة مبيعات'!$F$3=E16,'فاتورة مبيعات'!$D$3=D16),COUNTIFS($E$5:E16,E16,$D$5:D16,D16),"") ->  | I16: 0 | J16: 0.14 | K16: 0 | L16: 0
B17: =IF(AND('فاتورة مبيعات'!$F$3=E17,'فاتورة مبيعات'!$D$3=D17),COUNTIFS($E$5:E17,E17,$D$5:D17,D17),"") ->  | I17: 0 | J17: 0.14 | K17: 0 | L17: 0
B18: =IF(AND('فاتورة مبيعات'!$F$3=E18,'فاتورة مبيعات'!$D$3=D18),COUNTIFS($E$5:E18,E18,$D$5:D18,D18),"") ->  | I18: 0 | J18: 0.14 | K18: 0 | L18: 0
B19: =IF(AND('فاتورة مبيعات'!$F$3=E19,'فاتورة مبيعات'!$D$3=D19),COUNTIFS($E$5:E19,E19,$D$5:D19,D19),"") ->  | I19: 0 | J19: 0.14 | K19: 0 | L19: 0
B20: =IF(AND('فاتورة مبيعات'!$F$3=E20,'فاتورة مبيعات'!$D$3=D20),COUNTIFS($E$5:E20,E20,$D$5:D20,D20),"") ->  | I20: 0 | J20: 0.14 | K20: 0 | L20: 0
B21: =IF(AND('فاتورة مبيعات'!$F$3=E21,'فاتورة مبيعات'!$D$3=D21),COUNTIFS($E$5:E21,E21,$D$5:D21,D21),"") ->  | I21: 0 | J21: 0.14 | K21: 0 | L21: 0
B22: =IF(AND('فاتورة مبيعات'!$F$3=E22,'فاتورة مبيعات'!$D$3=D22),COUNTIFS($E$5:E22,E22,$D$5:D22,D22),"") ->  | I22: 0 | J22: 0.14 | K22: 0 | L22: 0
B23: =IF(AND('فاتورة مبيعات'!$F$3=E23,'فاتورة مبيعات'!$D$3=D23),COUNTIFS($E$5:E23,E23,$D$5:D23,D23),"") ->  | I23: 0 | J23: 0.14 | K23: 0 | L23: 0
B24: =IF(AND('فاتورة مبيعات'!$F$3=E24,'فاتورة مبيعات'!$D$3=D24),COUNTIFS($E$5:E24,E24,$D$5:D24,D24),"") ->  | I24: 0 | J24: 0.14 | K24: 0 | L24: 0
B25: =IF(AND('فاتورة مبيعات'!$F$3=E25,'فاتورة مبيعات'!$D$3=D25),COUNTIFS($E$5:E25,E25,$D$5:D25,D25),"") ->  | I25: 0 | J25: 0.14 | K25: 0 | L25: 0
B26: =IF(AND('فاتورة مبيعات'!$F$3=E26,'فاتورة مبيعات'!$D$3=D26),COUNTIFS($E$5:E26,E26,$D$5:D26,D26),"") ->  | I26: 0 | J26: 0.14 | K26: 0 | L26: 0
B27: =IF(AND('فاتورة مبيعات'!$F$3=E27,'فاتورة مبيعات'!$D$3=D27),COUNTIFS($E$5:E27,E27,$D$5:D27,D27),"") ->  | I27: 0 | J27: 0.14 | K27: 0 | L27: 0
B28: =IF(AND('فاتورة مبيعات'!$F$3=E28,'فاتورة مبيعات'!$D$3=D28),COUNTIFS($E$5:E28,E28,$D$5:D28,D28),"") ->  | I28: 0 | J28: 0.14 | K28: 0 | L28: 0
B29: =IF(AND('فاتورة مبيعات'!$F$3=E29,'فاتورة مبيعات'!$D$3=D29),COUNTIFS($E$5:E29,E29,$D$5:D29,D29),"") ->  | I29: 0 | J29: 0.14 | K29: 0 | L29: 0
B30: =IF(AND('فاتورة مبيعات'!$F$3=E30,'فاتورة مبيعات'!$D$3=D30),COUNTIFS($E$5:E30,E30,$D$5:D30,D30),"") ->  | I30: 0 | J30: 0.14 | K30: 0 | L30: 0
B31: =IF(AND('فاتورة مبيعات'!$F$3=E31,'فاتورة مبيعات'!$D$3=D31),COUNTIFS($E$5:E31,E31,$D$5:D31,D31),"") ->  | I31: 0 | J31: 0.14 | K31: 0 | L31: 0
B32: =IF(AND('فاتورة مبيعات'!$F$3=E32,'فاتورة مبيعات'!$D$3=D32),COUNTIFS($E$5:E32,E32,$D$5:D32,D32),"") ->  | I32: 0 | J32: 0.14 | K32: 0 | L32: 0
B33: =IF(AND('فاتورة مبيعات'!$F$3=E33,'فاتورة مبيعات'!$D$3=D33),COUNTIFS($E$5:E33,E33,$D$5:D33,D33),"") ->  | I33: 0 | J33: 0.14 | K33: 0 | L33: 0
B34: =IF(AND('فاتورة مبيعات'!$F$3=E34,'فاتورة مبيعات'!$D$3=D34),COUNTIFS($E$5:E34,E34,$D$5:D34,D34),"") ->  | I34: 0 | J34: 0.14 | K34: 0 | L34: 0
B35: =IF(AND('فاتورة مبيعات'!$F$3=E35,'فاتورة مبيعات'!$D$3=D35),COUNTIFS($E$5:E35,E35,$D$5:D35,D35),"") ->  | I35: 0 | J35: 0.14 | K35: 0 | L35: 0
B36: =IF(AND('فاتورة مبيعات'!$F$3=E36,'فاتورة مبيعات'!$D$3=D36),COUNTIFS($E$5:E36,E36,$D$5:D36,D36),"") ->  | I36: 0 | J36: 0.14 | K36: 0 | L36: 0
B37: =IF(AND('فاتورة مبيعات'!$F$3=E37,'فاتورة مبيعات'!$D$3=D37),COUNTIFS($E$5:E37,E37,$D$5:D37,D37),"") ->  | I37: =H37*G37 -> 0 | J37: 0.14 | K37: =I37*J37 -> 0 | L37: 0
B38: =IF(AND('فاتورة مبيعات'!$F$3=E38,'فاتورة مبيعات'!$D$3=D38),COUNTIFS($E$5:E38,E38,$D$5:D38,D38),"") ->  | I38: 0 | J38: 0.14 | K38: 0 | L38: 0
B39: =IF(AND('فاتورة مبيعات'!$F$3=E39,'فاتورة مبيعات'!$D$3=D39),COUNTIFS($E$5:E39,E39,$D$5:D39,D39),"") ->  | I39: 0 | J39: 0.14 | K39: 0 | L39: 0
B40: =IF(AND('فاتورة مبيعات'!$F$3=E40,'فاتورة مبيعات'!$D$3=D40),COUNTIFS($E$5:E40,E40,$D$5:D40,D40),"") ->  | I40: 0 | J40: 0.14 | K40: 0 | L40: 0
B41: =IF(AND('فاتورة مبيعات'!$F$3=E41,'فاتورة مبيعات'!$D$3=D41),COUNTIFS($E$5:E41,E41,$D$5:D41,D41),"") ->  | I41: 0 | J41: 0.14 | K41: 0 | L41: 0
B42: =IF(AND('فاتورة مبيعات'!$F$3=E42,'فاتورة مبيعات'!$D$3=D42),COUNTIFS($E$5:E42,E42,$D$5:D42,D42),"") ->  | I42: 0 | J42: 0.14 | K42: 0 | L42: 0
B43: =IF(AND('فاتورة مبيعات'!$F$3=E43,'فاتورة مبيعات'!$D$3=D43),COUNTIFS($E$5:E43,E43,$D$5:D43,D43),"") ->  | I43: 0 | J43: 0.14 | K43: 0 | L43: 0
B44: =IF(AND('فاتورة مبيعات'!$F$3=E44,'فاتورة مبيعات'!$D$3=D44),COUNTIFS($E$5:E44,E44,$D$5:D44,D44),"") ->  | I44: 0 | J44: 0.14 | K44: 0 | L44: 0
B45: =IF(AND('فاتورة مبيعات'!$F$3=E45,'فاتورة مبيعات'!$D$3=D45),COUNTIFS($E$5:E45,E45,$D$5:D45,D45),"") ->  | I45: 0 | J45: 0.14 | K45: 0 | L45: 0
B46: =IF(AND('فاتورة مبيعات'!$F$3=E46,'فاتورة مبيعات'!$D$3=D46),COUNTIFS($E$5:E46,E46,$D$5:D46,D46),"") ->  | I46: 0 | J46: 0.14 | K46: 0 | L46: 0
B47: =IF(AND('فاتورة مبيعات'!$F$3=E47,'فاتورة مبيعات'!$D$3=D47),COUNTIFS($E$5:E47,E47,$D$5:D47,D47),"") ->  | I47: 0 | J47: 0.14 | K47: 0 | L47: 0
B48: =IF(AND('فاتورة مبيعات'!$F$3=E48,'فاتورة مبيعات'!$D$3=D48),COUNTIFS($E$5:E48,E48,$D$5:D48,D48),"") ->  | I48: 0 | J48: 0.14 | K48: 0 | L48: 0
B49: =IF(AND('فاتورة مبيعات'!$F$3=E49,'فاتورة مبيعات'!$D$3=D49),COUNTIFS($E$5:E49,E49,$D$5:D49,D49),"") ->  | I49: 0 | J49: 0.14 | K49: 0 | L49: 0
B50: =IF(AND('فاتورة مبيعات'!$F$3=E50,'فاتورة مبيعات'!$D$3=D50),COUNTIFS($E$5:E50,E50,$D$5:D50,D50),"") ->  | I50: 0 | J50: 0.14 | K50: 0 | L50: 0
B51: =IF(AND('فاتورة مبيعات'!$F$3=E51,'فاتورة مبيعات'!$D$3=D51),COUNTIFS($E$5:E51,E51,$D$5:D51,D51),"") ->  | I51: 0 | J51: 0.14 | K51: 0 | L51: 0
B52: =IF(AND('فاتورة مبيعات'!$F$3=E52,'فاتورة مبيعات'!$D$3=D52),COUNTIFS($E$5:E52,E52,$D$5:D52,D52),"") ->  | I52: 0 | J52: 0.14 | K52: 0 | L52: 0
B53: =IF(AND('فاتورة مبيعات'!$F$3=E53,'فاتورة مبيعات'!$D$3=D53),COUNTIFS($E$5:E53,E53,$D$5:D53,D53),"") ->  | I53: 0 | J53: 0.14 | K53: 0 | L53: 0
B54: =IF(AND('فاتورة مبيعات'!$F$3=E54,'فاتورة مبيعات'!$D$3=D54),COUNTIFS($E$5:E54,E54,$D$5:D54,D54),"") ->  | I54: 0 | J54: 0.14 | K54: 0 | L54: 0
B55: =IF(AND('فاتورة مبيعات'!$F$3=E55,'فاتورة مبيعات'!$D$3=D55),COUNTIFS($E$5:E55,E55,$D$5:D55,D55),"") ->  | I55: 0 | J55: 0.14 | K55: 0 | L55: 0
B56: =IF(AND('فاتورة مبيعات'!$F$3=E56,'فاتورة مبيعات'!$D$3=D56),COUNTIFS($E$5:E56,E56,$D$5:D56,D56),"") ->  | I56: 0 | J56: 0.14 | K56: 0 | L56: 0
B57: =IF(AND('فاتورة مبيعات'!$F$3=E57,'فاتورة مبيعات'!$D$3=D57),COUNTIFS($E$5:E57,E57,$D$5:D57,D57),"") ->  | I57: 0 | J57: 0.14 | K57: 0 | L57: 0
B58: =IF(AND('فاتورة مبيعات'!$F$3=E58,'فاتورة مبيعات'!$D$3=D58),COUNTIFS($E$5:E58,E58,$D$5:D58,D58),"") ->  | I58: 0 | J58: 0.14 | K58: 0 | L58: 0
B59: =IF(AND('فاتورة مبيعات'!$F$3=E59,'فاتورة مبيعات'!$D$3=D59),COUNTIFS($E$5:E59,E59,$D$5:D59,D59),"") ->  | I59: 0 | J59: 0.14 | K59: 0 | L59: 0
B60: =IF(AND('فاتورة مبيعات'!$F$3=E60,'فاتورة مبيعات'!$D$3=D60),COUNTIFS($E$5:E60,E60,$D$5:D60,D60),"") ->  | I60: 0 | J60: 0.14 | K60: 0 | L60: 0
B61: =IF(AND('فاتورة مبيعات'!$F$3=E61,'فاتورة مبيعات'!$D$3=D61),COUNTIFS($E$5:E61,E61,$D$5:D61,D61),"") ->  | I61: 0 | J61: 0.14 | K61: 0 | L61: 0
B62: =IF(AND('فاتورة مبيعات'!$F$3=E62,'فاتورة مبيعات'!$D$3=D62),COUNTIFS($E$5:E62,E62,$D$5:D62,D62),"") ->  | I62: 0 | J62: 0.14 | K62: 0 | L62: 0
B63: =IF(AND('فاتورة مبيعات'!$F$3=E63,'فاتورة مبيعات'!$D$3=D63),COUNTIFS($E$5:E63,E63,$D$5:D63,D63),"") ->  | I63: 0 | J63: 0.14 | K63: 0 | L63: 0
B64: =IF(AND('فاتورة مبيعات'!$F$3=E64,'فاتورة مبيعات'!$D$3=D64),COUNTIFS($E$5:E64,E64,$D$5:D64,D64),"") ->  | I64: 0 | J64: 0.14 | K64: 0 | L64: 0
B65: =IF(AND('فاتورة مبيعات'!$F$3=E65,'فاتورة مبيعات'!$D$3=D65),COUNTIFS($E$5:E65,E65,$D$5:D65,D65),"") ->  | I65: 0 | J65: 0.14 | K65: 0 | L65: 0
B66: =IF(AND('فاتورة مبيعات'!$F$3=E66,'فاتورة مبيعات'!$D$3=D66),COUNTIFS($E$5:E66,E66,$D$5:D66,D66),"") ->  | I66: 0 | J66: 0.14 | K66: 0 | L66: 0
B67: =IF(AND('فاتورة مبيعات'!$F$3=E67,'فاتورة مبيعات'!$D$3=D67),COUNTIFS($E$5:E67,E67,$D$5:D67,D67),"") ->  | I67: 0 | J67: 0.14 | K67: 0 | L67: 0
B68: =IF(AND('فاتورة مبيعات'!$F$3=E68,'فاتورة مبيعات'!$D$3=D68),COUNTIFS($E$5:E68,E68,$D$5:D68,D68),"") ->  | I68: 0 | J68: 0.14 | K68: 0 | L68: 0
B69: =IF(AND('فاتورة مبيعات'!$F$3=E69,'فاتورة مبيعات'!$D$3=D69),COUNTIFS($E$5:E69,E69,$D$5:D69,D69),"") ->  | I69: =H69*G69 -> 0 | J69: 0.14 | K69: =I69*J69 -> 0 | L69: 0
B70: =IF(AND('فاتورة مبيعات'!$F$3=E70,'فاتورة مبيعات'!$D$3=D70),COUNTIFS($E$5:E70,E70,$D$5:D70,D70),"") ->  | I70: 0 | J70: 0.14 | K70: 0 | L70: 0
B71: =IF(AND('فاتورة مبيعات'!$F$3=E71,'فاتورة مبيعات'!$D$3=D71),COUNTIFS($E$5:E71,E71,$D$5:D71,D71),"") ->  | I71: 0 | J71: 0.14 | K71: 0 | L71: 0
B72: =IF(AND('فاتورة مبيعات'!$F$3=E72,'فاتورة مبيعات'!$D$3=D72),COUNTIFS($E$5:E72,E72,$D$5:D72,D72),"") ->  | I72: 0 | J72: 0.14 | K72: 0 | L72: =I72+K72 -> 0
B73: =IF(AND('فاتورة مبيعات'!$F$3=E73,'فاتورة مبيعات'!$D$3=D73),COUNTIFS($E$5:E73,E73,$D$5:D73,D73),"") ->  | I73: 0 | J73: 0.14 | K73: 0 | L73: 0
B74: =IF(AND('فاتورة مبيعات'!$F$3=E74,'فاتورة مبيعات'!$D$3=D74),COUNTIFS($E$5:E74,E74,$D$5:D74,D74),"") ->  | I74: 0 | J74: 0.14 | K74: 0 | L74: 0
B75: =IF(AND('فاتورة مبيعات'!$F$3=E75,'فاتورة مبيعات'!$D$3=D75),COUNTIFS($E$5:E75,E75,$D$5:D75,D75),"") ->  | I75: 0 | J75: 0.14 | K75: 0 | L75: 0
B76: =IF(AND('فاتورة مبيعات'!$F$3=E76,'فاتورة مبيعات'!$D$3=D76),COUNTIFS($E$5:E76,E76,$D$5:D76,D76),"") ->  | I76: 0 | J76: 0.14 | K76: 0 | L76: 0
B77: =IF(AND('فاتورة مبيعات'!$F$3=E77,'فاتورة مبيعات'!$D$3=D77),COUNTIFS($E$5:E77,E77,$D$5:D77,D77),"") ->  | I77: 0 | J77: 0.14 | K77: 0 | L77: 0
B78: =IF(AND('فاتورة مبيعات'!$F$3=E78,'فاتورة مبيعات'!$D$3=D78),COUNTIFS($E$5:E78,E78,$D$5:D78,D78),"") ->  | I78: 0 | J78: 0.14 | K78: 0 | L78: 0
B79: =IF(AND('فاتورة مبيعات'!$F$3=E79,'فاتورة مبيعات'!$D$3=D79),COUNTIFS($E$5:E79,E79,$D$5:D79,D79),"") ->  | I79: 0 | J79: 0.14 | K79: 0 | L79: 0
B80: =IF(AND('فاتورة مبيعات'!$F$3=E80,'فاتورة مبيعات'!$D$3=D80),COUNTIFS($E$5:E80,E80,$D$5:D80,D80),"") ->  | I80: 0 | J80: 0.14 | K80: 0 | L80: 0
B81: =IF(AND('فاتورة مبيعات'!$F$3=E81,'فاتورة مبيعات'!$D$3=D81),COUNTIFS($E$5:E81,E81,$D$5:D81,D81),"") ->  | I81: 0 | J81: 0.14 | K81: 0 | L81: 0
B82: =IF(AND('فاتورة مبيعات'!$F$3=E82,'فاتورة مبيعات'!$D$3=D82),COUNTIFS($E$5:E82,E82,$D$5:D82,D82),"") ->  | I82: 0 | J82: 0.14 | K82: 0 | L82: 0
B83: =IF(AND('فاتورة مبيعات'!$F$3=E83,'فاتورة مبيعات'!$D$3=D83),COUNTIFS($E$5:E83,E83,$D$5:D83,D83),"") ->  | I83: 0 | J83: 0.14 | K83: 0 | L83: 0
B84: =IF(AND('فاتورة مبيعات'!$F$3=E84,'فاتورة مبيعات'!$D$3=D84),COUNTIFS($E$5:E84,E84,$D$5:D84,D84),"") ->  | I84: 0 | J84: 0.14 | K84: 0 | L84: 0
B85: =IF(AND('فاتورة مبيعات'!$F$3=E85,'فاتورة مبيعات'!$D$3=D85),COUNTIFS($E$5:E85,E85,$D$5:D85,D85),"") ->  | I85: 0 | J85: 0.14 | K85: 0 | L85: 0
B86: =IF(AND('فاتورة مبيعات'!$F$3=E86,'فاتورة مبيعات'!$D$3=D86),COUNTIFS($E$5:E86,E86,$D$5:D86,D86),"") ->  | I86: 0 | J86: 0.14 | K86: 0 | L86: 0
B87: =IF(AND('فاتورة مبيعات'!$F$3=E87,'فاتورة مبيعات'!$D$3=D87),COUNTIFS($E$5:E87,E87,$D$5:D87,D87),"") ->  | I87: 0 | J87: 0.14 | K87: 0 | L87: 0
B88: =IF(AND('فاتورة مبيعات'!$F$3=E88,'فاتورة مبيعات'!$D$3=D88),COUNTIFS($E$5:E88,E88,$D$5:D88,D88),"") ->  | I88: 0 | J88: 0.14 | K88: 0 | L88: 0
B89: =IF(AND('فاتورة مبيعات'!$F$3=E89,'فاتورة مبيعات'!$D$3=D89),COUNTIFS($E$5:E89,E89,$D$5:D89,D89),"") ->  | I89: 0 | J89: 0.14 | K89: 0 | L89: 0
B90: =IF(AND('فاتورة مبيعات'!$F$3=E90,'فاتورة مبيعات'!$D$3=D90),COUNTIFS($E$5:E90,E90,$D$5:D90,D90),"") ->  | I90: 0 | J90: 0.14 | K90: 0 | L90: 0
B91: =IF(AND('فاتورة مبيعات'!$F$3=E91,'فاتورة مبيعات'!$D$3=D91),COUNTIFS($E$5:E91,E91,$D$5:D91,D91),"") ->  | I91: 0 | J91: 0.14 | K91: 0 | L91: 0
B92: =IF(AND('فاتورة مبيعات'!$F$3=E92,'فاتورة مبيعات'!$D$3=D92),COUNTIFS($E$5:E92,E92,$D$5:D92,D92),"") ->  | I92: 0 | J92: 0.14 | K92: 0 | L92: 0
B93: =IF(AND('فاتورة مبيعات'!$F$3=E93,'فاتورة مبيعات'!$D$3=D93),COUNTIFS($E$5:E93,E93,$D$5:D93,D93),"") ->  | I93: 0 | J93: 0.14 | K93: 0 | L93: 0
B94: =IF(AND('فاتورة مبيعات'!$F$3=E94,'فاتورة مبيعات'!$D$3=D94),COUNTIFS($E$5:E94,E94,$D$5:D94,D94),"") ->  | I94: 0 | J94: 0.14 | K94: 0 | L94: 0
B95: =IF(AND('فاتورة مبيعات'!$F$3=E95,'فاتورة مبيعات'!$D$3=D95),COUNTIFS($E$5:E95,E95,$D$5:D95,D95),"") ->  | I95: 0 | J95: 0.14 | K95: 0 | L95: 0
B96: =IF(AND('فاتورة مبيعات'!$F$3=E96,'فاتورة مبيعات'!$D$3=D96),COUNTIFS($E$5:E96,E96,$D$5:D96,D96),"") -> 
C97: الاجماليات | G97: =SUM(G5:G96) -> 22 | H97: =SUM(H5:H96) -> 205 | I97: =SUM(I5:I96) -> 2250 | K97: =SUM(K5:K96) -> 315 | L97: =SUM(L5:L96) -> 2565
C99: الاجماليات | G99: =SUBTOTAL(9,G5:G96) -> 22 | H99: =SUBTOTAL(9,H5:H96) -> 205 | I99: =SUBTOTAL(9,I5:I96) -> 2250 | K99: =SUBTOTAL(9,K5:K96) -> 315 | L99: =SUBTOTAL(9,L5:L96) -> 2565
E102: توقيع مدير المشروع
E103: الاسم :-
E104: التوقيع :-

Sheet 6
C4: مسلسل | D4: رقم الفاتورة | E4: تاريخ | F4: اسم العميل | G4: الكمية | H4: سعر | I4: قيمة | J4: ض.ق.م | K4: اجمالى المبيعات مضاف الضريبة | L4: اجمالى قيمة الضريبة
B5: =IF(AND('فاتورة مبيعات'!$F$3=E5,'فاتورة مبيعات'!$D$3=D5),COUNTIFS($E$5:E5,E5,$D$5:D5,D5),"") ->  | G5: 12 | H5: 100 | I5: =H5*G5 -> 1200 | J5: 0.14 | K5: =I5*J5 -> 168 | L5: =I5+K5 -> 1368
B6: =IF(AND('فاتورة مبيعات'!$F$3=E6,'فاتورة مبيعات'!$D$3=D6),COUNTIFS($E$5:E6,E6,$D$5:D6,D6),"") ->  | G6: 10 | H6: 105 | I6: 1050 | J6: 0.14 | K6: 147 | L6: =I6+K6 -> 1197
B7: =IF(AND('فاتورة مبيعات'!$F$3=E7,'فاتورة مبيعات'!$D$3=D7),COUNTIFS($E$5:E7,E7,$D$5:D7,D7),"") ->  | I7: 0 | J7: 0.14 | K7: 0 | L7: =I7+K7 -> 0
B8: =IF(AND('فاتورة مبيعات'!$F$3=E8,'فاتورة مبيعات'!$D$3=D8),COUNTIFS($E$5:E8,E8,$D$5:D8,D8),"") ->  | I8: 0 | J8: 0.14 | K8: 0 | L8: =I8+K8 -> 0
B9: =IF(AND('فاتورة مبيعات'!$F$3=E9,'فاتورة مبيعات'!$D$3=D9),COUNTIFS($E$5:E9,E9,$D$5:D9,D9),"") ->  | I9: 0 | J9: 0.14 | K9: 0 | L9: 0
B10: =IF(AND('فاتورة مبيعات'!$F$3=E10,'فاتورة مبيعات'!$D$3=D10),COUNTIFS($E$5:E10,E10,$D$5:D10,D10),"") ->  | I10: 0 | J10: 0.14 | K10: 0 | L10: 0
B11: =IF(AND('فاتورة مبيعات'!$F$3=E11,'فاتورة مبيعات'!$D$3=D11),COUNTIFS($E$5:E11,E11,$D$5:D11,D11),"") ->  | I11: 0 | J11: 0.14 | K11: 0 | L11: 0
B12: =IF(AND('فاتورة مبيعات'!$F$3=E12,'فاتورة مبيعات'!$D$3=D12),COUNTIFS($E$5:E12,E12,$D$5:D12,D12),"") ->  | I12: 0 | J12: 0.14 | K12: 0 | L12: 0
B13: =IF(AND('فاتورة مبيعات'!$F$3=E13,'فاتورة مبيعات'!$D$3=D13),COUNTIFS($E$5:E13,E13,$D$5:D13,D13),"") ->  | I13: 0 | J13: 0.14 | K13: 0 | L13: 0
B14: =IF(AND('فاتورة مبيعات'!$F$3=E14,'فاتورة مبيعات'!$D$3=D14),COUNTIFS($E$5:E14,E14,$D$5:D14,D14),"") ->  | I14: 0 | J14: 0.14 | K14: 0 | L14: 0
B15: =IF(AND('فاتورة مبيعات'!$F$3=E15,'فاتورة مبيعات'!$D$3=D15),COUNTIFS($E$5:E15,E15,$D$5:D15,D15),"") ->  | I15: 0 | J15: 0.14 | K15: 0 | L15: 0
B16: =IF(AND('فاتورة مبيعات'!$F$3=E16,'فاتورة مبيعات'!$D$3=D16),COUNTIFS($E$5:E16,E16,$D$5:D16,D16),"") ->  | I16: 0 | J16: 0.14 | K16: 0 | L16: 0
B17: =IF(AND('فاتورة مبيعات'!$F$3=E17,'فاتورة مبيعات'!$D$3=D17),COUNTIFS($E$5:E17,E17,$D$5:D17,D17),"") ->  | I17: 0 | J17: 0.14 | K17: 0 | L17: 0
B18: =IF(AND('فاتورة مبيعات'!$F$3=E18,'فاتورة مبيعات'!$D$3=D18),COUNTIFS($E$5:E18,E18,$D$5:D18,D18),"") ->  | I18: 0 | J18: 0.14 | K18: 0 | L18: 0
B19: =IF(AND('فاتورة مبيعات'!$F$3=E19,'فاتورة مبيعات'!$D$3=D19),COUNTIFS($E$5:E19,E19,$D$5:D19,D19),"") ->  | I19: 0 | J19: 0.14 | K19: 0 | L19: 0
B20: =IF(AND('فاتورة مبيعات'!$F$3=E20,'فاتورة مبيعات'!$D$3=D20),COUNTIFS($E$5:E20,E20,$D$5:D20,D20),"") ->  | I20: 0 | J20: 0.14 | K20: 0 | L20: 0
B21: =IF(AND('فاتورة مبيعات'!$F$3=E21,'فاتورة مبيعات'!$D$3=D21),COUNTIFS($E$5:E21,E21,$D$5:D21,D21),"") ->  | I21: 0 | J21: 0.14 | K21: 0 | L21: 0
B22: =IF(AND('فاتورة مبيعات'!$F$3=E22,'فاتورة مبيعات'!$D$3=D22),COUNTIFS($E$5:E22,E22,$D$5:D22,D22),"") ->  | I22: 0 | J22: 0.14 | K22: 0 | L22: 0
B23: =IF(AND('فاتورة مبيعات'!$F$3=E23,'فاتورة مبيعات'!$D$3=D23),COUNTIFS($E$5:E23,E23,$D$5:D23,D23),"") ->  | I23: 0 | J23: 0.14 | K23: 0 | L23: 0
B24: =IF(AND('فاتورة مبيعات'!$F$3=E24,'فاتورة مبيعات'!$D$3=D24),COUNTIFS($E$5:E24,E24,$D$5:D24,D24),"") ->  | I24: 0 | J24: 0.14 | K24: 0 | L24: 0
B25: =IF(AND('فاتورة مبيعات'!$F$3=E25,'فاتورة مبيعات'!$D$3=D25),COUNTIFS($E$5:E25,E25,$D$5:D25,D25),"") ->  | I25: 0 | J25: 0.14 | K25: 0 | L25: 0
B26: =IF(AND('فاتورة مبيعات'!$F$3=E26,'فاتورة مبيعات'!$D$3=D26),COUNTIFS($E$5:E26,E26,$D$5:D26,D26),"") ->  | I26: 0 | J26: 0.14 | K26: 0 | L26: 0
B27: =IF(AND('فاتورة مبيعات'!$F$3=E27,'فاتورة مبيعات'!$D$3=D27),COUNTIFS($E$5:E27,E27,$D$5:D27,D27),"") ->  | I27: 0 | J27: 0.14 | K27: 0 | L27: 0
B28: =IF(AND('فاتورة مبيعات'!$F$3=E28,'فاتورة مبيعات'!$D$3=D28),COUNTIFS($E$5:E28,E28,$D$5:D28,D28),"") ->  | I28: 0 | J28: 0.14 | K28: 0 | L28: 0
B29: =IF(AND('فاتورة مبيعات'!$F$3=E29,'فاتورة مبيعات'!$D$3=D29),COUNTIFS($E$5:E29,E29,$D$5:D29,D29),"") ->  | I29: 0 | J29: 0.14 | K29: 0 | L29: 0
B30: =IF(AND('فاتورة مبيعات'!$F$3=E30,'فاتورة مبيعات'!$D$3=D30),COUNTIFS($E$5:E30,E30,$D$5:D30,D30),"") ->  | I30: 0 | J30: 0.14 | K30: 0 | L30: 0
B31: =IF(AND('فاتورة مبيعات'!$F$3=E31,'فاتورة مبيعات'!$D$3=D31),COUNTIFS($E$5:E31,E31,$D$5:D31,D31),"") ->  | I31: 0 | J31: 0.14 | K31: 0 | L31: 0
B32: =IF(AND('فاتورة مبيعات'!$F$3=E32,'فاتورة مبيعات'!$D$3=D32),COUNTIFS($E$5:E32,E32,$D$5:D32,D32),"") ->  | I32: 0 | J32: 0.14 | K32: 0 | L32: 0
B33: =IF(AND('فاتورة مبيعات'!$F$3=E33,'فاتورة مبيعات'!$D$3=D33),COUNTIFS($E$5:E33,E33,$D$5:D33,D33),"") ->  | I33: 0 | J33: 0.14 | K33: 0 | L33: 0
B34: =IF(AND('فاتورة مبيعات'!$F$3=E34,'فاتورة مبيعات'!$D$3=D34),COUNTIFS($E$5:E34,E34,$D$5:D34,D34),"") ->  | I34: 0 | J34: 0.14 | K34: 0 | L34: 0
B35: =IF(AND('فاتورة مبيعات'!$F$3=E35,'فاتورة مبيعات'!$D$3=D35),COUNTIFS($E$5:E35,E35,$D$5:D35,D35),"") ->  | I35: 0 | J35: 0.14 | K35: 0 | L35: 0
B36: =IF(AND('فاتورة مبيعات'!$F$3=E36,'فاتورة مبيعات'!$D$3=D36),COUNTIFS($E$5:E36,E36,$D$5:D36,D36),"") ->  | I36: 0 | J36: 0.14 | K36: 0 | L36: 0
B37: =IF(AND('فاتورة مبيعات'!$F$3=E37,'فاتورة مبيعات'!$D$3=D37),COUNTIFS($E$5:E37,E37,$D$5:D37,D37),"") ->  | I37: =H37*G37 -> 0 | J37: 0.14 | K37: =I37*J37 -> 0 | L37: 0
B38: =IF(AND('فاتورة مبيعات'!$F$3=E38,'فاتورة مبيعات'!$D$3=D38),COUNTIFS($E$5:E38,E38,$D$5:D38,D38),"") ->  | I38: 0 | J38: 0.14 | K38: 0 | L38: 0
B39: =IF(AND('فاتورة مبيعات'!$F$3=E39,'فاتورة مبيعات'!$D$3=D39),COUNTIFS($E$5:E39,E39,$D$5:D39,D39),"") ->  | I39: 0 | J39: 0.14 | K39: 0 | L39: 0
B40: =IF(AND('فاتورة مبيعات'!$F$3=E40,'فاتورة مبيعات'!$D$3=D40),COUNTIFS($E$5:E40,E40,$D$5:D40,D40),"") ->  | I40: 0 | J40: 0.14 | K40: 0 | L40: 0
B41: =IF(AND('فاتورة مبيعات'!$F$3=E41,'فاتورة مبيعات'!$D$3=D41),COUNTIFS($E$5:E41,E41,$D$5:D41,D41),"") ->  | I41: 0 | J41: 0.14 | K41: 0 | L41: 0
B42: =IF(AND('فاتورة مبيعات'!$F$3=E42,'فاتورة مبيعات'!$D$3=D42),COUNTIFS($E$5:E42,E42,$D$5:D42,D42),"") ->  | I42: 0 | J42: 0.14 | K42: 0 | L42: 0
B43: =IF(AND('فاتورة مبيعات'!$F$3=E43,'فاتورة مبيعات'!$D$3=D43),COUNTIFS($E$5:E43,E43,$D$5:D43,D43),"") ->  | I43: 0 | J43: 0.14 | K43: 0 | L43: 0
B44: =IF(AND('فاتورة مبيعات'!$F$3=E44,'فاتورة مبيعات'!$D$3=D44),COUNTIFS($E$5:E44,E44,$D$5:D44,D44),"") ->  | I44: 0 | J44: 0.14 | K44: 0 | L44: 0
B45: =IF(AND('فاتورة مبيعات'!$F$3=E45,'فاتورة مبيعات'!$D$3=D45),COUNTIFS($E$5:E45,E45,$D$5:D45,D45),"") ->  | I45: 0 | J45: 0.14 | K45: 0 | L45: 0
B46: =IF(AND('فاتورة مبيعات'!$F$3=E46,'فاتورة مبيعات'!$D$3=D46),COUNTIFS($E$5:E46,E46,$D$5:D46,D46),"") ->  | I46: 0 | J46: 0.14 | K46: 0 | L46: 0
B47: =IF(AND('فاتورة مبيعات'!$F$3=E47,'فاتورة مبيعات'!$D$3=D47),COUNTIFS($E$5:E47,E47,$D$5:D47,D47),"") ->  | I47: 0 | J47: 0.14 | K47: 0 | L47: 0
B48: =IF(AND('فاتورة مبيعات'!$F$3=E48,'فاتورة مبيعات'!$D$3=D48),COUNTIFS($E$5:E48,E48,$D$5:D48,D48),"") ->  | I48: 0 | J48: 0.14 | K48: 0 | L48: 0
B49: =IF(AND('فاتورة مبيعات'!$F$3=E49,'فاتورة مبيعات'!$D$3=D49),COUNTIFS($E$5:E49,E49,$D$5:D49,D49),"") ->  | I49: 0 | J49: 0.14 | K49: 0 | L49: 0
B50: =IF(AND('فاتورة مبيعات'!$F$3=E50,'فاتورة مبيعات'!$D$3=D50),COUNTIFS($E$5:E50,E50,$D$5:D50,D50),"") ->  | I50: 0 | J50: 0.14 | K50: 0 | L50: 0
B51: =IF(AND('فاتورة مبيعات'!$F$3=E51,'فاتورة مبيعات'!$D$3=D51),COUNTIFS($E$5:E51,E51,$D$5:D51,D51),"") ->  | I51: 0 | J51: 0.14 | K51: 0 | L51: 0
B52: =IF(AND('فاتورة مبيعات'!$F$3=E52,'فاتورة مبيعات'!$D$3=D52),COUNTIFS($E$5:E52,E52,$D$5:D52,D52),"") ->  | I52: 0 | J52: 0.14 | K52: 0 | L52: 0
B53: =IF(AND('فاتورة مبيعات'!$F$3=E53,'فاتورة مبيعات'!$D$3=D53),COUNTIFS($E$5:E53,E53,$D$5:D53,D53),"") ->  | I53: 0 | J53: 0.14 | K53: 0 | L53: 0
B54: =IF(AND('فاتورة مبيعات'!$F$3=E54,'فاتورة مبيعات'!$D$3=D54),COUNTIFS($E$5:E54,E54,$D$5:D54,D54),"") ->  | I54: 0 | J54: 0.14 | K54: 0 | L54: 0
B55: =IF(AND('فاتورة مبيعات'!$F$3=E55,'فاتورة مبيعات'!$D$3=D55),COUNTIFS($E$5:E55,E55,$D$5:D55,D55),"") ->  | I55: 0 | J55: 0.14 | K55: 0 | L55: 0
B56: =IF(AND('فاتورة مبيعات'!$F$3=E56,'فاتورة مبيعات'!$D$3=D56),COUNTIFS($E$5:E56,E56,$D$5:D56,D56),"") ->  | I56: 0 | J56: 0.14 | K56: 0 | L56: 0
B57: =IF(AND('فاتورة مبيعات'!$F$3=E57,'فاتورة مبيعات'!$D$3=D57),COUNTIFS($E$5:E57,E57,$D$5:D57,D57),"") ->  | I57: 0 | J57: 0.14 | K57: 0 | L57: 0
B58: =IF(AND('فاتورة مبيعات'!$F$3=E58,'فاتورة مبيعات'!$D$3=D58),COUNTIFS($E$5:E58,E58,$D$5:D58,D58),"") ->  | I58: 0 | J58: 0.14 | K58: 0 | L58: 0
B59: =IF(AND('فاتورة مبيعات'!$F$3=E59,'فاتورة مبيعات'!$D$3=D59),COUNTIFS($E$5:E59,E59,$D$5:D59,D59),"") ->  | I59: 0 | J59: 0.14 | K59: 0 | L59: 0
B60: =IF(AND('فاتورة مبيعات'!$F$3=E60,'فاتورة مبيعات'!$D$3=D60),COUNTIFS($E$5:E60,E60,$D$5:D60,D60),"") ->  | I60: 0 | J60: 0.14 | K60: 0 | L60: 0
B61: =IF(AND('فاتورة مبيعات'!$F$3=E61,'فاتورة مبيعات'!$D$3=D61),COUNTIFS($E$5:E61,E61,$D$5:D61,D61),"") ->  | I61: 0 | J61: 0.14 | K61: 0 | L61: 0
B62: =IF(AND('فاتورة مبيعات'!$F$3=E62,'فاتورة مبيعات'!$D$3=D62),COUNTIFS($E$5:E62,E62,$D$5:D62,D62),"") ->  | I62: 0 | J62: 0.14 | K62: 0 | L62: 0
B63: =IF(AND('فاتورة مبيعات'!$F$3=E63,'فاتورة مبيعات'!$D$3=D63),COUNTIFS($E$5:E63,E63,$D$5:D63,D63),"") ->  | I63: 0 | J63: 0.14 | K63: 0 | L63: 0
B64: =IF(AND('فاتورة مبيعات'!$F$3=E64,'فاتورة مبيعات'!$D$3=D64),COUNTIFS($E$5:E64,E64,$D$5:D64,D64),"") ->  | I64: 0 | J64: 0.14 | K64: 0 | L64: 0
B65: =IF(AND('فاتورة مبيعات'!$F$3=E65,'فاتورة مبيعات'!$D$3=D65),COUNTIFS($E$5:E65,E65,$D$5:D65,D65),"") ->  | I65: 0 | J65: 0.14 | K65: 0 | L65: 0
B66: =IF(AND('فاتورة مبيعات'!$F$3=E66,'فاتورة مبيعات'!$D$3=D66),COUNTIFS($E$5:E66,E66,$D$5:D66,D66),"") ->  | I66: 0 | J66: 0.14 | K66: 0 | L66: 0
B67: =IF(AND('فاتورة مبيعات'!$F$3=E67,'فاتورة مبيعات'!$D$3=D67),COUNTIFS($E$5:E67,E67,$D$5:D67,D67),"") ->  | I67: 0 | J67: 0.14 | K67: 0 | L67: 0
B68: =IF(AND('فاتورة مبيعات'!$F$3=E68,'فاتورة مبيعات'!$D$3=D68),COUNTIFS($E$5:E68,E68,$D$5:D68,D68),"") ->  | I68: 0 | J68: 0.14 | K68: 0 | L68: 0
B69: =IF(AND('فاتورة مبيعات'!$F$3=E69,'فاتورة مبيعات'!$D$3=D69),COUNTIFS($E$5:E69,E69,$D$5:D69,D69),"") ->  | I69: =H69*G69 -> 0 | J69: 0.14 | K69: =I69*J69 -> 0 | L69: 0
B70: =IF(AND('فاتورة مبيعات'!$F$3=E70,'فاتورة مبيعات'!$D$3=D70),COUNTIFS($E$5:E70,E70,$D$5:D70,D70),"") ->  | I70: 0 | J70: 0.14 | K70: 0 | L70: 0
B71: =IF(AND('فاتورة مبيعات'!$F$3=E71,'فاتورة مبيعات'!$D$3=D71),COUNTIFS($E$5:E71,E71,$D$5:D71,D71),"") ->  | I71: 0 | J71: 0.14 | K71: 0 | L71: 0
B72: =IF(AND('فاتورة مبيعات'!$F$3=E72,'فاتورة مبيعات'!$D$3=D72),COUNTIFS($E$5:E72,E72,$D$5:D72,D72),"") ->  | I72: 0 | J72: 0.14 | K72: 0 | L72: =I72+K72 -> 0
B73: =IF(AND('فاتورة مبيعات'!$F$3=E73,'فاتورة مبيعات'!$D$3=D73),COUNTIFS($E$5:E73,E73,$D$5:D73,D73),"") ->  | I73: 0 | J73: 0.14 | K73: 0 | L73: 0
B74: =IF(AND('فاتورة مبيعات'!$F$3=E74,'فاتورة مبيعات'!$D$3=D74),COUNTIFS($E$5:E74,E74,$D$5:D74,D74),"") ->  | I74: 0 | J74: 0.14 | K74: 0 | L74: 0
B75: =IF(AND('فاتورة مبيعات'!$F$3=E75,'فاتورة مبيعات'!$D$3=D75),COUNTIFS($E$5:E75,E75,$D$5:D75,D75),"") ->  | I75: 0 | J75: 0.14 | K75: 0 | L75: 0
B76: =IF(AND('فاتورة مبيعات'!$F$3=E76,'فاتورة مبيعات'!$D$3=D76),COUNTIFS($E$5:E76,E76,$D$5:D76,D76),"") ->  | I76: 0 | J76: 0.14 | K76: 0 | L76: 0
B77: =IF(AND('فاتورة مبيعات'!$F$3=E77,'فاتورة مبيعات'!$D$3=D77),COUNTIFS($E$5:E77,E77,$D$5:D77,D77),"") ->  | I77: 0 | J77: 0.14 | K77: 0 | L77: 0
B78: =IF(AND('فاتورة مبيعات'!$F$3=E78,'فاتورة مبيعات'!$D$3=D78),COUNTIFS($E$5:E78,E78,$D$5:D78,D78),"") ->  | I78: 0 | J78: 0.14 | K78: 0 | L78: 0
B79: =IF(AND('فاتورة مبيعات'!$F$3=E79,'فاتورة مبيعات'!$D$3=D79),COUNTIFS($E$5:E79,E79,$D$5:D79,D79),"") ->  | I79: 0 | J79: 0.14 | K79: 0 | L79: 0
B80: =IF(AND('فاتورة مبيعات'!$F$3=E80,'فاتورة مبيعات'!$D$3=D80),COUNTIFS($E$5:E80,E80,$D$5:D80,D80),"") ->  | I80: 0 | J80: 0.14 | K80: 0 | L80: 0
B81: =IF(AND('فاتورة مبيعات'!$F$3=E81,'فاتورة مبيعات'!$D$3=D81),COUNTIFS($E$5:E81,E81,$D$5:D81,D81),"") ->  | I81: 0 | J81: 0.14 | K81: 0 | L81: 0
B82: =IF(AND('فاتورة مبيعات'!$F$3=E82,'فاتورة مبيعات'!$D$3=D82),COUNTIFS($E$5:E82,E82,$D$5:D82,D82),"") ->  | I82: 0 | J82: 0.14 | K82: 0 | L82: 0
B83: =IF(AND('فاتورة مبيعات'!$F$3=E83,'فاتورة مبيعات'!$D$3=D83),COUNTIFS($E$5:E83,E83,$D$5:D83,D83),"") ->  | I83: 0 | J83: 0.14 | K83: 0 | L83: 0
B84: =IF(AND('فاتورة مبيعات'!$F$3=E84,'فاتورة مبيعات'!$D$3=D84),COUNTIFS($E$5:E84,E84,$D$5:D84,D84),"") ->  | I84: 0 | J84: 0.14 | K84: 0 | L84: 0
B85: =IF(AND('فاتورة مبيعات'!$F$3=E85,'فاتورة مبيعات'!$D$3=D85),COUNTIFS($E$5:E85,E85,$D$5:D85,D85),"") ->  | I85: 0 | J85: 0.14 | K85: 0 | L85: 0
B86: =IF(AND('فاتورة مبيعات'!$F$3=E86,'فاتورة مبيعات'!$D$3=D86),COUNTIFS($E$5:E86,E86,$D$5:D86,D86),"") ->  | I86: 0 | J86: 0.14 | K86: 0 | L86: 0
B87: =IF(AND('فاتورة مبيعات'!$F$3=E87,'فاتورة مبيعات'!$D$3=D87),COUNTIFS($E$5:E87,E87,$D$5:D87,D87),"") ->  | I87: 0 | J87: 0.14 | K87: 0 | L87: 0
B88: =IF(AND('فاتورة مبيعات'!$F$3=E88,'فاتورة مبيعات'!$D$3=D88),COUNTIFS($E$5:E88,E88,$D$5:D88,D88),"") ->  | I88: 0 | J88: 0.14 | K88: 0 | L88: 0
B89: =IF(AND('فاتورة مبيعات'!$F$3=E89,'فاتورة مبيعات'!$D$3=D89),COUNTIFS($E$5:E89,E89,$D$5:D89,D89),"") ->  | I89: 0 | J89: 0.14 | K89: 0 | L89: 0
B90: =IF(AND('فاتورة مبيعات'!$F$3=E90,'فاتورة مبيعات'!$D$3=D90),COUNTIFS($E$5:E90,E90,$D$5:D90,D90),"") ->  | I90: 0 | J90: 0.14 | K90: 0 | L90: 0
B91: =IF(AND('فاتورة مبيعات'!$F$3=E91,'فاتورة مبيعات'!$D$3=D91),COUNTIFS($E$5:E91,E91,$D$5:D91,D91),"") ->  | I91: 0 | J91: 0.14 | K91: 0 | L91: 0
B92: =IF(AND('فاتورة مبيعات'!$F$3=E92,'فاتورة مبيعات'!$D$3=D92),COUNTIFS($E$5:E92,E92,$D$5:D92,D92),"") ->  | I92: 0 | J92: 0.14 | K92: 0 | L92: 0
B93: =IF(AND('فاتورة مبيعات'!$F$3=E93,'فاتورة مبيعات'!$D$3=D93),COUNTIFS($E$5:E93,E93,$D$5:D93,D93),"") ->  | I93: 0 | J93: 0.14 | K93: 0 | L93: 0
B94: =IF(AND('فاتورة مبيعات'!$F$3=E94,'فاتورة مبيعات'!$D$3=D94),COUNTIFS($E$5:E94,E94,$D$5:D94,D94),"") ->  | I94: 0 | J94: 0.14 | K94: 0 | L94: 0
B95: =IF(AND('فاتورة مبيعات'!$F$3=E95,'فاتورة مبيعات'!$D$3=D95),COUNTIFS($E$5:E95,E95,$D$5:D95,D95),"") ->  | I95: 0 | J95: 0.14 | K95: 0 | L95: 0
B96: =IF(AND('فاتورة مبيعات'!$F$3=E96,'فاتورة مبيعات'!$D$3=D96),COUNTIFS($E$5:E96,E96,$D$5:D96,D96),"") ->  | I96: 0 | J96: 0.14 | K96: 0 | L96: 0
B97: =IF(AND('فاتورة مبيعات'!$F$3=E97,'فاتورة مبيعات'!$D$3=D97),COUNTIFS($E$5:E97,E97,$D$5:D97,D97),"") -> 
C98: الاجماليات | G98: =SUM(G5:G97) -> 22 | H98: =SUM(H5:H97) -> 205 | I98: =SUM(I5:I97) -> 2250 | K98: =SUM(K5:K97) -> 315 | L98: =SUM(L5:L97) -> 2565
C100: الاجماليات | G100: =SUBTOTAL(9,G5:G97) -> 22 | H100: =SUBTOTAL(9,H5:H97) -> 205 | I100: =SUBTOTAL(9,I5:I97) -> 2250 | K100: =SUBTOTAL(9,K5:K97) -> 315 | L100: =SUBTOTAL(9,L5:L97) -> 2565
E103: توقيع مدير المشروع
E104: الاسم :-
E105: التوقيع :-

Sheet 7
C4: مسلسل | D4: رقم الفاتورة | E4: تاريخ | F4: اسم العميل | G4: الكمية | H4: سعر | I4: قيمة | J4: ض.ق.م | K4: اجمالى المبيعات مضاف الضريبة | L4: اجمالى قيمة الضريبة
B5: =IF(AND('فاتورة مبيعات'!$F$3=E5,'فاتورة مبيعات'!$D$3=D5),COUNTIFS($E$5:E5,E5,$D$5:D5,D5),"") ->  | G5: 12 | H5: 100 | I5: =H5*G5 -> 1200 | J5: 0.14 | K5: =I5*J5 -> 168 | L5: =I5+K5 -> 1368
B6: =IF(AND('فاتورة مبيعات'!$F$3=E6,'فاتورة مبيعات'!$D$3=D6),COUNTIFS($E$5:E6,E6,$D$5:D6,D6),"") ->  | G6: 10 | H6: 105 | I6: 1050 | J6: 0.14 | K6: 147 | L6: =I6+K6 -> 1197
B7: =IF(AND('فاتورة مبيعات'!$F$3=E7,'فاتورة مبيعات'!$D$3=D7),COUNTIFS($E$5:E7,E7,$D$5:D7,D7),"") ->  | I7: 0 | J7: 0.14 | K7: 0 | L7: =I7+K7 -> 0
B8: =IF(AND('فاتورة مبيعات'!$F$3=E8,'فاتورة مبيعات'!$D$3=D8),COUNTIFS($E$5:E8,E8,$D$5:D8,D8),"") ->  | I8: 0 | J8: 0.14 | K8: 0 | L8: =I8+K8 -> 0
B9: =IF(AND('فاتورة مبيعات'!$F$3=E9,'فاتورة مبيعات'!$D$3=D9),COUNTIFS($E$5:E9,E9,$D$5:D9,D9),"") ->  | I9: 0 | J9: 0.14 | K9: 0 | L9: 0
B10: =IF(AND('فاتورة مبيعات'!$F$3=E10,'فاتورة مبيعات'!$D$3=D10),COUNTIFS($E$5:E10,E10,$D$5:D10,D10),"") ->  | I10: 0 | J10: 0.14 | K10: 0 | L10: 0
B11: =IF(AND('فاتورة مبيعات'!$F$3=E11,'فاتورة مبيعات'!$D$3=D11),COUNTIFS($E$5:E11,E11,$D$5:D11,D11),"") ->  | I11: 0 | J11: 0.14 | K11: 0 | L11: 0
B12: =IF(AND('فاتورة مبيعات'!$F$3=E12,'فاتورة مبيعات'!$D$3=D12),COUNTIFS($E$5:E12,E12,$D$5:D12,D12),"") ->  | I12: 0 | J12: 0.14 | K12: 0 | L12: 0
B13: =IF(AND('فاتورة مبيعات'!$F$3=E13,'فاتورة مبيعات'!$D$3=D13),COUNTIFS($E$5:E13,E13,$D$5:D13,D13),"") ->  | I13: 0 | J13: 0.14 | K13: 0 | L13: 0
B14: =IF(AND('فاتورة مبيعات'!$F$3=E14,'فاتورة مبيعات'!$D$3=D14),COUNTIFS($E$5:E14,E14,$D$5:D14,D14),"") ->  | I14: 0 | J14: 0.14 | K14: 0 | L14: 0
B15: =IF(AND('فاتورة مبيعات'!$F$3=E15,'فاتورة مبيعات'!$D$3=D15),COUNTIFS($E$5:E15,E15,$D$5:D15,D15),"") ->  | I15: 0 | J15: 0.14 | K15: 0 | L15: 0
B16: =IF(AND('فاتورة مبيعات'!$F$3=E16,'فاتورة مبيعات'!$D$3=D16),COUNTIFS($E$5:E16,E16,$D$5:D16,D16),"") ->  | I16: 0 | J16: 0.14 | K16: 0 | L16: 0
B17: =IF(AND('فاتورة مبيعات'!$F$3=E17,'فاتورة مبيعات'!$D$3=D17),COUNTIFS($E$5:E17,E17,$D$5:D17,D17),"") ->  | I17: 0 | J17: 0.14 | K17: 0 | L17: 0
B18: =IF(AND('فاتورة مبيعات'!$F$3=E18,'فاتورة مبيعات'!$D$3=D18),COUNTIFS($E$5:E18,E18,$D$5:D18,D18),"") ->  | I18: 0 | J18: 0.14 | K18: 0 | L18: 0
B19: =IF(AND('فاتورة مبيعات'!$F$3=E19,'فاتورة مبيعات'!$D$3=D19),COUNTIFS($E$5:E19,E19,$D$5:D19,D19),"") ->  | I19: 0 | J19: 0.14 | K19: 0 | L19: 0
B20: =IF(AND('فاتورة مبيعات'!$F$3=E20,'فاتورة مبيعات'!$D$3=D20),COUNTIFS($E$5:E20,E20,$D$5:D20,D20),"") ->  | I20: 0 | J20: 0.14 | K20: 0 | L20: 0
B21: =IF(AND('فاتورة مبيعات'!$F$3=E21,'فاتورة مبيعات'!$D$3=D21),COUNTIFS($E$5:E21,E21,$D$5:D21,D21),"") ->  | I21: 0 | J21: 0.14 | K21: 0 | L21: 0
B22: =IF(AND('فاتورة مبيعات'!$F$3=E22,'فاتورة مبيعات'!$D$3=D22),COUNTIFS($E$5:E22,E22,$D$5:D22,D22),"") ->  | I22: 0 | J22: 0.14 | K22: 0 | L22: 0
B23: =IF(AND('فاتورة مبيعات'!$F$3=E23,'فاتورة مبيعات'!$D$3=D23),COUNTIFS($E$5:E23,E23,$D$5:D23,D23),"") ->  | I23: 0 | J23: 0.14 | K23: 0 | L23: 0
B24: =IF(AND('فاتورة مبيعات'!$F$3=E24,'فاتورة مبيعات'!$D$3=D24),COUNTIFS($E$5:E24,E24,$D$5:D24,D24),"") ->  | I24: 0 | J24: 0.14 | K24: 0 | L24: 0
B25: =IF(AND('فاتورة مبيعات'!$F$3=E25,'فاتورة مبيعات'!$D$3=D25),COUNTIFS($E$5:E25,E25,$D$5:D25,D25),"") ->  | I25: 0 | J25: 0.14 | K25: 0 | L25: 0
B26: =IF(AND('فاتورة مبيعات'!$F$3=E26,'فاتورة مبيعات'!$D$3=D26),COUNTIFS($E$5:E26,E26,$D$5:D26,D26),"") ->  | I26: 0 | J26: 0.14 | K26: 0 | L26: 0
B27: =IF(AND('فاتورة مبيعات'!$F$3=E27,'فاتورة مبيعات'!$D$3=D27),COUNTIFS($E$5:E27,E27,$D$5:D27,D27),"") ->  | I27: 0 | J27: 0.14 | K27: 0 | L27: 0
B28: =IF(AND('فاتورة مبيعات'!$F$3=E28,'فاتورة مبيعات'!$D$3=D28),COUNTIFS($E$5:E28,E28,$D$5:D28,D28),"") ->  | I28: 0 | J28: 0.14 | K28: 0 | L28: 0
B29: =IF(AND('فاتورة مبيعات'!$F$3=E29,'فاتورة مبيعات'!$D$3=D29),COUNTIFS($E$5:E29,E29,$D$5:D29,D29),"") ->  | I29: 0 | J29: 0.14 | K29: 0 | L29: 0
B30: =IF(AND('فاتورة مبيعات'!$F$3=E30,'فاتورة مبيعات'!$D$3=D30),COUNTIFS($E$5:E30,E30,$D$5:D30,D30),"") ->  | I30: 0 | J30: 0.14 | K30: 0 | L30: 0
B31: =IF(AND('فاتورة مبيعات'!$F$3=E31,'فاتورة مبيعات'!$D$3=D31),COUNTIFS($E$5:E31,E31,$D$5:D31,D31),"") ->  | I31: 0 | J31: 0.14 | K31: 0 | L31: 0
B32: =IF(AND('فاتورة مبيعات'!$F$3=E32,'فاتورة مبيعات'!$D$3=D32),COUNTIFS($E$5:E32,E32,$D$5:D32,D32),"") ->  | I32: 0 | J32: 0.14 | K32: 0 | L32: 0
B33: =IF(AND('فاتورة مبيعات'!$F$3=E33,'فاتورة مبيعات'!$D$3=D33),COUNTIFS($E$5:E33,E33,$D$5:D33,D33),"") ->  | I33: 0 | J33: 0.14 | K33: 0 | L33: 0
B34: =IF(AND('فاتورة مبيعات'!$F$3=E34,'فاتورة مبيعات'!$D$3=D34),COUNTIFS($E$5:E34,E34,$D$5:D34,D34),"") ->  | I34: 0 | J34: 0.14 | K34: 0 | L34: 0
B35: =IF(AND('فاتورة مبيعات'!$F$3=E35,'فاتورة مبيعات'!$D$3=D35),COUNTIFS($E$5:E35,E35,$D$5:D35,D35),"") ->  | I35: 0 | J35: 0.14 | K35: 0 | L35: 0
B36: =IF(AND('فاتورة مبيعات'!$F$3=E36,'فاتورة مبيعات'!$D$3=D36),COUNTIFS($E$5:E36,E36,$D$5:D36,D36),"") ->  | I36: 0 | J36: 0.14 | K36: 0 | L36: 0
B37: =IF(AND('فاتورة مبيعات'!$F$3=E37,'فاتورة مبيعات'!$D$3=D37),COUNTIFS($E$5:E37,E37,$D$5:D37,D37),"") ->  | I37: =H37*G37 -> 0 | J37: 0.14 | K37: =I37*J37 -> 0 | L37: 0
B38: =IF(AND('فاتورة مبيعات'!$F$3=E38,'فاتورة مبيعات'!$D$3=D38),COUNTIFS($E$5:E38,E38,$D$5:D38,D38),"") ->  | I38: 0 | J38: 0.14 | K38: 0 | L38: 0
B39: =IF(AND('فاتورة مبيعات'!$F$3=E39,'فاتورة مبيعات'!$D$3=D39),COUNTIFS($E$5:E39,E39,$D$5:D39,D39),"") ->  | I39: 0 | J39: 0.14 | K39: 0 | L39: 0
B40: =IF(AND('فاتورة مبيعات'!$F$3=E40,'فاتورة مبيعات'!$D$3=D40),COUNTIFS($E$5:E40,E40,$D$5:D40,D40),"") ->  | I40: 0 | J40: 0.14 | K40: 0 | L40: 0
B41: =IF(AND('فاتورة مبيعات'!$F$3=E41,'فاتورة مبيعات'!$D$3=D41),COUNTIFS($E$5:E41,E41,$D$5:D41,D41),"") ->  | I41: 0 | J41: 0.14 | K41: 0 | L41: 0
B42: =IF(AND('فاتورة مبيعات'!$F$3=E42,'فاتورة مبيعات'!$D$3=D42),COUNTIFS($E$5:E42,E42,$D$5:D42,D42),"") ->  | I42: 0 | J42: 0.14 | K42: 0 | L42: 0
B43: =IF(AND('فاتورة مبيعات'!$F$3=E43,'فاتورة مبيعات'!$D$3=D43),COUNTIFS($E$5:E43,E43,$D$5:D43,D43),"") ->  | I43: 0 | J43: 0.14 | K43: 0 | L43: 0
B44: =IF(AND('فاتورة مبيعات'!$F$3=E44,'فاتورة مبيعات'!$D$3=D44),COUNTIFS($E$5:E44,E44,$D$5:D44,D44),"") ->  | I44: 0 | J44: 0.14 | K44: 0 | L44: 0
B45: =IF(AND('فاتورة مبيعات'!$F$3=E45,'فاتورة مبيعات'!$D$3=D45),COUNTIFS($E$5:E45,E45,$D$5:D45,D45),"") ->  | I45: 0 | J45: 0.14 | K45: 0 | L45: 0
B46: =IF(AND('فاتورة مبيعات'!$F$3=E46,'فاتورة مبيعات'!$D$3=D46),COUNTIFS($E$5:E46,E46,$D$5:D46,D46),"") ->  | I46: 0 | J46: 0.14 | K46: 0 | L46: 0
B47: =IF(AND('فاتورة مبيعات'!$F$3=E47,'فاتورة مبيعات'!$D$3=D47),COUNTIFS($E$5:E47,E47,$D$5:D47,D47),"") ->  | I47: 0 | J47: 0.14 | K47: 0 | L47: 0
B48: =IF(AND('فاتورة مبيعات'!$F$3=E48,'فاتورة مبيعات'!$D$3=D48),COUNTIFS($E$5:E48,E48,$D$5:D48,D48),"") ->  | I48: 0 | J48: 0.14 | K48: 0 | L48: 0
B49: =IF(AND('فاتورة مبيعات'!$F$3=E49,'فاتورة مبيعات'!$D$3=D49),COUNTIFS($E$5:E49,E49,$D$5:D49,D49),"") ->  | I49: 0 | J49: 0.14 | K49: 0 | L49: 0
B50: =IF(AND('فاتورة مبيعات'!$F$3=E50,'فاتورة مبيعات'!$D$3=D50),COUNTIFS($E$5:E50,E50,$D$5:D50,D50),"") ->  | I50: 0 | J50: 0.14 | K50: 0 | L50: 0
B51: =IF(AND('فاتورة مبيعات'!$F$3=E51,'فاتورة مبيعات'!$D$3=D51),COUNTIFS($E$5:E51,E51,$D$5:D51,D51),"") ->  | I51: 0 | J51: 0.14 | K51: 0 | L51: 0
B52: =IF(AND('فاتورة مبيعات'!$F$3=E52,'فاتورة مبيعات'!$D$3=D52),COUNTIFS($E$5:E52,E52,$D$5:D52,D52),"") ->  | I52: 0 | J52: 0.14 | K52: 0 | L52: 0
B53: =IF(AND('فاتورة مبيعات'!$F$3=E53,'فاتورة مبيعات'!$D$3=D53),COUNTIFS($E$5:E53,E53,$D$5:D53,D53),"") ->  | I53: 0 | J53: 0.14 | K53: 0 | L53: 0
B54: =IF(AND('فاتورة مبيعات'!$F$3=E54,'فاتورة مبيعات'!$D$3=D54),COUNTIFS($E$5:E54,E54,$D$5:D54,D54),"") ->  | I54: 0 | J54: 0.14 | K54: 0 | L54: 0
B55: =IF(AND('فاتورة مبيعات'!$F$3=E55,'فاتورة مبيعات'!$D$3=D55),COUNTIFS($E$5:E55,E55,$D$5:D55,D55),"") ->  | I55: 0 | J55: 0.14 | K55: 0 | L55: 0
B56: =IF(AND('فاتورة مبيعات'!$F$3=E56,'فاتورة مبيعات'!$D$3=D56),COUNTIFS($E$5:E56,E56,$D$5:D56,D56),"") ->  | I56: 0 | J56: 0.14 | K56: 0 | L56: 0
B57: =IF(AND('فاتورة مبيعات'!$F$3=E57,'فاتورة مبيعات'!$D$3=D57),COUNTIFS($E$5:E57,E57,$D$5:D57,D57),"") ->  | I57: 0 | J57: 0.14 | K57: 0 | L57: 0
B58: =IF(AND('فاتورة مبيعات'!$F$3=E58,'فاتورة مبيعات'!$D$3=D58),COUNTIFS($E$5:E58,E58,$D$5:D58,D58),"") ->  | I58: 0 | J58: 0.14 | K58: 0 | L58: 0
B59: =IF(AND('فاتورة مبيعات'!$F$3=E59,'فاتورة مبيعات'!$D$3=D59),COUNTIFS($E$5:E59,E59,$D$5:D59,D59),"") ->  | I59: 0 | J59: 0.14 | K59: 0 | L59: 0
B60: =IF(AND('فاتورة مبيعات'!$F$3=E60,'فاتورة مبيعات'!$D$3=D60),COUNTIFS($E$5:E60,E60,$D$5:D60,D60),"") ->  | I60: 0 | J60: 0.14 | K60: 0 | L60: 0
B61: =IF(AND('فاتورة مبيعات'!$F$3=E61,'فاتورة مبيعات'!$D$3=D61),COUNTIFS($E$5:E61,E61,$D$5:D61,D61),"") ->  | I61: 0 | J61: 0.14 | K61: 0 | L61: 0
B62: =IF(AND('فاتورة مبيعات'!$F$3=E62,'فاتورة مبيعات'!$D$3=D62),COUNTIFS($E$5:E62,E62,$D$5:D62,D62),"") ->  | I62: 0 | J62: 0.14 | K62: 0 | L62: 0
B63: =IF(AND('فاتورة مبيعات'!$F$3=E63,'فاتورة مبيعات'!$D$3=D63),COUNTIFS($E$5:E63,E63,$D$5:D63,D63),"") ->  | I63: 0 | J63: 0.14 | K63: 0 | L63: 0
B64: =IF(AND('فاتورة مبيعات'!$F$3=E64,'فاتورة مبيعات'!$D$3=D64),COUNTIFS($E$5:E64,E64,$D$5:D64,D64),"") ->  | I64: 0 | J64: 0.14 | K64: 0 | L64: 0
B65: =IF(AND('فاتورة مبيعات'!$F$3=E65,'فاتورة مبيعات'!$D$3=D65),COUNTIFS($E$5:E65,E65,$D$5:D65,D65),"") ->  | I65: 0 | J65: 0.14 | K65: 0 | L65: 0
B66: =IF(AND('فاتورة مبيعات'!$F$3=E66,'فاتورة مبيعات'!$D$3=D66),COUNTIFS($E$5:E66,E66,$D$5:D66,D66),"") ->  | I66: 0 | J66: 0.14 | K66: 0 | L66: 0
B67: =IF(AND('فاتورة مبيعات'!$F$3=E67,'فاتورة مبيعات'!$D$3=D67),COUNTIFS($E$5:E67,E67,$D$5:D67,D67),"") ->  | I67: 0 | J67: 0.14 | K67: 0 | L67: 0
B68: =IF(AND('فاتورة مبيعات'!$F$3=E68,'فاتورة مبيعات'!$D$3=D68),COUNTIFS($E$5:E68,E68,$D$5:D68,D68),"") ->  | I68: 0 | J68: 0.14 | K68: 0 | L68: 0
B69: =IF(AND('فاتورة مبيعات'!$F$3=E69,'فاتورة مبيعات'!$D$3=D69),COUNTIFS($E$5:E69,E69,$D$5:D69,D69),"") ->  | I69: =H69*G69 -> 0 | J69: 0.14 | K69: =I69*J69 -> 0 | L69: 0
B70: =IF(AND('فاتورة مبيعات'!$F$3=E70,'فاتورة مبيعات'!$D$3=D70),COUNTIFS($E$5:E70,E70,$D$5:D70,D70),"") ->  | I70: 0 | J70: 0.14 | K70: 0 | L70: 0
B71: =IF(AND('فاتورة مبيعات'!$F$3=E71,'فاتورة مبيعات'!$D$3=D71),COUNTIFS($E$5:E71,E71,$D$5:D71,D71),"") ->  | I71: 0 | J71: 0.14 | K71: 0 | L71: 0
B72: =IF(AND('فاتورة مبيعات'!$F$3=E72,'فاتورة مبيعات'!$D$3=D72),COUNTIFS($E$5:E72,E72,$D$5:D72,D72),"") ->  | I72: 0 | J72: 0.14 | K72: 0 | L72: =I72+K72 -> 0
B73: =IF(AND('فاتورة مبيعات'!$F$3=E73,'فاتورة مبيعات'!$D$3=D73),COUNTIFS($E$5:E73,E73,$D$5:D73,D73),"") ->  | I73: 0 | J73: 0.14 | K73: 0 | L73: 0
B74: =IF(AND('فاتورة مبيعات'!$F$3=E74,'فاتورة مبيعات'!$D$3=D74),COUNTIFS($E$5:E74,E74,$D$5:D74,D74),"") ->  | I74: 0 | J74: 0.14 | K74: 0 | L74: 0
B75: =IF(AND('فاتورة مبيعات'!$F$3=E75,'فاتورة مبيعات'!$D$3=D75),COUNTIFS($E$5:E75,E75,$D$5:D75,D75),"") ->  | I75: 0 | J75: 0.14 | K75: 0 | L75: 0
B76: =IF(AND('فاتورة مبيعات'!$F$3=E76,'فاتورة مبيعات'!$D$3=D76),COUNTIFS($E$5:E76,E76,$D$5:D76,D76),"") ->  | I76: 0 | J76: 0.14 | K76: 0 | L76: 0
B77: =IF(AND('فاتورة مبيعات'!$F$3=E77,'فاتورة مبيعات'!$D$3=D77),COUNTIFS($E$5:E77,E77,$D$5:D77,D77),"") ->  | I77: 0 | J77: 0.14 | K77: 0 | L77: 0
B78: =IF(AND('فاتورة مبيعات'!$F$3=E78,'فاتورة مبيعات'!$D$3=D78),COUNTIFS($E$5:E78,E78,$D$5:D78,D78),"") ->  | I78: 0 | J78: 0.14 | K78: 0 | L78: 0
B79: =IF(AND('فاتورة مبيعات'!$F$3=E79,'فاتورة مبيعات'!$D$3=D79),COUNTIFS($E$5:E79,E79,$D$5:D79,D79),"") ->  | I79: 0 | J79: 0.14 | K79: 0 | L79: 0
B80: =IF(AND('فاتورة مبيعات'!$F$3=E80,'فاتورة مبيعات'!$D$3=D80),COUNTIFS($E$5:E80,E80,$D$5:D80,D80),"") ->  | I80: 0 | J80: 0.14 | K80: 0 | L80: 0
B81: =IF(AND('فاتورة مبيعات'!$F$3=E81,'فاتورة مبيعات'!$D$3=D81),COUNTIFS($E$5:E81,E81,$D$5:D81,D81),"") ->  | I81: 0 | J81: 0.14 | K81: 0 | L81: 0
B82: =IF(AND('فاتورة مبيعات'!$F$3=E82,'فاتورة مبيعات'!$D$3=D82),COUNTIFS($E$5:E82,E82,$D$5:D82,D82),"") ->  | I82: 0 | J82: 0.14 | K82: 0 | L82: 0
B83: =IF(AND('فاتورة مبيعات'!$F$3=E83,'فاتورة مبيعات'!$D$3=D83),COUNTIFS($E$5:E83,E83,$D$5:D83,D83),"") ->  | I83: 0 | J83: 0.14 | K83: 0 | L83: 0
B84: =IF(AND('فاتورة مبيعات'!$F$3=E84,'فاتورة مبيعات'!$D$3=D84),COUNTIFS($E$5:E84,E84,$D$5:D84,D84),"") ->  | I84: 0 | J84: 0.14 | K84: 0 | L84: 0
B85: =IF(AND('فاتورة مبيعات'!$F$3=E85,'فاتورة مبيعات'!$D$3=D85),COUNTIFS($E$5:E85,E85,$D$5:D85,D85),"") ->  | I85: 0 | J85: 0.14 | K85: 0 | L85: 0
B86: =IF(AND('فاتورة مبيعات'!$F$3=E86,'فاتورة مبيعات'!$D$3=D86),COUNTIFS($E$5:E86,E86,$D$5:D86,D86),"") ->  | I86: 0 | J86: 0.14 | K86: 0 | L86: 0
B87: =IF(AND('فاتورة مبيعات'!$F$3=E87,'فاتورة مبيعات'!$D$3=D87),COUNTIFS($E$5:E87,E87,$D$5:D87,D87),"") ->  | I87: 0 | J87: 0.14 | K87: 0 | L87: 0
B88: =IF(AND('فاتورة مبيعات'!$F$3=E88,'فاتورة مبيعات'!$D$3=D88),COUNTIFS($E$5:E88,E88,$D$5:D88,D88),"") ->  | I88: 0 | J88: 0.14 | K88: 0 | L88: 0
B89: =IF(AND('فاتورة مبيعات'!$F$3=E89,'فاتورة مبيعات'!$D$3=D89),COUNTIFS($E$5:E89,E89,$D$5:D89,D89),"") ->  | I89: 0 | J89: 0.14 | K89: 0 | L89: 0
B90: =IF(AND('فاتورة مبيعات'!$F$3=E90,'فاتورة مبيعات'!$D$3=D90),COUNTIFS($E$5:E90,E90,$D$5:D90,D90),"") ->  | I90: 0 | J90: 0.14 | K90: 0 | L90: 0
B91: =IF(AND('فاتورة مبيعات'!$F$3=E91,'فاتورة مبيعات'!$D$3=D91),COUNTIFS($E$5:E91,E91,$D$5:D91,D91),"") ->  | I91: 0 | J91: 0.14 | K91: 0 | L91: 0
B92: =IF(AND('فاتورة مبيعات'!$F$3=E92,'فاتورة مبيعات'!$D$3=D92),COUNTIFS($E$5:E92,E92,$D$5:D92,D92),"") ->  | I92: 0 | J92: 0.14 | K92: 0 | L92: 0
B93: =IF(AND('فاتورة مبيعات'!$F$3=E93,'فاتورة مبيعات'!$D$3=D93),COUNTIFS($E$5:E93,E93,$D$5:D93,D93),"") ->  | I93: 0 | J93: 0.14 | K93: 0 | L93: 0
B94: =IF(AND('فاتورة مبيعات'!$F$3=E94,'فاتورة مبيعات'!$D$3=D94),COUNTIFS($E$5:E94,E94,$D$5:D94,D94),"") ->  | I94: 0 | J94: 0.14 | K94: 0 | L94: 0
B95: =IF(AND('فاتورة مبيعات'!$F$3=E95,'فاتورة مبيعات'!$D$3=D95),COUNTIFS($E$5:E95,E95,$D$5:D95,D95),"") ->  | I95: 0 | J95: 0.14 | K95: 0 | L95: 0
B96: =IF(AND('فاتورة مبيعات'!$F$3=E96,'فاتورة مبيعات'!$D$3=D96),COUNTIFS($E$5:E96,E96,$D$5:D96,D96),"") ->  | I96: 0 | J96: 0.14 | K96: 0 | L96: 0
B97: =IF(AND('فاتورة مبيعات'!$F$3=E97,'فاتورة مبيعات'!$D$3=D97),COUNTIFS($E$5:E97,E97,$D$5:D97,D97),"") -> 
C98: الاجماليات | G98: =SUM(G5:G97) -> 22 | H98: =SUM(H5:H97) -> 205 | I98: =SUM(I5:I97) -> 2250 | K98: =SUM(K5:K97) -> 315 | L98: =SUM(L5:L97) -> 2565
C100: الاجماليات | G100: =SUBTOTAL(9,G5:G97) -> 22 | H100: =SUBTOTAL(9,H5:H97) -> 205 | I100: =SUBTOTAL(9,I5:I97) -> 2250 | K100: =SUBTOTAL(9,K5:K97) -> 315 | L100: =SUBTOTAL(9,L5:L97) -> 2565
E103: توقيع مدير المشروع
E104: الاسم :-
E105: التوقيع :-

Sheet 8
C4: مسلسل | D4: رقم الفاتورة | E4: تاريخ | F4: اسم العميل | G4: الكمية | H4: سعر | I4: قيمة | J4: ض.ق.م | K4: اجمالى المبيعات مضاف الضريبة | L4: اجمالى قيمة الضريبة
B5: =IF(AND('فاتورة مبيعات'!$F$3=E5,'فاتورة مبيعات'!$D$3=D5),COUNTIFS($E$5:E5,E5,$D$5:D5,D5),"") ->  | G5: 12 | H5: 100 | I5: =H5*G5 -> 1200 | J5: 0.14 | K5: =I5*J5 -> 168 | L5: =I5+K5 -> 1368
B6: =IF(AND('فاتورة مبيعات'!$F$3=E6,'فاتورة مبيعات'!$D$3=D6),COUNTIFS($E$5:E6,E6,$D$5:D6,D6),"") ->  | G6: 10 | H6: 105 | I6: 1050 | J6: 0.14 | K6: 147 | L6: =I6+K6 -> 1197
B7: =IF(AND('فاتورة مبيعات'!$F$3=E7,'فاتورة مبيعات'!$D$3=D7),COUNTIFS($E$5:E7,E7,$D$5:D7,D7),"") ->  | I7: 0 | J7: 0.14 | K7: 0 | L7: =I7+K7 -> 0
B8: =IF(AND('فاتورة مبيعات'!$F$3=E8,'فاتورة مبيعات'!$D$3=D8),COUNTIFS($E$5:E8,E8,$D$5:D8,D8),"") ->  | I8: 0 | J8: 0.14 | K8: 0 | L8: =I8+K8 -> 0
B9: =IF(AND('فاتورة مبيعات'!$F$3=E9,'فاتورة مبيعات'!$D$3=D9),COUNTIFS($E$5:E9,E9,$D$5:D9,D9),"") ->  | I9: 0 | J9: 0.14 | K9: 0 | L9: 0
B10: =IF(AND('فاتورة مبيعات'!$F$3=E10,'فاتورة مبيعات'!$D$3=D10),COUNTIFS($E$5:E10,E10,$D$5:D10,D10),"") ->  | I10: 0 | J10: 0.14 | K10: 0 | L10: 0
B11: =IF(AND('فاتورة مبيعات'!$F$3=E11,'فاتورة مبيعات'!$D$3=D11),COUNTIFS($E$5:E11,E11,$D$5:D11,D11),"") ->  | I11: 0 | J11: 0.14 | K11: 0 | L11: 0
B12: =IF(AND('فاتورة مبيعات'!$F$3=E12,'فاتورة مبيعات'!$D$3=D12),COUNTIFS($E$5:E12,E12,$D$5:D12,D12),"") ->  | I12: 0 | J12: 0.14 | K12: 0 | L12: 0
B13: =IF(AND('فاتورة مبيعات'!$F$3=E13,'فاتورة مبيعات'!$D$3=D13),COUNTIFS($E$5:E13,E13,$D$5:D13,D13),"") ->  | I13: 0 | J13: 0.14 | K13: 0 | L13: 0
B14: =IF(AND('فاتورة مبيعات'!$F$3=E14,'فاتورة مبيعات'!$D$3=D14),COUNTIFS($E$5:E14,E14,$D$5:D14,D14),"") ->  | I14: 0 | J14: 0.14 | K14: 0 | L14: 0
B15: =IF(AND('فاتورة مبيعات'!$F$3=E15,'فاتورة مبيعات'!$D$3=D15),COUNTIFS($E$5:E15,E15,$D$5:D15,D15),"") ->  | I15: 0 | J15: 0.14 | K15: 0 | L15: 0
B16: =IF(AND('فاتورة مبيعات'!$F$3=E16,'فاتورة مبيعات'!$D$3=D16),COUNTIFS($E$5:E16,E16,$D$5:D16,D16),"") ->  | I16: 0 | J16: 0.14 | K16: 0 | L16: 0
B17: =IF(AND('فاتورة مبيعات'!$F$3=E17,'فاتورة مبيعات'!$D$3=D17),COUNTIFS($E$5:E17,E17,$D$5:D17,D17),"") ->  | I17: 0 | J17: 0.14 | K17: 0 | L17: 0
B18: =IF(AND('فاتورة مبيعات'!$F$3=E18,'فاتورة مبيعات'!$D$3=D18),COUNTIFS($E$5:E18,E18,$D$5:D18,D18),"") ->  | I18: 0 | J18: 0.14 | K18: 0 | L18: 0
B19: =IF(AND('فاتورة مبيعات'!$F$3=E19,'فاتورة مبيعات'!$D$3=D19),COUNTIFS($E$5:E19,E19,$D$5:D19,D19),"") ->  | I19: 0 | J19: 0.14 | K19: 0 | L19: 0
B20: =IF(AND('فاتورة مبيعات'!$F$3=E20,'فاتورة مبيعات'!$D$3=D20),COUNTIFS($E$5:E20,E20,$D$5:D20,D20),"") ->  | I20: 0 | J20: 0.14 | K20: 0 | L20: 0
B21: =IF(AND('فاتورة مبيعات'!$F$3=E21,'فاتورة مبيعات'!$D$3=D21),COUNTIFS($E$5:E21,E21,$D$5:D21,D21),"") ->  | I21: 0 | J21: 0.14 | K21: 0 | L21: 0
B22: =IF(AND('فاتورة مبيعات'!$F$3=E22,'فاتورة مبيعات'!$D$3=D22),COUNTIFS($E$5:E22,E22,$D$5:D22,D22),"") ->  | I22: 0 | J22: 0.14 | K22: 0 | L22: 0
B23: =IF(AND('فاتورة مبيعات'!$F$3=E23,'فاتورة مبيعات'!$D$3=D23),COUNTIFS($E$5:E23,E23,$D$5:D23,D23),"") ->  | I23: 0 | J23: 0.14 | K23: 0 | L23: 0
B24: =IF(AND('فاتورة مبيعات'!$F$3=E24,'فاتورة مبيعات'!$D$3=D24),COUNTIFS($E$5:E24,E24,$D$5:D24,D24),"") ->  | I24: 0 | J24: 0.14 | K24: 0 | L24: 0
B25: =IF(AND('فاتورة مبيعات'!$F$3=E25,'فاتورة مبيعات'!$D$3=D25),COUNTIFS($E$5:E25,E25,$D$5:D25,D25),"") ->  | I25: 0 | J25: 0.14 | K25: 0 | L25: 0
B26: =IF(AND('فاتورة مبيعات'!$F$3=E26,'فاتورة مبيعات'!$D$3=D26),COUNTIFS($E$5:E26,E26,$D$5:D26,D26),"") ->  | I26: 0 | J26: 0.14 | K26: 0 | L26: 0
B27: =IF(AND('فاتورة مبيعات'!$F$3=E27,'فاتورة مبيعات'!$D$3=D27),COUNTIFS($E$5:E27,E27,$D$5:D27,D27),"") ->  | I27: 0 | J27: 0.14 | K27: 0 | L27: 0
B28: =IF(AND('فاتورة مبيعات'!$F$3=E28,'فاتورة مبيعات'!$D$3=D28),COUNTIFS($E$5:E28,E28,$D$5:D28,D28),"") ->  | I28: 0 | J28: 0.14 | K28: 0 | L28: 0
B29: =IF(AND('فاتورة مبيعات'!$F$3=E29,'فاتورة مبيعات'!$D$3=D29),COUNTIFS($E$5:E29,E29,$D$5:D29,D29),"") ->  | I29: 0 | J29: 0.14 | K29: 0 | L29: 0
B30: =IF(AND('فاتورة مبيعات'!$F$3=E30,'فاتورة مبيعات'!$D$3=D30),COUNTIFS($E$5:E30,E30,$D$5:D30,D30),"") ->  | I30: 0 | J30: 0.14 | K30: 0 | L30: 0
B31: =IF(AND('فاتورة مبيعات'!$F$3=E31,'فاتورة مبيعات'!$D$3=D31),COUNTIFS($E$5:E31,E31,$D$5:D31,D31),"") ->  | I31: 0 | J31: 0.14 | K31: 0 | L31: 0
B32: =IF(AND('فاتورة مبيعات'!$F$3=E32,'فاتورة مبيعات'!$D$3=D32),COUNTIFS($E$5:E32,E32,$D$5:D32,D32),"") ->  | I32: 0 | J32: 0.14 | K32: 0 | L32: 0
B33: =IF(AND('فاتورة مبيعات'!$F$3=E33,'فاتورة مبيعات'!$D$3=D33),COUNTIFS($E$5:E33,E33,$D$5:D33,D33),"") ->  | I33: 0 | J33: 0.14 | K33: 0 | L33: 0
B34: =IF(AND('فاتورة مبيعات'!$F$3=E34,'فاتورة مبيعات'!$D$3=D34),COUNTIFS($E$5:E34,E34,$D$5:D34,D34),"") ->  | I34: 0 | J34: 0.14 | K34: 0 | L34: 0
B35: =IF(AND('فاتورة مبيعات'!$F$3=E35,'فاتورة مبيعات'!$D$3=D35),COUNTIFS($E$5:E35,E35,$D$5:D35,D35),"") ->  | I35: 0 | J35: 0.14 | K35: 0 | L35: 0
B36: =IF(AND('فاتورة مبيعات'!$F$3=E36,'فاتورة مبيعات'!$D$3=D36),COUNTIFS($E$5:E36,E36,$D$5:D36,D36),"") ->  | I36: 0 | J36: 0.14 | K36: 0 | L36: 0
B37: =IF(AND('فاتورة مبيعات'!$F$3=E37,'فاتورة مبيعات'!$D$3=D37),COUNTIFS($E$5:E37,E37,$D$5:D37,D37),"") ->  | I37: =H37*G37 -> 0 | J37: 0.14 | K37: =I37*J37 -> 0 | L37: 0
B38: =IF(AND('فاتورة مبيعات'!$F$3=E38,'فاتورة مبيعات'!$D$3=D38),COUNTIFS($E$5:E38,E38,$D$5:D38,D38),"") ->  | I38: 0 | J38: 0.14 | K38: 0 | L38: 0
B39: =IF(AND('فاتورة مبيعات'!$F$3=E39,'فاتورة مبيعات'!$D$3=D39),COUNTIFS($E$5:E39,E39,$D$5:D39,D39),"") ->  | I39: 0 | J39: 0.14 | K39: 0 | L39: 0
B40: =IF(AND('فاتورة مبيعات'!$F$3=E40,'فاتورة مبيعات'!$D$3=D40),COUNTIFS($E$5:E40,E40,$D$5:D40,D40),"") ->  | I40: 0 | J40: 0.14 | K40: 0 | L40: 0
B41: =IF(AND('فاتورة مبيعات'!$F$3=E41,'فاتورة مبيعات'!$D$3=D41),COUNTIFS($E$5:E41,E41,$D$5:D41,D41),"") ->  | I41: 0 | J41: 0.14 | K41: 0 | L41: 0
B42: =IF(AND('فاتورة مبيعات'!$F$3=E42,'فاتورة مبيعات'!$D$3=D42),COUNTIFS($E$5:E42,E42,$D$5:D42,D42),"") ->  | I42: 0 | J42: 0.14 | K42: 0 | L42: 0
B43: =IF(AND('فاتورة مبيعات'!$F$3=E43,'فاتورة مبيعات'!$D$3=D43),COUNTIFS($E$5:E43,E43,$D$5:D43,D43),"") ->  | I43: 0 | J43: 0.14 | K43: 0 | L43: 0
B44: =IF(AND('فاتورة مبيعات'!$F$3=E44,'فاتورة مبيعات'!$D$3=D44),COUNTIFS($E$5:E44,E44,$D$5:D44,D44),"") ->  | I44: 0 | J44: 0.14 | K44: 0 | L44: 0
B45: =IF(AND('فاتورة مبيعات'!$F$3=E45,'فاتورة مبيعات'!$D$3=D45),COUNTIFS($E$5:E45,E45,$D$5:D45,D45),"") ->  | I45: 0 | J45: 0.14 | K45: 0 | L45: 0
B46: =IF(AND('فاتورة مبيعات'!$F$3=E46,'فاتورة مبيعات'!$D$3=D46),COUNTIFS($E$5:E46,E46,$D$5:D46,D46),"") ->  | I46: 0 | J46: 0.14 | K46: 0 | L46: 0
B47: =IF(AND('فاتورة مبيعات'!$F$3=E47,'فاتورة مبيعات'!$D$3=D47),COUNTIFS($E$5:E47,E47,$D$5:D47,D47),"") ->  | I47: 0 | J47: 0.14 | K47: 0 | L47: 0
B48: =IF(AND('فاتورة مبيعات'!$F$3=E48,'فاتورة مبيعات'!$D$3=D48),COUNTIFS($E$5:E48,E48,$D$5:D48,D48),"") ->  | I48: 0 | J48: 0.14 | K48: 0 | L48: 0
B49: =IF(AND('فاتورة مبيعات'!$F$3=E49,'فاتورة مبيعات'!$D$3=D49),COUNTIFS($E$5:E49,E49,$D$5:D49,D49),"") ->  | I49: 0 | J49: 0.14 | K49: 0 | L49: 0
B50: =IF(AND('فاتورة مبيعات'!$F$3=E50,'فاتورة مبيعات'!$D$3=D50),COUNTIFS($E$5:E50,E50,$D$5:D50,D50),"") ->  | I50: 0 | J50: 0.14 | K50: 0 | L50: 0
B51: =IF(AND('فاتورة مبيعات'!$F$3=E51,'فاتورة مبيعات'!$D$3=D51),COUNTIFS($E$5:E51,E51,$D$5:D51,D51),"") ->  | I51: 0 | J51: 0.14 | K51: 0 | L51: 0
B52: =IF(AND('فاتورة مبيعات'!$F$3=E52,'فاتورة مبيعات'!$D$3=D52),COUNTIFS($E$5:E52,E52,$D$5:D52,D52),"") ->  | I52: 0 | J52: 0.14 | K52: 0 | L52: 0
B53: =IF(AND('فاتورة مبيعات'!$F$3=E53,'فاتورة مبيعات'!$D$3=D53),COUNTIFS($E$5:E53,E53,$D$5:D53,D53),"") ->  | I53: 0 | J53: 0.14 | K53: 0 | L53: 0
B54: =IF(AND('فاتورة مبيعات'!$F$3=E54,'فاتورة مبيعات'!$D$3=D54),COUNTIFS($E$5:E54,E54,$D$5:D54,D54),"") ->  | I54: 0 | J54: 0.14 | K54: 0 | L54: 0
B55: =IF(AND('فاتورة مبيعات'!$F$3=E55,'فاتورة مبيعات'!$D$3=D55),COUNTIFS($E$5:E55,E55,$D$5:D55,D55),"") ->  | I55: 0 | J55: 0.14 | K55: 0 | L55: 0
B56: =IF(AND('فاتورة مبيعات'!$F$3=E56,'فاتورة مبيعات'!$D$3=D56),COUNTIFS($E$5:E56,E56,$D$5:D56,D56),"") ->  | I56: 0 | J56: 0.14 | K56: 0 | L56: 0
B57: =IF(AND('فاتورة مبيعات'!$F$3=E57,'فاتورة مبيعات'!$D$3=D57),COUNTIFS($E$5:E57,E57,$D$5:D57,D57),"") ->  | I57: 0 | J57: 0.14 | K57: 0 | L57: 0
B58: =IF(AND('فاتورة مبيعات'!$F$3=E58,'فاتورة مبيعات'!$D$3=D58),COUNTIFS($E$5:E58,E58,$D$5:D58,D58),"") ->  | I58: 0 | J58: 0.14 | K58: 0 | L58: 0
B59: =IF(AND('فاتورة مبيعات'!$F$3=E59,'فاتورة مبيعات'!$D$3=D59),COUNTIFS($E$5:E59,E59,$D$5:D59,D59),"") ->  | I59: 0 | J59: 0.14 | K59: 0 | L59: 0
B60: =IF(AND('فاتورة مبيعات'!$F$3=E60,'فاتورة مبيعات'!$D$3=D60),COUNTIFS($E$5:E60,E60,$D$5:D60,D60),"") ->  | I60: 0 | J60: 0.14 | K60: 0 | L60: 0
B61: =IF(AND('فاتورة مبيعات'!$F$3=E61,'فاتورة مبيعات'!$D$3=D61),COUNTIFS($E$5:E61,E61,$D$5:D61,D61),"") ->  | I61: 0 | J61: 0.14 | K61: 0 | L61: 0
B62: =IF(AND('فاتورة مبيعات'!$F$3=E62,'فاتورة مبيعات'!$D$3=D62),COUNTIFS($E$5:E62,E62,$D$5:D62,D62),"") ->  | I62: 0 | J62: 0.14 | K62: 0 | L62: 0
B63: =IF(AND('فاتورة مبيعات'!$F$3=E63,'فاتورة مبيعات'!$D$3=D63),COUNTIFS($E$5:E63,E63,$D$5:D63,D63),"") ->  | I63: 0 | J63: 0.14 | K63: 0 | L63: 0
B64: =IF(AND('فاتورة مبيعات'!$F$3=E64,'فاتورة مبيعات'!$D$3=D64),COUNTIFS($E$5:E64,E64,$D$5:D64,D64),"") ->  | I64: 0 | J64: 0.14 | K64: 0 | L64: 0
B65: =IF(AND('فاتورة مبيعات'!$F$3=E65,'فاتورة مبيعات'!$D$3=D65),COUNTIFS($E$5:E65,E65,$D$5:D65,D65),"") ->  | I65: 0 | J65: 0.14 | K65: 0 | L65: 0
B66: =IF(AND('فاتورة مبيعات'!$F$3=E66,'فاتورة مبيعات'!$D$3=D66),COUNTIFS($E$5:E66,E66,$D$5:D66,D66),"") ->  | I66: 0 | J66: 0.14 | K66: 0 | L66: 0
B67: =IF(AND('فاتورة مبيعات'!$F$3=E67,'فاتورة مبيعات'!$D$3=D67),COUNTIFS($E$5:E67,E67,$D$5:D67,D67),"") ->  | I67: 0 | J67: 0.14 | K67: 0 | L67: 0
B68: =IF(AND('فاتورة مبيعات'!$F$3=E68,'فاتورة مبيعات'!$D$3=D68),COUNTIFS($E$5:E68,E68,$D$5:D68,D68),"") ->  | I68: 0 | J68: 0.14 | K68: 0 | L68: 0
B69: =IF(AND('فاتورة مبيعات'!$F$3=E69,'فاتورة مبيعات'!$D$3=D69),COUNTIFS($E$5:E69,E69,$D$5:D69,D69),"") ->  | I69: =H69*G69 -> 0 | J69: 0.14 | K69: =I69*J69 -> 0 | L69: 0
B70: =IF(AND('فاتورة مبيعات'!$F$3=E70,'فاتورة مبيعات'!$D$3=D70),COUNTIFS($E$5:E70,E70,$D$5:D70,D70),"") ->  | I70: 0 | J70: 0.14 | K70: 0 | L70: 0
B71: =IF(AND('فاتورة مبيعات'!$F$3=E71,'فاتورة مبيعات'!$D$3=D71),COUNTIFS($E$5:E71,E71,$D$5:D71,D71),"") ->  | I71: 0 | J71: 0.14 | K71: 0 | L71: 0
B72: =IF(AND('فاتورة مبيعات'!$F$3=E72,'فاتورة مبيعات'!$D$3=D72),COUNTIFS($E$5:E72,E72,$D$5:D72,D72),"") ->  | I72: 0 | J72: 0.14 | K72: 0 | L72: =I72+K72 -> 0
B73: =IF(AND('فاتورة مبيعات'!$F$3=E73,'فاتورة مبيعات'!$D$3=D73),COUNTIFS($E$5:E73,E73,$D$5:D73,D73),"") ->  | I73: 0 | J73: 0.14 | K73: 0 | L73: 0
B74: =IF(AND('فاتورة مبيعات'!$F$3=E74,'فاتورة مبيعات'!$D$3=D74),COUNTIFS($E$5:E74,E74,$D$5:D74,D74),"") ->  | I74: 0 | J74: 0.14 | K74: 0 | L74: 0
B75: =IF(AND('فاتورة مبيعات'!$F$3=E75,'فاتورة مبيعات'!$D$3=D75),COUNTIFS($E$5:E75,E75,$D$5:D75,D75),"") ->  | I75: 0 | J75: 0.14 | K75: 0 | L75: 0
B76: =IF(AND('فاتورة مبيعات'!$F$3=E76,'فاتورة مبيعات'!$D$3=D76),COUNTIFS($E$5:E76,E76,$D$5:D76,D76),"") ->  | I76: 0 | J76: 0.14 | K76: 0 | L76: 0
B77: =IF(AND('فاتورة مبيعات'!$F$3=E77,'فاتورة مبيعات'!$D$3=D77),COUNTIFS($E$5:E77,E77,$D$5:D77,D77),"") ->  | I77: 0 | J77: 0.14 | K77: 0 | L77: 0
B78: =IF(AND('فاتورة مبيعات'!$F$3=E78,'فاتورة مبيعات'!$D$3=D78),COUNTIFS($E$5:E78,E78,$D$5:D78,D78),"") ->  | I78: 0 | J78: 0.14 | K78: 0 | L78: 0
B79: =IF(AND('فاتورة مبيعات'!$F$3=E79,'فاتورة مبيعات'!$D$3=D79),COUNTIFS($E$5:E79,E79,$D$5:D79,D79),"") ->  | I79: 0 | J79: 0.14 | K79: 0 | L79: 0
B80: =IF(AND('فاتورة مبيعات'!$F$3=E80,'فاتورة مبيعات'!$D$3=D80),COUNTIFS($E$5:E80,E80,$D$5:D80,D80),"") ->  | I80: 0 | J80: 0.14 | K80: 0 | L80: 0
B81: =IF(AND('فاتورة مبيعات'!$F$3=E81,'فاتورة مبيعات'!$D$3=D81),COUNTIFS($E$5:E81,E81,$D$5:D81,D81),"") ->  | I81: 0 | J81: 0.14 | K81: 0 | L81: 0
B82: =IF(AND('فاتورة مبيعات'!$F$3=E82,'فاتورة مبيعات'!$D$3=D82),COUNTIFS($E$5:E82,E82,$D$5:D82,D82),"") ->  | I82: 0 | J82: 0.14 | K82: 0 | L82: 0
B83: =IF(AND('فاتورة مبيعات'!$F$3=E83,'فاتورة مبيعات'!$D$3=D83),COUNTIFS($E$5:E83,E83,$D$5:D83,D83),"") ->  | I83: 0 | J83: 0.14 | K83: 0 | L83: 0
B84: =IF(AND('فاتورة مبيعات'!$F$3=E84,'فاتورة مبيعات'!$D$3=D84),COUNTIFS($E$5:E84,E84,$D$5:D84,D84),"") ->  | I84: 0 | J84: 0.14 | K84: 0 | L84: 0
B85: =IF(AND('فاتورة مبيعات'!$F$3=E85,'فاتورة مبيعات'!$D$3=D85),COUNTIFS($E$5:E85,E85,$D$5:D85,D85),"") ->  | I85: 0 | J85: 0.14 | K85: 0 | L85: 0
B86: =IF(AND('فاتورة مبيعات'!$F$3=E86,'فاتورة مبيعات'!$D$3=D86),COUNTIFS($E$5:E86,E86,$D$5:D86,D86),"") ->  | I86: 0 | J86: 0.14 | K86: 0 | L86: 0
B87: =IF(AND('فاتورة مبيعات'!$F$3=E87,'فاتورة مبيعات'!$D$3=D87),COUNTIFS($E$5:E87,E87,$D$5:D87,D87),"") ->  | I87: 0 | J87: 0.14 | K87: 0 | L87: 0
B88: =IF(AND('فاتورة مبيعات'!$F$3=E88,'فاتورة مبيعات'!$D$3=D88),COUNTIFS($E$5:E88,E88,$D$5:D88,D88),"") ->  | I88: 0 | J88: 0.14 | K88: 0 | L88: 0
B89: =IF(AND('فاتورة مبيعات'!$F$3=E89,'فاتورة مبيعات'!$D$3=D89),COUNTIFS($E$5:E89,E89,$D$5:D89,D89),"") ->  | I89: 0 | J89: 0.14 | K89: 0 | L89: 0
B90: =IF(AND('فاتورة مبيعات'!$F$3=E90,'فاتورة مبيعات'!$D$3=D90),COUNTIFS($E$5:E90,E90,$D$5:D90,D90),"") ->  | I90: 0 | J90: 0.14 | K90: 0 | L90: 0
B91: =IF(AND('فاتورة مبيعات'!$F$3=E91,'فاتورة مبيعات'!$D$3=D91),COUNTIFS($E$5:E91,E91,$D$5:D91,D91),"") ->  | I91: 0 | J91: 0.14 | K91: 0 | L91: 0
B92: =IF(AND('فاتورة مبيعات'!$F$3=E92,'فاتورة مبيعات'!$D$3=D92),COUNTIFS($E$5:E92,E92,$D$5:D92,D92),"") ->  | I92: 0 | J92: 0.14 | K92: 0 | L92: 0
B93: =IF(AND('فاتورة مبيعات'!$F$3=E93,'فاتورة مبيعات'!$D$3=D93),COUNTIFS($E$5:E93,E93,$D$5:D93,D93),"") ->  | I93: 0 | J93: 0.14 | K93: 0 | L93: 0
B94: =IF(AND('فاتورة مبيعات'!$F$3=E94,'فاتورة مبيعات'!$D$3=D94),COUNTIFS($E$5:E94,E94,$D$5:D94,D94),"") ->  | I94: 0 | J94: 0.14 | K94: 0 | L94: 0
B95: =IF(AND('فاتورة مبيعات'!$F$3=E95,'فاتورة مبيعات'!$D$3=D95),COUNTIFS($E$5:E95,E95,$D$5:D95,D95),"") ->  | I95: 0 | J95: 0.14 | K95: 0 | L95: 0
B96: =IF(AND('فاتورة مبيعات'!$F$3=E96,'فاتورة مبيعات'!$D$3=D96),COUNTIFS($E$5:E96,E96,$D$5:D96,D96),"") ->  | I96: 0 | J96: 0.14 | K96: 0 | L96: 0
B97: =IF(AND('فاتورة مبيعات'!$F$3=E97,'فاتورة مبيعات'!$D$3=D97),COUNTIFS($E$5:E97,E97,$D$5:D97,D97),"") -> 
C98: الاجماليات | G98: =SUM(G5:G97) -> 22 | H98: =SUM(H5:H97) -> 205 | I98: =SUM(I5:I97) -> 2250 | K98: =SUM(K5:K97) -> 315 | L98: =SUM(L5:L97) -> 2565
C100: الاجماليات | G100: =SUBTOTAL(9,G5:G97) -> 22 | H100: =SUBTOTAL(9,H5:H97) -> 205 | I100: =SUBTOTAL(9,I5:I97) -> 2250 | K100: =SUBTOTAL(9,K5:K97) -> 315 | L100: =SUBTOTAL(9,L5:L97) -> 2565
E103: توقيع مدير المشروع
E104: الاسم :-
E105: التوقيع :-

Sheet 9
C4: مسلسل | D4: رقم الفاتورة | E4: تاريخ | F4: اسم العميل | G4: الكمية | H4: سعر | I4: قيمة | J4: ض.ق.م | K4: اجمالى المبيعات مضاف الضريبة | L4: اجمالى قيمة الضريبة
B5: =IF(AND('فاتورة مبيعات'!$F$3=E5,'فاتورة مبيعات'!$D$3=D5),COUNTIFS($E$5:E5,E5,$D$5:D5,D5),"") ->  | G5: 12 | H5: 100 | I5: =H5*G5 -> 1200 | J5: 0.14 | K5: =I5*J5 -> 168 | L5: =I5+K5 -> 1368
B6: =IF(AND('فاتورة مبيعات'!$F$3=E6,'فاتورة مبيعات'!$D$3=D6),COUNTIFS($E$5:E6,E6,$D$5:D6,D6),"") ->  | G6: 10 | H6: 105 | I6: 1050 | J6: 0.14 | K6: 147 | L6: =I6+K6 -> 1197
B7: =IF(AND('فاتورة مبيعات'!$F$3=E7,'فاتورة مبيعات'!$D$3=D7),COUNTIFS($E$5:E7,E7,$D$5:D7,D7),"") ->  | I7: 0 | J7: 0.14 | K7: 0 | L7: =I7+K7 -> 0
B8: =IF(AND('فاتورة مبيعات'!$F$3=E8,'فاتورة مبيعات'!$D$3=D8),COUNTIFS($E$5:E8,E8,$D$5:D8,D8),"") ->  | I8: 0 | J8: 0.14 | K8: 0 | L8: =I8+K8 -> 0
B9: =IF(AND('فاتورة مبيعات'!$F$3=E9,'فاتورة مبيعات'!$D$3=D9),COUNTIFS($E$5:E9,E9,$D$5:D9,D9),"") ->  | I9: 0 | J9: 0.14 | K9: 0 | L9: 0
B10: =IF(AND('فاتورة مبيعات'!$F$3=E10,'فاتورة مبيعات'!$D$3=D10),COUNTIFS($E$5:E10,E10,$D$5:D10,D10),"") ->  | I10: 0 | J10: 0.14 | K10: 0 | L10: 0
B11: =IF(AND('فاتورة مبيعات'!$F$3=E11,'فاتورة مبيعات'!$D$3=D11),COUNTIFS($E$5:E11,E11,$D$5:D11,D11),"") ->  | I11: 0 | J11: 0.14 | K11: 0 | L11: 0
B12: =IF(AND('فاتورة مبيعات'!$F$3=E12,'فاتورة مبيعات'!$D$3=D12),COUNTIFS($E$5:E12,E12,$D$5:D12,D12),"") ->  | I12: 0 | J12: 0.14 | K12: 0 | L12: 0
B13: =IF(AND('فاتورة مبيعات'!$F$3=E13,'فاتورة مبيعات'!$D$3=D13),COUNTIFS($E$5:E13,E13,$D$5:D13,D13),"") ->  | I13: 0 | J13: 0.14 | K13: 0 | L13: 0
B14: =IF(AND('فاتورة مبيعات'!$F$3=E14,'فاتورة مبيعات'!$D$3=D14),COUNTIFS($E$5:E14,E14,$D$5:D14,D14),"") ->  | I14: 0 | J14: 0.14 | K14: 0 | L14: 0
B15: =IF(AND('فاتورة مبيعات'!$F$3=E15,'فاتورة مبيعات'!$D$3=D15),COUNTIFS($E$5:E15,E15,$D$5:D15,D15),"") ->  | I15: 0 | J15: 0.14 | K15: 0 | L15: 0
B16: =IF(AND('فاتورة مبيعات'!$F$3=E16,'فاتورة مبيعات'!$D$3=D16),COUNTIFS($E$5:E16,E16,$D$5:D16,D16),"") ->  | I16: 0 | J16: 0.14 | K16: 0 | L16: 0
B17: =IF(AND('فاتورة مبيعات'!$F$3=E17,'فاتورة مبيعات'!$D$3=D17),COUNTIFS($E$5:E17,E17,$D$5:D17,D17),"") ->  | I17: 0 | J17: 0.14 | K17: 0 | L17: 0
B18: =IF(AND('فاتورة مبيعات'!$F$3=E18,'فاتورة مبيعات'!$D$3=D18),COUNTIFS($E$5:E18,E18,$D$5:D18,D18),"") ->  | I18: 0 | J18: 0.14 | K18: 0 | L18: 0
B19: =IF(AND('فاتورة مبيعات'!$F$3=E19,'فاتورة مبيعات'!$D$3=D19),COUNTIFS($E$5:E19,E19,$D$5:D19,D19),"") ->  | I19: 0 | J19: 0.14 | K19: 0 | L19: 0
B20: =IF(AND('فاتورة مبيعات'!$F$3=E20,'فاتورة مبيعات'!$D$3=D20),COUNTIFS($E$5:E20,E20,$D$5:D20,D20),"") ->  | I20: 0 | J20: 0.14 | K20: 0 | L20: 0
B21: =IF(AND('فاتورة مبيعات'!$F$3=E21,'فاتورة مبيعات'!$D$3=D21),COUNTIFS($E$5:E21,E21,$D$5:D21,D21),"") ->  | I21: 0 | J21: 0.14 | K21: 0 | L21: 0
B22: =IF(AND('فاتورة مبيعات'!$F$3=E22,'فاتورة مبيعات'!$D$3=D22),COUNTIFS($E$5:E22,E22,$D$5:D22,D22),"") ->  | I22: 0 | J22: 0.14 | K22: 0 | L22: 0
B23: =IF(AND('فاتورة مبيعات'!$F$3=E23,'فاتورة مبيعات'!$D$3=D23),COUNTIFS($E$5:E23,E23,$D$5:D23,D23),"") ->  | I23: 0 | J23: 0.14 | K23: 0 | L23: 0
B24: =IF(AND('فاتورة مبيعات'!$F$3=E24,'فاتورة مبيعات'!$D$3=D24),COUNTIFS($E$5:E24,E24,$D$5:D24,D24),"") ->  | I24: 0 | J24: 0.14 | K24: 0 | L24: 0
B25: =IF(AND('فاتورة مبيعات'!$F$3=E25,'فاتورة مبيعات'!$D$3=D25),COUNTIFS($E$5:E25,E25,$D$5:D25,D25),"") ->  | I25: 0 | J25: 0.14 | K25: 0 | L25: 0
B26: =IF(AND('فاتورة مبيعات'!$F$3=E26,'فاتورة مبيعات'!$D$3=D26),COUNTIFS($E$5:E26,E26,$D$5:D26,D26),"") ->  | I26: 0 | J26: 0.14 | K26: 0 | L26: 0
B27: =IF(AND('فاتورة مبيعات'!$F$3=E27,'فاتورة مبيعات'!$D$3=D27),COUNTIFS($E$5:E27,E27,$D$5:D27,D27),"") ->  | I27: 0 | J27: 0.14 | K27: 0 | L27: 0
B28: =IF(AND('فاتورة مبيعات'!$F$3=E28,'فاتورة مبيعات'!$D$3=D28),COUNTIFS($E$5:E28,E28,$D$5:D28,D28),"") ->  | I28: 0 | J28: 0.14 | K28: 0 | L28: 0
B29: =IF(AND('فاتورة مبيعات'!$F$3=E29,'فاتورة مبيعات'!$D$3=D29),COUNTIFS($E$5:E29,E29,$D$5:D29,D29),"") ->  | I29: 0 | J29: 0.14 | K29: 0 | L29: 0
B30: =IF(AND('فاتورة مبيعات'!$F$3=E30,'فاتورة مبيعات'!$D$3=D30),COUNTIFS($E$5:E30,E30,$D$5:D30,D30),"") ->  | I30: 0 | J30: 0.14 | K30: 0 | L30: 0
B31: =IF(AND('فاتورة مبيعات'!$F$3=E31,'فاتورة مبيعات'!$D$3=D31),COUNTIFS($E$5:E31,E31,$D$5:D31,D31),"") ->  | I31: 0 | J31: 0.14 | K31: 0 | L31: 0
B32: =IF(AND('فاتورة مبيعات'!$F$3=E32,'فاتورة مبيعات'!$D$3=D32),COUNTIFS($E$5:E32,E32,$D$5:D32,D32),"") ->  | I32: 0 | J32: 0.14 | K32: 0 | L32: 0
B33: =IF(AND('فاتورة مبيعات'!$F$3=E33,'فاتورة مبيعات'!$D$3=D33),COUNTIFS($E$5:E33,E33,$D$5:D33,D33),"") ->  | I33: 0 | J33: 0.14 | K33: 0 | L33: 0
B34: =IF(AND('فاتورة مبيعات'!$F$3=E34,'فاتورة مبيعات'!$D$3=D34),COUNTIFS($E$5:E34,E34,$D$5:D34,D34),"") ->  | I34: 0 | J34: 0.14 | K34: 0 | L34: 0
B35: =IF(AND('فاتورة مبيعات'!$F$3=E35,'فاتورة مبيعات'!$D$3=D35),COUNTIFS($E$5:E35,E35,$D$5:D35,D35),"") ->  | I35: 0 | J35: 0.14 | K35: 0 | L35: 0
B36: =IF(AND('فاتورة مبيعات'!$F$3=E36,'فاتورة مبيعات'!$D$3=D36),COUNTIFS($E$5:E36,E36,$D$5:D36,D36),"") ->  | I36: 0 | J36: 0.14 | K36: 0 | L36: 0
B37: =IF(AND('فاتورة مبيعات'!$F$3=E37,'فاتورة مبيعات'!$D$3=D37),COUNTIFS($E$5:E37,E37,$D$5:D37,D37),"") ->  | I37: =H37*G37 -> 0 | J37: 0.14 | K37: =I37*J37 -> 0 | L37: 0
B38: =IF(AND('فاتورة مبيعات'!$F$3=E38,'فاتورة مبيعات'!$D$3=D38),COUNTIFS($E$5:E38,E38,$D$5:D38,D38),"") ->  | I38: 0 | J38: 0.14 | K38: 0 | L38: 0
B39: =IF(AND('فاتورة مبيعات'!$F$3=E39,'فاتورة مبيعات'!$D$3=D39),COUNTIFS($E$5:E39,E39,$D$5:D39,D39),"") ->  | I39: 0 | J39: 0.14 | K39: 0 | L39: 0
B40: =IF(AND('فاتورة مبيعات'!$F$3=E40,'فاتورة مبيعات'!$D$3=D40),COUNTIFS($E$5:E40,E40,$D$5:D40,D40),"") ->  | I40: 0 | J40: 0.14 | K40: 0 | L40: 0
B41: =IF(AND('فاتورة مبيعات'!$F$3=E41,'فاتورة مبيعات'!$D$3=D41),COUNTIFS($E$5:E41,E41,$D$5:D41,D41),"") ->  | I41: 0 | J41: 0.14 | K41: 0 | L41: 0
B42: =IF(AND('فاتورة مبيعات'!$F$3=E42,'فاتورة مبيعات'!$D$3=D42),COUNTIFS($E$5:E42,E42,$D$5:D42,D42),"") ->  | I42: 0 | J42: 0.14 | K42: 0 | L42: 0
B43: =IF(AND('فاتورة مبيعات'!$F$3=E43,'فاتورة مبيعات'!$D$3=D43),COUNTIFS($E$5:E43,E43,$D$5:D43,D43),"") ->  | I43: 0 | J43: 0.14 | K43: 0 | L43: 0
B44: =IF(AND('فاتورة مبيعات'!$F$3=E44,'فاتورة مبيعات'!$D$3=D44),COUNTIFS($E$5:E44,E44,$D$5:D44,D44),"") ->  | I44: 0 | J44: 0.14 | K44: 0 | L44: 0
B45: =IF(AND('فاتورة مبيعات'!$F$3=E45,'فاتورة مبيعات'!$D$3=D45),COUNTIFS($E$5:E45,E45,$D$5:D45,D45),"") ->  | I45: 0 | J45: 0.14 | K45: 0 | L45: 0
B46: =IF(AND('فاتورة مبيعات'!$F$3=E46,'فاتورة مبيعات'!$D$3=D46),COUNTIFS($E$5:E46,E46,$D$5:D46,D46),"") ->  | I46: 0 | J46: 0.14 | K46: 0 | L46: 0
B47: =IF(AND('فاتورة مبيعات'!$F$3=E47,'فاتورة مبيعات'!$D$3=D47),COUNTIFS($E$5:E47,E47,$D$5:D47,D47),"") ->  | I47: 0 | J47: 0.14 | K47: 0 | L47: 0
B48: =IF(AND('فاتورة مبيعات'!$F$3=E48,'فاتورة مبيعات'!$D$3=D48),COUNTIFS($E$5:E48,E48,$D$5:D48,D48),"") ->  | I48: 0 | J48: 0.14 | K48: 0 | L48: 0
B49: =IF(AND('فاتورة مبيعات'!$F$3=E49,'فاتورة مبيعات'!$D$3=D49),COUNTIFS($E$5:E49,E49,$D$5:D49,D49),"") ->  | I49: 0 | J49: 0.14 | K49: 0 | L49: 0
B50: =IF(AND('فاتورة مبيعات'!$F$3=E50,'فاتورة مبيعات'!$D$3=D50),COUNTIFS($E$5:E50,E50,$D$5:D50,D50),"") ->  | I50: 0 | J50: 0.14 | K50: 0 | L50: 0
B51: =IF(AND('فاتورة مبيعات'!$F$3=E51,'فاتورة مبيعات'!$D$3=D51),COUNTIFS($E$5:E51,E51,$D$5:D51,D51),"") ->  | I51: 0 | J51: 0.14 | K51: 0 | L51: 0
B52: =IF(AND('فاتورة مبيعات'!$F$3=E52,'فاتورة مبيعات'!$D$3=D52),COUNTIFS($E$5:E52,E52,$D$5:D52,D52),"") ->  | I52: 0 | J52: 0.14 | K52: 0 | L52: 0
B53: =IF(AND('فاتورة مبيعات'!$F$3=E53,'فاتورة مبيعات'!$D$3=D53),COUNTIFS($E$5:E53,E53,$D$5:D53,D53),"") ->  | I53: 0 | J53: 0.14 | K53: 0 | L53: 0
B54: =IF(AND('فاتورة مبيعات'!$F$3=E54,'فاتورة مبيعات'!$D$3=D54),COUNTIFS($E$5:E54,E54,$D$5:D54,D54),"") ->  | I54: 0 | J54: 0.14 | K54: 0 | L54: 0
B55: =IF(AND('فاتورة مبيعات'!$F$3=E55,'فاتورة مبيعات'!$D$3=D55),COUNTIFS($E$5:E55,E55,$D$5:D55,D55),"") ->  | I55: 0 | J55: 0.14 | K55: 0 | L55: 0
B56: =IF(AND('فاتورة مبيعات'!$F$3=E56,'فاتورة مبيعات'!$D$3=D56),COUNTIFS($E$5:E56,E56,$D$5:D56,D56),"") ->  | I56: 0 | J56: 0.14 | K56: 0 | L56: 0
B57: =IF(AND('فاتورة مبيعات'!$F$3=E57,'فاتورة مبيعات'!$D$3=D57),COUNTIFS($E$5:E57,E57,$D$5:D57,D57),"") ->  | I57: 0 | J57: 0.14 | K57: 0 | L57: 0
B58: =IF(AND('فاتورة مبيعات'!$F$3=E58,'فاتورة مبيعات'!$D$3=D58),COUNTIFS($E$5:E58,E58,$D$5:D58,D58),"") ->  | I58: 0 | J58: 0.14 | K58: 0 | L58: 0
B59: =IF(AND('فاتورة مبيعات'!$F$3=E59,'فاتورة مبيعات'!$D$3=D59),COUNTIFS($E$5:E59,E59,$D$5:D59,D59),"") ->  | I59: 0 | J59: 0.14 | K59: 0 | L59: 0
B60: =IF(AND('فاتورة مبيعات'!$F$3=E60,'فاتورة مبيعات'!$D$3=D60),COUNTIFS($E$5:E60,E60,$D$5:D60,D60),"") ->  | I60: 0 | J60: 0.14 | K60: 0 | L60: 0
B61: =IF(AND('فاتورة مبيعات'!$F$3=E61,'فاتورة مبيعات'!$D$3=D61),COUNTIFS($E$5:E61,E61,$D$5:D61,D61),"") ->  | I61: 0 | J61: 0.14 | K61: 0 | L61: 0
B62: =IF(AND('فاتورة مبيعات'!$F$3=E62,'فاتورة مبيعات'!$D$3=D62),COUNTIFS($E$5:E62,E62,$D$5:D62,D62),"") ->  | I62: 0 | J62: 0.14 | K62: 0 | L62: 0
B63: =IF(AND('فاتورة مبيعات'!$F$3=E63,'فاتورة مبيعات'!$D$3=D63),COUNTIFS($E$5:E63,E63,$D$5:D63,D63),"") ->  | I63: 0 | J63: 0.14 | K63: 0 | L63: 0
B64: =IF(AND('فاتورة مبيعات'!$F$3=E64,'فاتورة مبيعات'!$D$3=D64),COUNTIFS($E$5:E64,E64,$D$5:D64,D64),"") ->  | I64: 0 | J64: 0.14 | K64: 0 | L64: 0
B65: =IF(AND('فاتورة مبيعات'!$F$3=E65,'فاتورة مبيعات'!$D$3=D65),COUNTIFS($E$5:E65,E65,$D$5:D65,D65),"") ->  | I65: 0 | J65: 0.14 | K65: 0 | L65: 0
B66: =IF(AND('فاتورة مبيعات'!$F$3=E66,'فاتورة مبيعات'!$D$3=D66),COUNTIFS($E$5:E66,E66,$D$5:D66,D66),"") ->  | I66: 0 | J66: 0.14 | K66: 0 | L66: 0
B67: =IF(AND('فاتورة مبيعات'!$F$3=E67,'فاتورة مبيعات'!$D$3=D67),COUNTIFS($E$5:E67,E67,$D$5:D67,D67),"") ->  | I67: 0 | J67: 0.14 | K67: 0 | L67: 0
B68: =IF(AND('فاتورة مبيعات'!$F$3=E68,'فاتورة مبيعات'!$D$3=D68),COUNTIFS($E$5:E68,E68,$D$5:D68,D68),"") ->  | I68: 0 | J68: 0.14 | K68: 0 | L68: 0
B69: =IF(AND('فاتورة مبيعات'!$F$3=E69,'فاتورة مبيعات'!$D$3=D69),COUNTIFS($E$5:E69,E69,$D$5:D69,D69),"") ->  | I69: =H69*G69 -> 0 | J69: 0.14 | K69: =I69*J69 -> 0 | L69: 0
B70: =IF(AND('فاتورة مبيعات'!$F$3=E70,'فاتورة مبيعات'!$D$3=D70),COUNTIFS($E$5:E70,E70,$D$5:D70,D70),"") ->  | I70: 0 | J70: 0.14 | K70: 0 | L70: 0
B71: =IF(AND('فاتورة مبيعات'!$F$3=E71,'فاتورة مبيعات'!$D$3=D71),COUNTIFS($E$5:E71,E71,$D$5:D71,D71),"") ->  | I71: 0 | J71: 0.14 | K71: 0 | L71: 0
B72: =IF(AND('فاتورة مبيعات'!$F$3=E72,'فاتورة مبيعات'!$D$3=D72),COUNTIFS($E$5:E72,E72,$D$5:D72,D72),"") ->  | I72: 0 | J72: 0.14 | K72: 0 | L72: =I72+K72 -> 0
B73: =IF(AND('فاتورة مبيعات'!$F$3=E73,'فاتورة مبيعات'!$D$3=D73),COUNTIFS($E$5:E73,E73,$D$5:D73,D73),"") ->  | I73: 0 | J73: 0.14 | K73: 0 | L73: 0
B74: =IF(AND('فاتورة مبيعات'!$F$3=E74,'فاتورة مبيعات'!$D$3=D74),COUNTIFS($E$5:E74,E74,$D$5:D74,D74),"") ->  | I74: 0 | J74: 0.14 | K74: 0 | L74: 0
B75: =IF(AND('فاتورة مبيعات'!$F$3=E75,'فاتورة مبيعات'!$D$3=D75),COUNTIFS($E$5:E75,E75,$D$5:D75,D75),"") ->  | I75: 0 | J75: 0.14 | K75: 0 | L75: 0
B76: =IF(AND('فاتورة مبيعات'!$F$3=E76,'فاتورة مبيعات'!$D$3=D76),COUNTIFS($E$5:E76,E76,$D$5:D76,D76),"") ->  | I76: 0 | J76: 0.14 | K76: 0 | L76: 0
B77: =IF(AND('فاتورة مبيعات'!$F$3=E77,'فاتورة مبيعات'!$D$3=D77),COUNTIFS($E$5:E77,E77,$D$5:D77,D77),"") ->  | I77: 0 | J77: 0.14 | K77: 0 | L77: 0
B78: =IF(AND('فاتورة مبيعات'!$F$3=E78,'فاتورة مبيعات'!$D$3=D78),COUNTIFS($E$5:E78,E78,$D$5:D78,D78),"") ->  | I78: 0 | J78: 0.14 | K78: 0 | L78: 0
B79: =IF(AND('فاتورة مبيعات'!$F$3=E79,'فاتورة مبيعات'!$D$3=D79),COUNTIFS($E$5:E79,E79,$D$5:D79,D79),"") ->  | I79: 0 | J79: 0.14 | K79: 0 | L79: 0
B80: =IF(AND('فاتورة مبيعات'!$F$3=E80,'فاتورة مبيعات'!$D$3=D80),COUNTIFS($E$5:E80,E80,$D$5:D80,D80),"") ->  | I80: 0 | J80: 0.14 | K80: 0 | L80: 0
B81: =IF(AND('فاتورة مبيعات'!$F$3=E81,'فاتورة مبيعات'!$D$3=D81),COUNTIFS($E$5:E81,E81,$D$5:D81,D81),"") ->  | I81: 0 | J81: 0.14 | K81: 0 | L81: 0
B82: =IF(AND('فاتورة مبيعات'!$F$3=E82,'فاتورة مبيعات'!$D$3=D82),COUNTIFS($E$5:E82,E82,$D$5:D82,D82),"") ->  | I82: 0 | J82: 0.14 | K82: 0 | L82: 0
B83: =IF(AND('فاتورة مبيعات'!$F$3=E83,'فاتورة مبيعات'!$D$3=D83),COUNTIFS($E$5:E83,E83,$D$5:D83,D83),"") ->  | I83: 0 | J83: 0.14 | K83: 0 | L83: 0
B84: =IF(AND('فاتورة مبيعات'!$F$3=E84,'فاتورة مبيعات'!$D$3=D84),COUNTIFS($E$5:E84,E84,$D$5:D84,D84),"") ->  | I84: 0 | J84: 0.14 | K84: 0 | L84: 0
B85: =IF(AND('فاتورة مبيعات'!$F$3=E85,'فاتورة مبيعات'!$D$3=D85),COUNTIFS($E$5:E85,E85,$D$5:D85,D85),"") ->  | I85: 0 | J85: 0.14 | K85: 0 | L85: 0
B86: =IF(AND('فاتورة مبيعات'!$F$3=E86,'فاتورة مبيعات'!$D$3=D86),COUNTIFS($E$5:E86,E86,$D$5:D86,D86),"") ->  | I86: 0 | J86: 0.14 | K86: 0 | L86: 0
B87: =IF(AND('فاتورة مبيعات'!$F$3=E87,'فاتورة مبيعات'!$D$3=D87),COUNTIFS($E$5:E87,E87,$D$5:D87,D87),"") ->  | I87: 0 | J87: 0.14 | K87: 0 | L87: 0
B88: =IF(AND('فاتورة مبيعات'!$F$3=E88,'فاتورة مبيعات'!$D$3=D88),COUNTIFS($E$5:E88,E88,$D$5:D88,D88),"") ->  | I88: 0 | J88: 0.14 | K88: 0 | L88: 0
B89: =IF(AND('فاتورة مبيعات'!$F$3=E89,'فاتورة مبيعات'!$D$3=D89),COUNTIFS($E$5:E89,E89,$D$5:D89,D89),"") ->  | I89: 0 | J89: 0.14 | K89: 0 | L89: 0
B90: =IF(AND('فاتورة مبيعات'!$F$3=E90,'فاتورة مبيعات'!$D$3=D90),COUNTIFS($E$5:E90,E90,$D$5:D90,D90),"") ->  | I90: 0 | J90: 0.14 | K90: 0 | L90: 0
B91: =IF(AND('فاتورة مبيعات'!$F$3=E91,'فاتورة مبيعات'!$D$3=D91),COUNTIFS($E$5:E91,E91,$D$5:D91,D91),"") ->  | I91: 0 | J91: 0.14 | K91: 0 | L91: 0
B92: =IF(AND('فاتورة مبيعات'!$F$3=E92,'فاتورة مبيعات'!$D$3=D92),COUNTIFS($E$5:E92,E92,$D$5:D92,D92),"") ->  | I92: 0 | J92: 0.14 | K92: 0 | L92: 0
B93: =IF(AND('فاتورة مبيعات'!$F$3=E93,'فاتورة مبيعات'!$D$3=D93),COUNTIFS($E$5:E93,E93,$D$5:D93,D93),"") ->  | I93: 0 | J93: 0.14 | K93: 0 | L93: 0
B94: =IF(AND('فاتورة مبيعات'!$F$3=E94,'فاتورة مبيعات'!$D$3=D94),COUNTIFS($E$5:E94,E94,$D$5:D94,D94),"") ->  | I94: 0 | J94: 0.14 | K94: 0 | L94: 0
B95: =IF(AND('فاتورة مبيعات'!$F$3=E95,'فاتورة مبيعات'!$D$3=D95),COUNTIFS($E$5:E95,E95,$D$5:D95,D95),"") ->  | I95: 0 | J95: 0.14 | K95: 0 | L95: 0
B96: =IF(AND('فاتورة مبيعات'!$F$3=E96,'فاتورة مبيعات'!$D$3=D96),COUNTIFS($E$5:E96,E96,$D$5:D96,D96),"") ->  | I96: 0 | J96: 0.14 | K96: 0 | L96: 0
B97: =IF(AND('فاتورة مبيعات'!$F$3=E97,'فاتورة مبيعات'!$D$3=D97),COUNTIFS($E$5:E97,E97,$D$5:D97,D97),"") -> 
C98: الاجماليات | G98: =SUM(G5:G97) -> 22 | H98: =SUM(H5:H97) -> 205 | I98: =SUM(I5:I97) -> 2250 | K98: =SUM(K5:K97) -> 315 | L98: =SUM(L5:L97) -> 2565
C100: الاجماليات | G100: =SUBTOTAL(9,G5:G97) -> 22 | H100: =SUBTOTAL(9,H5:H97) -> 205 | I100: =SUBTOTAL(9,I5:I97) -> 2250 | K100: =SUBTOTAL(9,K5:K97) -> 315 | L100: =SUBTOTAL(9,L5:L97) -> 2565
F103: توقيع مدير المشروع
F104: الاسم :-
F105: التوقيع :-

Sheet 10
C4: مسلسل | D4: رقم الفاتورة | E4: تاريخ | F4: اسم العميل | G4: الكمية | H4: سعر | I4: قيمة | J4: ض.ق.م | K4: اجمالى المبيعات مضاف الضريبة | L4: اجمالى قيمة الضريبة
B5: =IF(AND('فاتورة مبيعات'!$F$3=E5,'فاتورة مبيعات'!$D$3=D5),COUNTIFS($E$5:E5,E5,$D$5:D5,D5),"") ->  | G5: 12 | H5: 100 | I5: =H5*G5 -> 1200 | J5: 0.14 | K5: =I5*J5 -> 168 | L5: =I5+K5 -> 1368
B6: =IF(AND('فاتورة مبيعات'!$F$3=E6,'فاتورة مبيعات'!$D$3=D6),COUNTIFS($E$5:E6,E6,$D$5:D6,D6),"") ->  | G6: 10 | H6: 105 | I6: 1050 | J6: 0.14 | K6: 147 | L6: =I6+K6 -> 1197
B7: =IF(AND('فاتورة مبيعات'!$F$3=E7,'فاتورة مبيعات'!$D$3=D7),COUNTIFS($E$5:E7,E7,$D$5:D7,D7),"") ->  | I7: 0 | J7: 0.14 | K7: 0 | L7: =I7+K7 -> 0
B8: =IF(AND('فاتورة مبيعات'!$F$3=E8,'فاتورة مبيعات'!$D$3=D8),COUNTIFS($E$5:E8,E8,$D$5:D8,D8),"") ->  | I8: 0 | J8: 0.14 | K8: 0 | L8: =I8+K8 -> 0
B9: =IF(AND('فاتورة مبيعات'!$F$3=E9,'فاتورة مبيعات'!$D$3=D9),COUNTIFS($E$5:E9,E9,$D$5:D9,D9),"") ->  | I9: 0 | J9: 0.14 | K9: 0 | L9: 0
B10: =IF(AND('فاتورة مبيعات'!$F$3=E10,'فاتورة مبيعات'!$D$3=D10),COUNTIFS($E$5:E10,E10,$D$5:D10,D10),"") ->  | I10: 0 | J10: 0.14 | K10: 0 | L10: 0
B11: =IF(AND('فاتورة مبيعات'!$F$3=E11,'فاتورة مبيعات'!$D$3=D11),COUNTIFS($E$5:E11,E11,$D$5:D11,D11),"") ->  | I11: 0 | J11: 0.14 | K11: 0 | L11: 0
B12: =IF(AND('فاتورة مبيعات'!$F$3=E12,'فاتورة مبيعات'!$D$3=D12),COUNTIFS($E$5:E12,E12,$D$5:D12,D12),"") ->  | I12: 0 | J12: 0.14 | K12: 0 | L12: 0
B13: =IF(AND('فاتورة مبيعات'!$F$3=E13,'فاتورة مبيعات'!$D$3=D13),COUNTIFS($E$5:E13,E13,$D$5:D13,D13),"") ->  | I13: 0 | J13: 0.14 | K13: 0 | L13: 0
B14: =IF(AND('فاتورة مبيعات'!$F$3=E14,'فاتورة مبيعات'!$D$3=D14),COUNTIFS($E$5:E14,E14,$D$5:D14,D14),"") ->  | I14: 0 | J14: 0.14 | K14: 0 | L14: 0
B15: =IF(AND('فاتورة مبيعات'!$F$3=E15,'فاتورة مبيعات'!$D$3=D15),COUNTIFS($E$5:E15,E15,$D$5:D15,D15),"") ->  | I15: 0 | J15: 0.14 | K15: 0 | L15: 0
B16: =IF(AND('فاتورة مبيعات'!$F$3=E16,'فاتورة مبيعات'!$D$3=D16),COUNTIFS($E$5:E16,E16,$D$5:D16,D16),"") ->  | I16: 0 | J16: 0.14 | K16: 0 | L16: 0
B17: =IF(AND('فاتورة مبيعات'!$F$3=E17,'فاتورة مبيعات'!$D$3=D17),COUNTIFS($E$5:E17,E17,$D$5:D17,D17),"") ->  | I17: 0 | J17: 0.14 | K17: 0 | L17: 0
B18: =IF(AND('فاتورة مبيعات'!$F$3=E18,'فاتورة مبيعات'!$D$3=D18),COUNTIFS($E$5:E18,E18,$D$5:D18,D18),"") ->  | I18: 0 | J18: 0.14 | K18: 0 | L18: 0
B19: =IF(AND('فاتورة مبيعات'!$F$3=E19,'فاتورة مبيعات'!$D$3=D19),COUNTIFS($E$5:E19,E19,$D$5:D19,D19),"") ->  | I19: 0 | J19: 0.14 | K19: 0 | L19: 0
B20: =IF(AND('فاتورة مبيعات'!$F$3=E20,'فاتورة مبيعات'!$D$3=D20),COUNTIFS($E$5:E20,E20,$D$5:D20,D20),"") ->  | I20: 0 | J20: 0.14 | K20: 0 | L20: 0
B21: =IF(AND('فاتورة مبيعات'!$F$3=E21,'فاتورة مبيعات'!$D$3=D21),COUNTIFS($E$5:E21,E21,$D$5:D21,D21),"") ->  | I21: 0 | J21: 0.14 | K21: 0 | L21: 0
B22: =IF(AND('فاتورة مبيعات'!$F$3=E22,'فاتورة مبيعات'!$D$3=D22),COUNTIFS($E$5:E22,E22,$D$5:D22,D22),"") ->  | I22: 0 | J22: 0.14 | K22: 0 | L22: 0
B23: =IF(AND('فاتورة مبيعات'!$F$3=E23,'فاتورة مبيعات'!$D$3=D23),COUNTIFS($E$5:E23,E23,$D$5:D23,D23),"") ->  | I23: 0 | J23: 0.14 | K23: 0 | L23: 0
B24: =IF(AND('فاتورة مبيعات'!$F$3=E24,'فاتورة مبيعات'!$D$3=D24),COUNTIFS($E$5:E24,E24,$D$5:D24,D24),"") ->  | I24: 0 | J24: 0.14 | K24: 0 | L24: 0
B25: =IF(AND('فاتورة مبيعات'!$F$3=E25,'فاتورة مبيعات'!$D$3=D25),COUNTIFS($E$5:E25,E25,$D$5:D25,D25),"") ->  | I25: 0 | J25: 0.14 | K25: 0 | L25: 0
B26: =IF(AND('فاتورة مبيعات'!$F$3=E26,'فاتورة مبيعات'!$D$3=D26),COUNTIFS($E$5:E26,E26,$D$5:D26,D26),"") ->  | I26: 0 | J26: 0.14 | K26: 0 | L26: 0
B27: =IF(AND('فاتورة مبيعات'!$F$3=E27,'فاتورة مبيعات'!$D$3=D27),COUNTIFS($E$5:E27,E27,$D$5:D27,D27),"") ->  | I27: 0 | J27: 0.14 | K27: 0 | L27: 0
B28: =IF(AND('فاتورة مبيعات'!$F$3=E28,'فاتورة مبيعات'!$D$3=D28),COUNTIFS($E$5:E28,E28,$D$5:D28,D28),"") ->  | I28: 0 | J28: 0.14 | K28: 0 | L28: 0
B29: =IF(AND('فاتورة مبيعات'!$F$3=E29,'فاتورة مبيعات'!$D$3=D29),COUNTIFS($E$5:E29,E29,$D$5:D29,D29),"") ->  | I29: 0 | J29: 0.14 | K29: 0 | L29: 0
B30: =IF(AND('فاتورة مبيعات'!$F$3=E30,'فاتورة مبيعات'!$D$3=D30),COUNTIFS($E$5:E30,E30,$D$5:D30,D30),"") ->  | I30: 0 | J30: 0.14 | K30: 0 | L30: 0
B31: =IF(AND('فاتورة مبيعات'!$F$3=E31,'فاتورة مبيعات'!$D$3=D31),COUNTIFS($E$5:E31,E31,$D$5:D31,D31),"") ->  | I31: 0 | J31: 0.14 | K31: 0 | L31: 0
B32: =IF(AND('فاتورة مبيعات'!$F$3=E32,'فاتورة مبيعات'!$D$3=D32),COUNTIFS($E$5:E32,E32,$D$5:D32,D32),"") ->  | I32: 0 | J32: 0.14 | K32: 0 | L32: 0
B33: =IF(AND('فاتورة مبيعات'!$F$3=E33,'فاتورة مبيعات'!$D$3=D33),COUNTIFS($E$5:E33,E33,$D$5:D33,D33),"") ->  | I33: 0 | J33: 0.14 | K33: 0 | L33: 0
B34: =IF(AND('فاتورة مبيعات'!$F$3=E34,'فاتورة مبيعات'!$D$3=D34),COUNTIFS($E$5:E34,E34,$D$5:D34,D34),"") ->  | I34: 0 | J34: 0.14 | K34: 0 | L34: 0
B35: =IF(AND('فاتورة مبيعات'!$F$3=E35,'فاتورة مبيعات'!$D$3=D35),COUNTIFS($E$5:E35,E35,$D$5:D35,D35),"") ->  | I35: 0 | J35: 0.14 | K35: 0 | L35: 0
B36: =IF(AND('فاتورة مبيعات'!$F$3=E36,'فاتورة مبيعات'!$D$3=D36),COUNTIFS($E$5:E36,E36,$D$5:D36,D36),"") ->  | I36: 0 | J36: 0.14 | K36: 0 | L36: 0
B37: =IF(AND('فاتورة مبيعات'!$F$3=E37,'فاتورة مبيعات'!$D$3=D37),COUNTIFS($E$5:E37,E37,$D$5:D37,D37),"") ->  | I37: =H37*G37 -> 0 | J37: 0.14 | K37: =I37*J37 -> 0 | L37: 0
B38: =IF(AND('فاتورة مبيعات'!$F$3=E38,'فاتورة مبيعات'!$D$3=D38),COUNTIFS($E$5:E38,E38,$D$5:D38,D38),"") ->  | I38: 0 | J38: 0.14 | K38: 0 | L38: 0
B39: =IF(AND('فاتورة مبيعات'!$F$3=E39,'فاتورة مبيعات'!$D$3=D39),COUNTIFS($E$5:E39,E39,$D$5:D39,D39),"") ->  | I39: 0 | J39: 0.14 | K39: 0 | L39: 0
B40: =IF(AND('فاتورة مبيعات'!$F$3=E40,'فاتورة مبيعات'!$D$3=D40),COUNTIFS($E$5:E40,E40,$D$5:D40,D40),"") ->  | I40: 0 | J40: 0.14 | K40: 0 | L40: 0
B41: =IF(AND('فاتورة مبيعات'!$F$3=E41,'فاتورة مبيعات'!$D$3=D41),COUNTIFS($E$5:E41,E41,$D$5:D41,D41),"") ->  | I41: 0 | J41: 0.14 | K41: 0 | L41: 0
B42: =IF(AND('فاتورة مبيعات'!$F$3=E42,'فاتورة مبيعات'!$D$3=D42),COUNTIFS($E$5:E42,E42,$D$5:D42,D42),"") ->  | I42: 0 | J42: 0.14 | K42: 0 | L42: 0
B43: =IF(AND('فاتورة مبيعات'!$F$3=E43,'فاتورة مبيعات'!$D$3=D43),COUNTIFS($E$5:E43,E43,$D$5:D43,D43),"") ->  | I43: 0 | J43: 0.14 | K43: 0 | L43: 0
B44: =IF(AND('فاتورة مبيعات'!$F$3=E44,'فاتورة مبيعات'!$D$3=D44),COUNTIFS($E$5:E44,E44,$D$5:D44,D44),"") ->  | I44: 0 | J44: 0.14 | K44: 0 | L44: 0
B45: =IF(AND('فاتورة مبيعات'!$F$3=E45,'فاتورة مبيعات'!$D$3=D45),COUNTIFS($E$5:E45,E45,$D$5:D45,D45),"") ->  | I45: 0 | J45: 0.14 | K45: 0 | L45: 0
B46: =IF(AND('فاتورة مبيعات'!$F$3=E46,'فاتورة مبيعات'!$D$3=D46),COUNTIFS($E$5:E46,E46,$D$5:D46,D46),"") ->  | I46: 0 | J46: 0.14 | K46: 0 | L46: 0
B47: =IF(AND('فاتورة مبيعات'!$F$3=E47,'فاتورة مبيعات'!$D$3=D47),COUNTIFS($E$5:E47,E47,$D$5:D47,D47),"") ->  | I47: 0 | J47: 0.14 | K47: 0 | L47: 0
B48: =IF(AND('فاتورة مبيعات'!$F$3=E48,'فاتورة مبيعات'!$D$3=D48),COUNTIFS($E$5:E48,E48,$D$5:D48,D48),"") ->  | I48: 0 | J48: 0.14 | K48: 0 | L48: 0
B49: =IF(AND('فاتورة مبيعات'!$F$3=E49,'فاتورة مبيعات'!$D$3=D49),COUNTIFS($E$5:E49,E49,$D$5:D49,D49),"") ->  | I49: 0 | J49: 0.14 | K49: 0 | L49: 0
B50: =IF(AND('فاتورة مبيعات'!$F$3=E50,'فاتورة مبيعات'!$D$3=D50),COUNTIFS($E$5:E50,E50,$D$5:D50,D50),"") ->  | I50: 0 | J50: 0.14 | K50: 0 | L50: 0
B51: =IF(AND('فاتورة مبيعات'!$F$3=E51,'فاتورة مبيعات'!$D$3=D51),COUNTIFS($E$5:E51,E51,$D$5:D51,D51),"") ->  | I51: 0 | J51: 0.14 | K51: 0 | L51: 0
B52: =IF(AND('فاتورة مبيعات'!$F$3=E52,'فاتورة مبيعات'!$D$3=D52),COUNTIFS($E$5:E52,E52,$D$5:D52,D52),"") ->  | I52: 0 | J52: 0.14 | K52: 0 | L52: 0
B53: =IF(AND('فاتورة مبيعات'!$F$3=E53,'فاتورة مبيعات'!$D$3=D53),COUNTIFS($E$5:E53,E53,$D$5:D53,D53),"") ->  | I53: 0 | J53: 0.14 | K53: 0 | L53: 0
B54: =IF(AND('فاتورة مبيعات'!$F$3=E54,'فاتورة مبيعات'!$D$3=D54),COUNTIFS($E$5:E54,E54,$D$5:D54,D54),"") ->  | I54: 0 | J54: 0.14 | K54: 0 | L54: 0
B55: =IF(AND('فاتورة مبيعات'!$F$3=E55,'فاتورة مبيعات'!$D$3=D55),COUNTIFS($E$5:E55,E55,$D$5:D55,D55),"") ->  | I55: 0 | J55: 0.14 | K55: 0 | L55: 0
B56: =IF(AND('فاتورة مبيعات'!$F$3=E56,'فاتورة مبيعات'!$D$3=D56),COUNTIFS($E$5:E56,E56,$D$5:D56,D56),"") ->  | I56: 0 | J56: 0.14 | K56: 0 | L56: 0
B57: =IF(AND('فاتورة مبيعات'!$F$3=E57,'فاتورة مبيعات'!$D$3=D57),COUNTIFS($E$5:E57,E57,$D$5:D57,D57),"") ->  | I57: 0 | J57: 0.14 | K57: 0 | L57: 0
B58: =IF(AND('فاتورة مبيعات'!$F$3=E58,'فاتورة مبيعات'!$D$3=D58),COUNTIFS($E$5:E58,E58,$D$5:D58,D58),"") ->  | I58: 0 | J58: 0.14 | K58: 0 | L58: 0
B59: =IF(AND('فاتورة مبيعات'!$F$3=E59,'فاتورة مبيعات'!$D$3=D59),COUNTIFS($E$5:E59,E59,$D$5:D59,D59),"") ->  | I59: 0 | J59: 0.14 | K59: 0 | L59: 0
B60: =IF(AND('فاتورة مبيعات'!$F$3=E60,'فاتورة مبيعات'!$D$3=D60),COUNTIFS($E$5:E60,E60,$D$5:D60,D60),"") ->  | I60: 0 | J60: 0.14 | K60: 0 | L60: 0
B61: =IF(AND('فاتورة مبيعات'!$F$3=E61,'فاتورة مبيعات'!$D$3=D61),COUNTIFS($E$5:E61,E61,$D$5:D61,D61),"") ->  | I61: 0 | J61: 0.14 | K61: 0 | L61: 0
B62: =IF(AND('فاتورة مبيعات'!$F$3=E62,'فاتورة مبيعات'!$D$3=D62),COUNTIFS($E$5:E62,E62,$D$5:D62,D62),"") ->  | I62: 0 | J62: 0.14 | K62: 0 | L62: 0
B63: =IF(AND('فاتورة مبيعات'!$F$3=E63,'فاتورة مبيعات'!$D$3=D63),COUNTIFS($E$5:E63,E63,$D$5:D63,D63),"") ->  | I63: 0 | J63: 0.14 | K63: 0 | L63: 0
B64: =IF(AND('فاتورة مبيعات'!$F$3=E64,'فاتورة مبيعات'!$D$3=D64),COUNTIFS($E$5:E64,E64,$D$5:D64,D64),"") ->  | I64: 0 | J64: 0.14 | K64: 0 | L64: 0
B65: =IF(AND('فاتورة مبيعات'!$F$3=E65,'فاتورة مبيعات'!$D$3=D65),COUNTIFS($E$5:E65,E65,$D$5:D65,D65),"") ->  | I65: 0 | J65: 0.14 | K65: 0 | L65: 0
B66: =IF(AND('فاتورة مبيعات'!$F$3=E66,'فاتورة مبيعات'!$D$3=D66),COUNTIFS($E$5:E66,E66,$D$5:D66,D66),"") ->  | I66: 0 | J66: 0.14 | K66: 0 | L66: 0
B67: =IF(AND('فاتورة مبيعات'!$F$3=E67,'فاتورة مبيعات'!$D$3=D67),COUNTIFS($E$5:E67,E67,$D$5:D67,D67),"") ->  | I67: 0 | J67: 0.14 | K67: 0 | L67: 0
B68: =IF(AND('فاتورة مبيعات'!$F$3=E68,'فاتورة مبيعات'!$D$3=D68),COUNTIFS($E$5:E68,E68,$D$5:D68,D68),"") ->  | I68: 0 | J68: 0.14 | K68: 0 | L68: 0
B69: =IF(AND('فاتورة مبيعات'!$F$3=E69,'فاتورة مبيعات'!$D$3=D69),COUNTIFS($E$5:E69,E69,$D$5:D69,D69),"") ->  | I69: =H69*G69 -> 0 | J69: 0.14 | K69: =I69*J69 -> 0 | L69: 0
B70: =IF(AND('فاتورة مبيعات'!$F$3=E70,'فاتورة مبيعات'!$D$3=D70),COUNTIFS($E$5:E70,E70,$D$5:D70,D70),"") ->  | I70: 0 | J70: 0.14 | K70: 0 | L70: 0
B71: =IF(AND('فاتورة مبيعات'!$F$3=E71,'فاتورة مبيعات'!$D$3=D71),COUNTIFS($E$5:E71,E71,$D$5:D71,D71),"") ->  | I71: 0 | J71: 0.14 | K71: 0 | L71: 0
B72: =IF(AND('فاتورة مبيعات'!$F$3=E72,'فاتورة مبيعات'!$D$3=D72),COUNTIFS($E$5:E72,E72,$D$5:D72,D72),"") ->  | I72: 0 | J72: 0.14 | K72: 0 | L72: =I72+K72 -> 0
B73: =IF(AND('فاتورة مبيعات'!$F$3=E73,'فاتورة مبيعات'!$D$3=D73),COUNTIFS($E$5:E73,E73,$D$5:D73,D73),"") ->  | I73: 0 | J73: 0.14 | K73: 0 | L73: 0
B74: =IF(AND('فاتورة مبيعات'!$F$3=E74,'فاتورة مبيعات'!$D$3=D74),COUNTIFS($E$5:E74,E74,$D$5:D74,D74),"") ->  | I74: 0 | J74: 0.14 | K74: 0 | L74: 0
B75: =IF(AND('فاتورة مبيعات'!$F$3=E75,'فاتورة مبيعات'!$D$3=D75),COUNTIFS($E$5:E75,E75,$D$5:D75,D75),"") ->  | I75: 0 | J75: 0.14 | K75: 0 | L75: 0
B76: =IF(AND('فاتورة مبيعات'!$F$3=E76,'فاتورة مبيعات'!$D$3=D76),COUNTIFS($E$5:E76,E76,$D$5:D76,D76),"") ->  | I76: 0 | J76: 0.14 | K76: 0 | L76: 0
B77: =IF(AND('فاتورة مبيعات'!$F$3=E77,'فاتورة مبيعات'!$D$3=D77),COUNTIFS($E$5:E77,E77,$D$5:D77,D77),"") ->  | I77: 0 | J77: 0.14 | K77: 0 | L77: 0
B78: =IF(AND('فاتورة مبيعات'!$F$3=E78,'فاتورة مبيعات'!$D$3=D78),COUNTIFS($E$5:E78,E78,$D$5:D78,D78),"") ->  | I78: 0 | J78: 0.14 | K78: 0 | L78: 0
B79: =IF(AND('فاتورة مبيعات'!$F$3=E79,'فاتورة مبيعات'!$D$3=D79),COUNTIFS($E$5:E79,E79,$D$5:D79,D79),"") ->  | I79: 0 | J79: 0.14 | K79: 0 | L79: 0
B80: =IF(AND('فاتورة مبيعات'!$F$3=E80,'فاتورة مبيعات'!$D$3=D80),COUNTIFS($E$5:E80,E80,$D$5:D80,D80),"") ->  | I80: 0 | J80: 0.14 | K80: 0 | L80: 0
B81: =IF(AND('فاتورة مبيعات'!$F$3=E81,'فاتورة مبيعات'!$D$3=D81),COUNTIFS($E$5:E81,E81,$D$5:D81,D81),"") ->  | I81: 0 | J81: 0.14 | K81: 0 | L81: 0
B82: =IF(AND('فاتورة مبيعات'!$F$3=E82,'فاتورة مبيعات'!$D$3=D82),COUNTIFS($E$5:E82,E82,$D$5:D82,D82),"") ->  | I82: 0 | J82: 0.14 | K82: 0 | L82: 0
B83: =IF(AND('فاتورة مبيعات'!$F$3=E83,'فاتورة مبيعات'!$D$3=D83),COUNTIFS($E$5:E83,E83,$D$5:D83,D83),"") ->  | I83: 0 | J83: 0.14 | K83: 0 | L83: 0
B84: =IF(AND('فاتورة مبيعات'!$F$3=E84,'فاتورة مبيعات'!$D$3=D84),COUNTIFS($E$5:E84,E84,$D$5:D84,D84),"") ->  | I84: 0 | J84: 0.14 | K84: 0 | L84: 0
B85: =IF(AND('فاتورة مبيعات'!$F$3=E85,'فاتورة مبيعات'!$D$3=D85),COUNTIFS($E$5:E85,E85,$D$5:D85,D85),"") ->  | I85: 0 | J85: 0.14 | K85: 0 | L85: 0
B86: =IF(AND('فاتورة مبيعات'!$F$3=E86,'فاتورة مبيعات'!$D$3=D86),COUNTIFS($E$5:E86,E86,$D$5:D86,D86),"") ->  | I86: 0 | J86: 0.14 | K86: 0 | L86: 0
B87: =IF(AND('فاتورة مبيعات'!$F$3=E87,'فاتورة مبيعات'!$D$3=D87),COUNTIFS($E$5:E87,E87,$D$5:D87,D87),"") ->  | I87: 0 | J87: 0.14 | K87: 0 | L87: 0
B88: =IF(AND('فاتورة مبيعات'!$F$3=E88,'فاتورة مبيعات'!$D$3=D88),COUNTIFS($E$5:E88,E88,$D$5:D88,D88),"") ->  | I88: 0 | J88: 0.14 | K88: 0 | L88: 0
B89: =IF(AND('فاتورة مبيعات'!$F$3=E89,'فاتورة مبيعات'!$D$3=D89),COUNTIFS($E$5:E89,E89,$D$5:D89,D89),"") ->  | I89: 0 | J89: 0.14 | K89: 0 | L89: 0
B90: =IF(AND('فاتورة مبيعات'!$F$3=E90,'فاتورة مبيعات'!$D$3=D90),COUNTIFS($E$5:E90,E90,$D$5:D90,D90),"") ->  | I90: 0 | J90: 0.14 | K90: 0 | L90: 0
B91: =IF(AND('فاتورة مبيعات'!$F$3=E91,'فاتورة مبيعات'!$D$3=D91),COUNTIFS($E$5:E91,E91,$D$5:D91,D91),"") ->  | I91: 0 | J91: 0.14 | K91: 0 | L91: 0
B92: =IF(AND('فاتورة مبيعات'!$F$3=E92,'فاتورة مبيعات'!$D$3=D92),COUNTIFS($E$5:E92,E92,$D$5:D92,D92),"") ->  | I92: 0 | J92: 0.14 | K92: 0 | L92: 0
B93: =IF(AND('فاتورة مبيعات'!$F$3=E93,'فاتورة مبيعات'!$D$3=D93),COUNTIFS($E$5:E93,E93,$D$5:D93,D93),"") ->  | I93: 0 | J93: 0.14 | K93: 0 | L93: 0
B94: =IF(AND('فاتورة مبيعات'!$F$3=E94,'فاتورة مبيعات'!$D$3=D94),COUNTIFS($E$5:E94,E94,$D$5:D94,D94),"") ->  | I94: 0 | J94: 0.14 | K94: 0 | L94: 0
B95: =IF(AND('فاتورة مبيعات'!$F$3=E95,'فاتورة مبيعات'!$D$3=D95),COUNTIFS($E$5:E95,E95,$D$5:D95,D95),"") ->  | I95: 0 | J95: 0.14 | K95: 0 | L95: 0
B96: =IF(AND('فاتورة مبيعات'!$F$3=E96,'فاتورة مبيعات'!$D$3=D96),COUNTIFS($E$5:E96,E96,$D$5:D96,D96),"") ->  | I96: 0 | J96: 0.14 | K96: 0 | L96: 0
B97: =IF(AND('فاتورة مبيعات'!$F$3=E97,'فاتورة مبيعات'!$D$3=D97),COUNTIFS($E$5:E97,E97,$D$5:D97,D97),"") -> 
C98: الاجماليات | G98: =SUM(G5:G97) -> 22 | H98: =SUM(H5:H97) -> 205 | I98: =SUM(I5:I97) -> 2250 | K98: =SUM(K5:K97) -> 315 | L98: =SUM(L5:L97) -> 2565
C100: الاجماليات | G100: =SUBTOTAL(9,G5:G97) -> 22 | H100: =SUBTOTAL(9,H5:H97) -> 205 | I100: =SUBTOTAL(9,I5:I97) -> 2250 | K100: =SUBTOTAL(9,K5:K97) -> 315 | L100: =SUBTOTAL(9,L5:L97) -> 2565
L104: =#REF!*#REF! -> 

Sheet 11
E1: zzzzzz
C4: مسلسل | D4: رقم الفاتورة | E4: تاريخ | F4: اسم العميل | G4: الكمية | H4: سعر | I4: قيمة | J4: ض.ق.م | K4: اجمالى المبيعات مضاف الضريبة | L4: اجمالى قيمة الضريبة
B5: =IF(AND('فاتورة مبيعات'!$F$3=E5,'فاتورة مبيعات'!$D$3=D5),COUNTIFS($E$5:E5,E5,$D$5:D5,D5),"") ->  | G5: 12 | H5: 100 | I5: =H5*G5 -> 1200 | J5: 0.14 | K5: =I5*J5 -> 168 | L5: =I5+K5 -> 1368
B6: =IF(AND('فاتورة مبيعات'!$F$3=E6,'فاتورة مبيعات'!$D$3=D6),COUNTIFS($E$5:E6,E6,$D$5:D6,D6),"") ->  | G6: 10 | H6: 105 | I6: 1050 | J6: 0.14 | K6: 147 | L6: =I6+K6 -> 1197
B7: =IF(AND('فاتورة مبيعات'!$F$3=E7,'فاتورة مبيعات'!$D$3=D7),COUNTIFS($E$5:E7,E7,$D$5:D7,D7),"") ->  | I7: 0 | J7: 0.14 | K7: 0 | L7: =I7+K7 -> 0
B8: =IF(AND('فاتورة مبيعات'!$F$3=E8,'فاتورة مبيعات'!$D$3=D8),COUNTIFS($E$5:E8,E8,$D$5:D8,D8),"") ->  | I8: 0 | J8: 0.14 | K8: 0 | L8: =I8+K8 -> 0
B9: =IF(AND('فاتورة مبيعات'!$F$3=E9,'فاتورة مبيعات'!$D$3=D9),COUNTIFS($E$5:E9,E9,$D$5:D9,D9),"") ->  | I9: 0 | J9: 0.14 | K9: 0 | L9: 0
B10: =IF(AND('فاتورة مبيعات'!$F$3=E10,'فاتورة مبيعات'!$D$3=D10),COUNTIFS($E$5:E10,E10,$D$5:D10,D10),"") ->  | I10: 0 | J10: 0.14 | K10: 0 | L10: 0
B11: =IF(AND('فاتورة مبيعات'!$F$3=E11,'فاتورة مبيعات'!$D$3=D11),COUNTIFS($E$5:E11,E11,$D$5:D11,D11),"") ->  | I11: 0 | J11: 0.14 | K11: 0 | L11: 0
B12: =IF(AND('فاتورة مبيعات'!$F$3=E12,'فاتورة مبيعات'!$D$3=D12),COUNTIFS($E$5:E12,E12,$D$5:D12,D12),"") ->  | I12: 0 | J12: 0.14 | K12: 0 | L12: 0
B13: =IF(AND('فاتورة مبيعات'!$F$3=E13,'فاتورة مبيعات'!$D$3=D13),COUNTIFS($E$5:E13,E13,$D$5:D13,D13),"") ->  | I13: 0 | J13: 0.14 | K13: 0 | L13: 0
B14: =IF(AND('فاتورة مبيعات'!$F$3=E14,'فاتورة مبيعات'!$D$3=D14),COUNTIFS($E$5:E14,E14,$D$5:D14,D14),"") ->  | I14: 0 | J14: 0.14 | K14: 0 | L14: 0
B15: =IF(AND('فاتورة مبيعات'!$F$3=E15,'فاتورة مبيعات'!$D$3=D15),COUNTIFS($E$5:E15,E15,$D$5:D15,D15),"") ->  | I15: 0 | J15: 0.14 | K15: 0 | L15: 0
B16: =IF(AND('فاتورة مبيعات'!$F$3=E16,'فاتورة مبيعات'!$D$3=D16),COUNTIFS($E$5:E16,E16,$D$5:D16,D16),"") ->  | I16: 0 | J16: 0.14 | K16: 0 | L16: 0
B17: =IF(AND('فاتورة مبيعات'!$F$3=E17,'فاتورة مبيعات'!$D$3=D17),COUNTIFS($E$5:E17,E17,$D$5:D17,D17),"") ->  | I17: 0 | J17: 0.14 | K17: 0 | L17: 0
B18: =IF(AND('فاتورة مبيعات'!$F$3=E18,'فاتورة مبيعات'!$D$3=D18),COUNTIFS($E$5:E18,E18,$D$5:D18,D18),"") ->  | I18: 0 | J18: 0.14 | K18: 0 | L18: 0
B19: =IF(AND('فاتورة مبيعات'!$F$3=E19,'فاتورة مبيعات'!$D$3=D19),COUNTIFS($E$5:E19,E19,$D$5:D19,D19),"") ->  | I19: 0 | J19: 0.14 | K19: 0 | L19: 0
B20: =IF(AND('فاتورة مبيعات'!$F$3=E20,'فاتورة مبيعات'!$D$3=D20),COUNTIFS($E$5:E20,E20,$D$5:D20,D20),"") ->  | I20: 0 | J20: 0.14 | K20: 0 | L20: 0
B21: =IF(AND('فاتورة مبيعات'!$F$3=E21,'فاتورة مبيعات'!$D$3=D21),COUNTIFS($E$5:E21,E21,$D$5:D21,D21),"") ->  | I21: 0 | J21: 0.14 | K21: 0 | L21: 0
B22: =IF(AND('فاتورة مبيعات'!$F$3=E22,'فاتورة مبيعات'!$D$3=D22),COUNTIFS($E$5:E22,E22,$D$5:D22,D22),"") ->  | I22: 0 | J22: 0.14 | K22: 0 | L22: 0
B23: =IF(AND('فاتورة مبيعات'!$F$3=E23,'فاتورة مبيعات'!$D$3=D23),COUNTIFS($E$5:E23,E23,$D$5:D23,D23),"") ->  | I23: 0 | J23: 0.14 | K23: 0 | L23: 0
B24: =IF(AND('فاتورة مبيعات'!$F$3=E24,'فاتورة مبيعات'!$D$3=D24),COUNTIFS($E$5:E24,E24,$D$5:D24,D24),"") ->  | I24: 0 | J24: 0.14 | K24: 0 | L24: 0
B25: =IF(AND('فاتورة مبيعات'!$F$3=E25,'فاتورة مبيعات'!$D$3=D25),COUNTIFS($E$5:E25,E25,$D$5:D25,D25),"") ->  | I25: 0 | J25: 0.14 | K25: 0 | L25: 0
B26: =IF(AND('فاتورة مبيعات'!$F$3=E26,'فاتورة مبيعات'!$D$3=D26),COUNTIFS($E$5:E26,E26,$D$5:D26,D26),"") ->  | I26: 0 | J26: 0.14 | K26: 0 | L26: 0
B27: =IF(AND('فاتورة مبيعات'!$F$3=E27,'فاتورة مبيعات'!$D$3=D27),COUNTIFS($E$5:E27,E27,$D$5:D27,D27),"") ->  | I27: 0 | J27: 0.14 | K27: 0 | L27: 0
B28: =IF(AND('فاتورة مبيعات'!$F$3=E28,'فاتورة مبيعات'!$D$3=D28),COUNTIFS($E$5:E28,E28,$D$5:D28,D28),"") ->  | I28: 0 | J28: 0.14 | K28: 0 | L28: 0
B29: =IF(AND('فاتورة مبيعات'!$F$3=E29,'فاتورة مبيعات'!$D$3=D29),COUNTIFS($E$5:E29,E29,$D$5:D29,D29),"") ->  | I29: 0 | J29: 0.14 | K29: 0 | L29: 0
B30: =IF(AND('فاتورة مبيعات'!$F$3=E30,'فاتورة مبيعات'!$D$3=D30),COUNTIFS($E$5:E30,E30,$D$5:D30,D30),"") ->  | I30: 0 | J30: 0.14 | K30: 0 | L30: 0
B31: =IF(AND('فاتورة مبيعات'!$F$3=E31,'فاتورة مبيعات'!$D$3=D31),COUNTIFS($E$5:E31,E31,$D$5:D31,D31),"") ->  | I31: 0 | J31: 0.14 | K31: 0 | L31: 0
B32: =IF(AND('فاتورة مبيعات'!$F$3=E32,'فاتورة مبيعات'!$D$3=D32),COUNTIFS($E$5:E32,E32,$D$5:D32,D32),"") ->  | I32: 0 | J32: 0.14 | K32: 0 | L32: 0
B33: =IF(AND('فاتورة مبيعات'!$F$3=E33,'فاتورة مبيعات'!$D$3=D33),COUNTIFS($E$5:E33,E33,$D$5:D33,D33),"") ->  | I33: 0 | J33: 0.14 | K33: 0 | L33: 0
B34: =IF(AND('فاتورة مبيعات'!$F$3=E34,'فاتورة مبيعات'!$D$3=D34),COUNTIFS($E$5:E34,E34,$D$5:D34,D34),"") ->  | I34: 0 | J34: 0.14 | K34: 0 | L34: 0
B35: =IF(AND('فاتورة مبيعات'!$F$3=E35,'فاتورة مبيعات'!$D$3=D35),COUNTIFS($E$5:E35,E35,$D$5:D35,D35),"") ->  | I35: 0 | J35: 0.14 | K35: 0 | L35: 0
B36: =IF(AND('فاتورة مبيعات'!$F$3=E36,'فاتورة مبيعات'!$D$3=D36),COUNTIFS($E$5:E36,E36,$D$5:D36,D36),"") ->  | I36: 0 | J36: 0.14 | K36: 0 | L36: 0
B37: =IF(AND('فاتورة مبيعات'!$F$3=E37,'فاتورة مبيعات'!$D$3=D37),COUNTIFS($E$5:E37,E37,$D$5:D37,D37),"") ->  | I37: =H37*G37 -> 0 | J37: 0.14 | K37: =I37*J37 -> 0 | L37: 0
B38: =IF(AND('فاتورة مبيعات'!$F$3=E38,'فاتورة مبيعات'!$D$3=D38),COUNTIFS($E$5:E38,E38,$D$5:D38,D38),"") ->  | I38: 0 | J38: 0.14 | K38: 0 | L38: 0
B39: =IF(AND('فاتورة مبيعات'!$F$3=E39,'فاتورة مبيعات'!$D$3=D39),COUNTIFS($E$5:E39,E39,$D$5:D39,D39),"") ->  | I39: 0 | J39: 0.14 | K39: 0 | L39: 0
B40: =IF(AND('فاتورة مبيعات'!$F$3=E40,'فاتورة مبيعات'!$D$3=D40),COUNTIFS($E$5:E40,E40,$D$5:D40,D40),"") ->  | I40: 0 | J40: 0.14 | K40: 0 | L40: 0
B41: =IF(AND('فاتورة مبيعات'!$F$3=E41,'فاتورة مبيعات'!$D$3=D41),COUNTIFS($E$5:E41,E41,$D$5:D41,D41),"") ->  | I41: 0 | J41: 0.14 | K41: 0 | L41: 0
B42: =IF(AND('فاتورة مبيعات'!$F$3=E42,'فاتورة مبيعات'!$D$3=D42),COUNTIFS($E$5:E42,E42,$D$5:D42,D42),"") ->  | I42: 0 | J42: 0.14 | K42: 0 | L42: 0
B43: =IF(AND('فاتورة مبيعات'!$F$3=E43,'فاتورة مبيعات'!$D$3=D43),COUNTIFS($E$5:E43,E43,$D$5:D43,D43),"") ->  | I43: 0 | J43: 0.14 | K43: 0 | L43: 0
B44: =IF(AND('فاتورة مبيعات'!$F$3=E44,'فاتورة مبيعات'!$D$3=D44),COUNTIFS($E$5:E44,E44,$D$5:D44,D44),"") ->  | I44: 0 | J44: 0.14 | K44: 0 | L44: 0
B45: =IF(AND('فاتورة مبيعات'!$F$3=E45,'فاتورة مبيعات'!$D$3=D45),COUNTIFS($E$5:E45,E45,$D$5:D45,D45),"") ->  | I45: 0 | J45: 0.14 | K45: 0 | L45: 0
B46: =IF(AND('فاتورة مبيعات'!$F$3=E46,'فاتورة مبيعات'!$D$3=D46),COUNTIFS($E$5:E46,E46,$D$5:D46,D46),"") ->  | I46: 0 | J46: 0.14 | K46: 0 | L46: 0
B47: =IF(AND('فاتورة مبيعات'!$F$3=E47,'فاتورة مبيعات'!$D$3=D47),COUNTIFS($E$5:E47,E47,$D$5:D47,D47),"") ->  | I47: 0 | J47: 0.14 | K47: 0 | L47: 0
B48: =IF(AND('فاتورة مبيعات'!$F$3=E48,'فاتورة مبيعات'!$D$3=D48),COUNTIFS($E$5:E48,E48,$D$5:D48,D48),"") ->  | I48: 0 | J48: 0.14 | K48: 0 | L48: 0
B49: =IF(AND('فاتورة مبيعات'!$F$3=E49,'فاتورة مبيعات'!$D$3=D49),COUNTIFS($E$5:E49,E49,$D$5:D49,D49),"") ->  | I49: 0 | J49: 0.14 | K49: 0 | L49: 0
B50: =IF(AND('فاتورة مبيعات'!$F$3=E50,'فاتورة مبيعات'!$D$3=D50),COUNTIFS($E$5:E50,E50,$D$5:D50,D50),"") ->  | I50: 0 | J50: 0.14 | K50: 0 | L50: 0
B51: =IF(AND('فاتورة مبيعات'!$F$3=E51,'فاتورة مبيعات'!$D$3=D51),COUNTIFS($E$5:E51,E51,$D$5:D51,D51),"") ->  | I51: 0 | J51: 0.14 | K51: 0 | L51: 0
B52: =IF(AND('فاتورة مبيعات'!$F$3=E52,'فاتورة مبيعات'!$D$3=D52),COUNTIFS($E$5:E52,E52,$D$5:D52,D52),"") ->  | I52: 0 | J52: 0.14 | K52: 0 | L52: 0
B53: =IF(AND('فاتورة مبيعات'!$F$3=E53,'فاتورة مبيعات'!$D$3=D53),COUNTIFS($E$5:E53,E53,$D$5:D53,D53),"") ->  | I53: 0 | J53: 0.14 | K53: 0 | L53: 0
B54: =IF(AND('فاتورة مبيعات'!$F$3=E54,'فاتورة مبيعات'!$D$3=D54),COUNTIFS($E$5:E54,E54,$D$5:D54,D54),"") ->  | I54: 0 | J54: 0.14 | K54: 0 | L54: 0
B55: =IF(AND('فاتورة مبيعات'!$F$3=E55,'فاتورة مبيعات'!$D$3=D55),COUNTIFS($E$5:E55,E55,$D$5:D55,D55),"") ->  | I55: 0 | J55: 0.14 | K55: 0 | L55: 0
B56: =IF(AND('فاتورة مبيعات'!$F$3=E56,'فاتورة مبيعات'!$D$3=D56),COUNTIFS($E$5:E56,E56,$D$5:D56,D56),"") ->  | I56: 0 | J56: 0.14 | K56: 0 | L56: 0
B57: =IF(AND('فاتورة مبيعات'!$F$3=E57,'فاتورة مبيعات'!$D$3=D57),COUNTIFS($E$5:E57,E57,$D$5:D57,D57),"") ->  | I57: 0 | J57: 0.14 | K57: 0 | L57: 0
B58: =IF(AND('فاتورة مبيعات'!$F$3=E58,'فاتورة مبيعات'!$D$3=D58),COUNTIFS($E$5:E58,E58,$D$5:D58,D58),"") ->  | I58: 0 | J58: 0.14 | K58: 0 | L58: 0
B59: =IF(AND('فاتورة مبيعات'!$F$3=E59,'فاتورة مبيعات'!$D$3=D59),COUNTIFS($E$5:E59,E59,$D$5:D59,D59),"") ->  | I59: 0 | J59: 0.14 | K59: 0 | L59: 0
B60: =IF(AND('فاتورة مبيعات'!$F$3=E60,'فاتورة مبيعات'!$D$3=D60),COUNTIFS($E$5:E60,E60,$D$5:D60,D60),"") ->  | I60: 0 | J60: 0.14 | K60: 0 | L60: 0
B61: =IF(AND('فاتورة مبيعات'!$F$3=E61,'فاتورة مبيعات'!$D$3=D61),COUNTIFS($E$5:E61,E61,$D$5:D61,D61),"") ->  | I61: 0 | J61: 0.14 | K61: 0 | L61: 0
B62: =IF(AND('فاتورة مبيعات'!$F$3=E62,'فاتورة مبيعات'!$D$3=D62),COUNTIFS($E$5:E62,E62,$D$5:D62,D62),"") ->  | I62: 0 | J62: 0.14 | K62: 0 | L62: 0
B63: =IF(AND('فاتورة مبيعات'!$F$3=E63,'فاتورة مبيعات'!$D$3=D63),COUNTIFS($E$5:E63,E63,$D$5:D63,D63),"") ->  | I63: 0 | J63: 0.14 | K63: 0 | L63: 0
B64: =IF(AND('فاتورة مبيعات'!$F$3=E64,'فاتورة مبيعات'!$D$3=D64),COUNTIFS($E$5:E64,E64,$D$5:D64,D64),"") ->  | I64: 0 | J64: 0.14 | K64: 0 | L64: 0
B65: =IF(AND('فاتورة مبيعات'!$F$3=E65,'فاتورة مبيعات'!$D$3=D65),COUNTIFS($E$5:E65,E65,$D$5:D65,D65),"") ->  | I65: 0 | J65: 0.14 | K65: 0 | L65: 0
B66: =IF(AND('فاتورة مبيعات'!$F$3=E66,'فاتورة مبيعات'!$D$3=D66),COUNTIFS($E$5:E66,E66,$D$5:D66,D66),"") ->  | I66: 0 | J66: 0.14 | K66: 0 | L66: 0
B67: =IF(AND('فاتورة مبيعات'!$F$3=E67,'فاتورة مبيعات'!$D$3=D67),COUNTIFS($E$5:E67,E67,$D$5:D67,D67),"") ->  | I67: 0 | J67: 0.14 | K67: 0 | L67: 0
B68: =IF(AND('فاتورة مبيعات'!$F$3=E68,'فاتورة مبيعات'!$D$3=D68),COUNTIFS($E$5:E68,E68,$D$5:D68,D68),"") ->  | I68: 0 | J68: 0.14 | K68: 0 | L68: 0
B69: =IF(AND('فاتورة مبيعات'!$F$3=E69,'فاتورة مبيعات'!$D$3=D69),COUNTIFS($E$5:E69,E69,$D$5:D69,D69),"") ->  | I69: =H69*G69 -> 0 | J69: 0.14 | K69: =I69*J69 -> 0 | L69: 0
B70: =IF(AND('فاتورة مبيعات'!$F$3=E70,'فاتورة مبيعات'!$D$3=D70),COUNTIFS($E$5:E70,E70,$D$5:D70,D70),"") ->  | I70: 0 | J70: 0.14 | K70: 0 | L70: 0
B71: =IF(AND('فاتورة مبيعات'!$F$3=E71,'فاتورة مبيعات'!$D$3=D71),COUNTIFS($E$5:E71,E71,$D$5:D71,D71),"") ->  | I71: 0 | J71: 0.14 | K71: 0 | L71: 0
B72: =IF(AND('فاتورة مبيعات'!$F$3=E72,'فاتورة مبيعات'!$D$3=D72),COUNTIFS($E$5:E72,E72,$D$5:D72,D72),"") ->  | I72: 0 | J72: 0.14 | K72: 0 | L72: =I72+K72 -> 0
B73: =IF(AND('فاتورة مبيعات'!$F$3=E73,'فاتورة مبيعات'!$D$3=D73),COUNTIFS($E$5:E73,E73,$D$5:D73,D73),"") ->  | I73: 0 | J73: 0.14 | K73: 0 | L73: 0
B74: =IF(AND('فاتورة مبيعات'!$F$3=E74,'فاتورة مبيعات'!$D$3=D74),COUNTIFS($E$5:E74,E74,$D$5:D74,D74),"") ->  | I74: 0 | J74: 0.14 | K74: 0 | L74: 0
B75: =IF(AND('فاتورة مبيعات'!$F$3=E75,'فاتورة مبيعات'!$D$3=D75),COUNTIFS($E$5:E75,E75,$D$5:D75,D75),"") ->  | I75: 0 | J75: 0.14 | K75: 0 | L75: 0
B76: =IF(AND('فاتورة مبيعات'!$F$3=E76,'فاتورة مبيعات'!$D$3=D76),COUNTIFS($E$5:E76,E76,$D$5:D76,D76),"") ->  | I76: 0 | J76: 0.14 | K76: 0 | L76: 0
B77: =IF(AND('فاتورة مبيعات'!$F$3=E77,'فاتورة مبيعات'!$D$3=D77),COUNTIFS($E$5:E77,E77,$D$5:D77,D77),"") ->  | I77: 0 | J77: 0.14 | K77: 0 | L77: 0
B78: =IF(AND('فاتورة مبيعات'!$F$3=E78,'فاتورة مبيعات'!$D$3=D78),COUNTIFS($E$5:E78,E78,$D$5:D78,D78),"") ->  | I78: 0 | J78: 0.14 | K78: 0 | L78: 0
B79: =IF(AND('فاتورة مبيعات'!$F$3=E79,'فاتورة مبيعات'!$D$3=D79),COUNTIFS($E$5:E79,E79,$D$5:D79,D79),"") ->  | I79: 0 | J79: 0.14 | K79: 0 | L79: 0
B80: =IF(AND('فاتورة مبيعات'!$F$3=E80,'فاتورة مبيعات'!$D$3=D80),COUNTIFS($E$5:E80,E80,$D$5:D80,D80),"") ->  | I80: 0 | J80: 0.14 | K80: 0 | L80: 0
B81: =IF(AND('فاتورة مبيعات'!$F$3=E81,'فاتورة مبيعات'!$D$3=D81),COUNTIFS($E$5:E81,E81,$D$5:D81,D81),"") ->  | I81: 0 | J81: 0.14 | K81: 0 | L81: 0
B82: =IF(AND('فاتورة مبيعات'!$F$3=E82,'فاتورة مبيعات'!$D$3=D82),COUNTIFS($E$5:E82,E82,$D$5:D82,D82),"") ->  | I82: 0 | J82: 0.14 | K82: 0 | L82: 0
B83: =IF(AND('فاتورة مبيعات'!$F$3=E83,'فاتورة مبيعات'!$D$3=D83),COUNTIFS($E$5:E83,E83,$D$5:D83,D83),"") ->  | I83: 0 | J83: 0.14 | K83: 0 | L83: 0
B84: =IF(AND('فاتورة مبيعات'!$F$3=E84,'فاتورة مبيعات'!$D$3=D84),COUNTIFS($E$5:E84,E84,$D$5:D84,D84),"") ->  | I84: 0 | J84: 0.14 | K84: 0 | L84: 0
B85: =IF(AND('فاتورة مبيعات'!$F$3=E85,'فاتورة مبيعات'!$D$3=D85),COUNTIFS($E$5:E85,E85,$D$5:D85,D85),"") ->  | I85: 0 | J85: 0.14 | K85: 0 | L85: 0
B86: =IF(AND('فاتورة مبيعات'!$F$3=E86,'فاتورة مبيعات'!$D$3=D86),COUNTIFS($E$5:E86,E86,$D$5:D86,D86),"") ->  | I86: 0 | J86: 0.14 | K86: 0 | L86: 0
B87: =IF(AND('فاتورة مبيعات'!$F$3=E87,'فاتورة مبيعات'!$D$3=D87),COUNTIFS($E$5:E87,E87,$D$5:D87,D87),"") ->  | I87: 0 | J87: 0.14 | K87: 0 | L87: 0
B88: =IF(AND('فاتورة مبيعات'!$F$3=E88,'فاتورة مبيعات'!$D$3=D88),COUNTIFS($E$5:E88,E88,$D$5:D88,D88),"") ->  | I88: 0 | J88: 0.14 | K88: 0 | L88: 0
B89: =IF(AND('فاتورة مبيعات'!$F$3=E89,'فاتورة مبيعات'!$D$3=D89),COUNTIFS($E$5:E89,E89,$D$5:D89,D89),"") ->  | I89: 0 | J89: 0.14 | K89: 0 | L89: 0
B90: =IF(AND('فاتورة مبيعات'!$F$3=E90,'فاتورة مبيعات'!$D$3=D90),COUNTIFS($E$5:E90,E90,$D$5:D90,D90),"") ->  | I90: 0 | J90: 0.14 | K90: 0 | L90: 0
B91: =IF(AND('فاتورة مبيعات'!$F$3=E91,'فاتورة مبيعات'!$D$3=D91),COUNTIFS($E$5:E91,E91,$D$5:D91,D91),"") ->  | I91: 0 | J91: 0.14 | K91: 0 | L91: 0
B92: =IF(AND('فاتورة مبيعات'!$F$3=E92,'فاتورة مبيعات'!$D$3=D92),COUNTIFS($E$5:E92,E92,$D$5:D92,D92),"") ->  | I92: 0 | J92: 0.14 | K92: 0 | L92: 0
B93: =IF(AND('فاتورة مبيعات'!$F$3=E93,'فاتورة مبيعات'!$D$3=D93),COUNTIFS($E$5:E93,E93,$D$5:D93,D93),"") ->  | I93: 0 | J93: 0.14 | K93: 0 | L93: 0
B94: =IF(AND('فاتورة مبيعات'!$F$3=E94,'فاتورة مبيعات'!$D$3=D94),COUNTIFS($E$5:E94,E94,$D$5:D94,D94),"") ->  | I94: 0 | J94: 0.14 | K94: 0 | L94: 0
B95: =IF(AND('فاتورة مبيعات'!$F$3=E95,'فاتورة مبيعات'!$D$3=D95),COUNTIFS($E$5:E95,E95,$D$5:D95,D95),"") ->  | I95: 0 | J95: 0.14 | K95: 0 | L95: 0
B96: =IF(AND('فاتورة مبيعات'!$F$3=E96,'فاتورة مبيعات'!$D$3=D96),COUNTIFS($E$5:E96,E96,$D$5:D96,D96),"") ->  | I96: 0 | J96: 0.14 | K96: 0 | L96: 0
B97: =IF(AND('فاتورة مبيعات'!$F$3=E97,'فاتورة مبيعات'!$D$3=D97),COUNTIFS($E$5:E97,E97,$D$5:D97,D97),"") -> 
B98: =IF(AND('فاتورة مبيعات'!$F$3=E98,'فاتورة مبيعات'!$D$3=D98),COUNTIFS($E$5:E98,E98,$D$5:D98,D98),"") ->  | C98: الاجماليات | G98: =SUM(G5:G97) -> 22 | H98: =SUM(H5:H97) -> 205 | I98: =SUM(I5:I97) -> 2250 | K98: =SUM(K5:K97) -> 315 | L98: =SUM(L5:L97) -> 2565
B99: =IF(AND('فاتورة مبيعات'!$F$3=E99,'فاتورة مبيعات'!$D$3=D99),COUNTIFS($E$5:E99,E99,$D$5:D99,D99),"") -> 
C100: الاجماليات | G100: =SUBTOTAL(9,G5:G97) -> 22 | H100: =SUBTOTAL(9,H5:H97) -> 205 | I100: =SUBTOTAL(9,I5:I97) -> 2250 | K100: =SUBTOTAL(9,K5:K97) -> 315 | L100: =SUBTOTAL(9,L5:L97) -> 2565

Sheet 12
C4: مسلسل | D4: رقم الفاتورة | E4: تاريخ | F4: اسم العميل | G4: الكمية | H4: سعر | I4: قيمة | J4: ض.ق.م | K4: اجمالى المبيعات مضاف الضريبة | L4: اجمالى قيمة الضريبة
B5: =IF(AND('فاتورة مبيعات'!$F$3=E5,'فاتورة مبيعات'!$D$3=D5),COUNTIFS($E$5:E5,E5,$D$5:D5,D5),"") ->  | G5: 12 | H5: 100 | I5: =H5*G5 -> 1200 | J5: 0.14 | K5: =I5*J5 -> 168 | L5: =I5+K5 -> 1368
B6: =IF(AND('فاتورة مبيعات'!$F$3=E6,'فاتورة مبيعات'!$D$3=D6),COUNTIFS($E$5:E6,E6,$D$5:D6,D6),"") ->  | G6: 10 | H6: 105 | I6: 1050 | J6: 0.14 | K6: 147 | L6: =I6+K6 -> 1197
B7: =IF(AND('فاتورة مبيعات'!$F$3=E7,'فاتورة مبيعات'!$D$3=D7),COUNTIFS($E$5:E7,E7,$D$5:D7,D7),"") ->  | I7: 0 | J7: 0.14 | K7: 0 | L7: =I7+K7 -> 0
B8: =IF(AND('فاتورة مبيعات'!$F$3=E8,'فاتورة مبيعات'!$D$3=D8),COUNTIFS($E$5:E8,E8,$D$5:D8,D8),"") ->  | I8: 0 | J8: 0.14 | K8: 0 | L8: =I8+K8 -> 0
B9: =IF(AND('فاتورة مبيعات'!$F$3=E9,'فاتورة مبيعات'!$D$3=D9),COUNTIFS($E$5:E9,E9,$D$5:D9,D9),"") ->  | I9: 0 | J9: 0.14 | K9: 0 | L9: 0
B10: =IF(AND('فاتورة مبيعات'!$F$3=E10,'فاتورة مبيعات'!$D$3=D10),COUNTIFS($E$5:E10,E10,$D$5:D10,D10),"") ->  | I10: 0 | J10: 0.14 | K10: 0 | L10: 0
B11: =IF(AND('فاتورة مبيعات'!$F$3=E11,'فاتورة مبيعات'!$D$3=D11),COUNTIFS($E$5:E11,E11,$D$5:D11,D11),"") ->  | I11: 0 | J11: 0.14 | K11: 0 | L11: 0
B12: =IF(AND('فاتورة مبيعات'!$F$3=E12,'فاتورة مبيعات'!$D$3=D12),COUNTIFS($E$5:E12,E12,$D$5:D12,D12),"") ->  | I12: 0 | J12: 0.14 | K12: 0 | L12: 0
B13: =IF(AND('فاتورة مبيعات'!$F$3=E13,'فاتورة مبيعات'!$D$3=D13),COUNTIFS($E$5:E13,E13,$D$5:D13,D13),"") ->  | I13: 0 | J13: 0.14 | K13: 0 | L13: 0
B14: =IF(AND('فاتورة مبيعات'!$F$3=E14,'فاتورة مبيعات'!$D$3=D14),COUNTIFS($E$5:E14,E14,$D$5:D14,D14),"") ->  | I14: 0 | J14: 0.14 | K14: 0 | L14: 0
B15: =IF(AND('فاتورة مبيعات'!$F$3=E15,'فاتورة مبيعات'!$D$3=D15),COUNTIFS($E$5:E15,E15,$D$5:D15,D15),"") ->  | I15: 0 | J15: 0.14 | K15: 0 | L15: 0
B16: =IF(AND('فاتورة مبيعات'!$F$3=E16,'فاتورة مبيعات'!$D$3=D16),COUNTIFS($E$5:E16,E16,$D$5:D16,D16),"") ->  | I16: 0 | J16: 0.14 | K16: 0 | L16: 0
B17: =IF(AND('فاتورة مبيعات'!$F$3=E17,'فاتورة مبيعات'!$D$3=D17),COUNTIFS($E$5:E17,E17,$D$5:D17,D17),"") ->  | I17: 0 | J17: 0.14 | K17: 0 | L17: 0
B18: =IF(AND('فاتورة مبيعات'!$F$3=E18,'فاتورة مبيعات'!$D$3=D18),COUNTIFS($E$5:E18,E18,$D$5:D18,D18),"") ->  | I18: 0 | J18: 0.14 | K18: 0 | L18: 0
B19: =IF(AND('فاتورة مبيعات'!$F$3=E19,'فاتورة مبيعات'!$D$3=D19),COUNTIFS($E$5:E19,E19,$D$5:D19,D19),"") ->  | I19: 0 | J19: 0.14 | K19: 0 | L19: 0
B20: =IF(AND('فاتورة مبيعات'!$F$3=E20,'فاتورة مبيعات'!$D$3=D20),COUNTIFS($E$5:E20,E20,$D$5:D20,D20),"") ->  | I20: 0 | J20: 0.14 | K20: 0 | L20: 0
B21: =IF(AND('فاتورة مبيعات'!$F$3=E21,'فاتورة مبيعات'!$D$3=D21),COUNTIFS($E$5:E21,E21,$D$5:D21,D21),"") ->  | I21: 0 | J21: 0.14 | K21: 0 | L21: 0
B22: =IF(AND('فاتورة مبيعات'!$F$3=E22,'فاتورة مبيعات'!$D$3=D22),COUNTIFS($E$5:E22,E22,$D$5:D22,D22),"") ->  | I22: 0 | J22: 0.14 | K22: 0 | L22: 0
B23: =IF(AND('فاتورة مبيعات'!$F$3=E23,'فاتورة مبيعات'!$D$3=D23),COUNTIFS($E$5:E23,E23,$D$5:D23,D23),"") ->  | I23: 0 | J23: 0.14 | K23: 0 | L23: 0
B24: =IF(AND('فاتورة مبيعات'!$F$3=E24,'فاتورة مبيعات'!$D$3=D24),COUNTIFS($E$5:E24,E24,$D$5:D24,D24),"") ->  | I24: 0 | J24: 0.14 | K24: 0 | L24: 0
B25: =IF(AND('فاتورة مبيعات'!$F$3=E25,'فاتورة مبيعات'!$D$3=D25),COUNTIFS($E$5:E25,E25,$D$5:D25,D25),"") ->  | I25: 0 | J25: 0.14 | K25: 0 | L25: 0
B26: =IF(AND('فاتورة مبيعات'!$F$3=E26,'فاتورة مبيعات'!$D$3=D26),COUNTIFS($E$5:E26,E26,$D$5:D26,D26),"") ->  | I26: 0 | J26: 0.14 | K26: 0 | L26: 0
B27: =IF(AND('فاتورة مبيعات'!$F$3=E27,'فاتورة مبيعات'!$D$3=D27),COUNTIFS($E$5:E27,E27,$D$5:D27,D27),"") ->  | I27: 0 | J27: 0.14 | K27: 0 | L27: 0
B28: =IF(AND('فاتورة مبيعات'!$F$3=E28,'فاتورة مبيعات'!$D$3=D28),COUNTIFS($E$5:E28,E28,$D$5:D28,D28),"") ->  | I28: 0 | J28: 0.14 | K28: 0 | L28: 0
B29: =IF(AND('فاتورة مبيعات'!$F$3=E29,'فاتورة مبيعات'!$D$3=D29),COUNTIFS($E$5:E29,E29,$D$5:D29,D29),"") ->  | I29: 0 | J29: 0.14 | K29: 0 | L29: 0
B30: =IF(AND('فاتورة مبيعات'!$F$3=E30,'فاتورة مبيعات'!$D$3=D30),COUNTIFS($E$5:E30,E30,$D$5:D30,D30),"") ->  | I30: 0 | J30: 0.14 | K30: 0 | L30: 0
B31: =IF(AND('فاتورة مبيعات'!$F$3=E31,'فاتورة مبيعات'!$D$3=D31),COUNTIFS($E$5:E31,E31,$D$5:D31,D31),"") ->  | I31: 0 | J31: 0.14 | K31: 0 | L31: 0
B32: =IF(AND('فاتورة مبيعات'!$F$3=E32,'فاتورة مبيعات'!$D$3=D32),COUNTIFS($E$5:E32,E32,$D$5:D32,D32),"") ->  | I32: 0 | J32: 0.14 | K32: 0 | L32: 0
B33: =IF(AND('فاتورة مبيعات'!$F$3=E33,'فاتورة مبيعات'!$D$3=D33),COUNTIFS($E$5:E33,E33,$D$5:D33,D33),"") ->  | I33: 0 | J33: 0.14 | K33: 0 | L33: 0
B34: =IF(AND('فاتورة مبيعات'!$F$3=E34,'فاتورة مبيعات'!$D$3=D34),COUNTIFS($E$5:E34,E34,$D$5:D34,D34),"") ->  | I34: 0 | J34: 0.14 | K34: 0 | L34: 0
B35: =IF(AND('فاتورة مبيعات'!$F$3=E35,'فاتورة مبيعات'!$D$3=D35),COUNTIFS($E$5:E35,E35,$D$5:D35,D35),"") ->  | I35: 0 | J35: 0.14 | K35: 0 | L35: 0
B36: =IF(AND('فاتورة مبيعات'!$F$3=E36,'فاتورة مبيعات'!$D$3=D36),COUNTIFS($E$5:E36,E36,$D$5:D36,D36),"") ->  | I36: 0 | J36: 0.14 | K36: 0 | L36: 0
B37: =IF(AND('فاتورة مبيعات'!$F$3=E37,'فاتورة مبيعات'!$D$3=D37),COUNTIFS($E$5:E37,E37,$D$5:D37,D37),"") ->  | I37: =H37*G37 -> 0 | J37: 0.14 | K37: =I37*J37 -> 0 | L37: 0
B38: =IF(AND('فاتورة مبيعات'!$F$3=E38,'فاتورة مبيعات'!$D$3=D38),COUNTIFS($E$5:E38,E38,$D$5:D38,D38),"") ->  | I38: 0 | J38: 0.14 | K38: 0 | L38: 0
B39: =IF(AND('فاتورة مبيعات'!$F$3=E39,'فاتورة مبيعات'!$D$3=D39),COUNTIFS($E$5:E39,E39,$D$5:D39,D39),"") ->  | I39: 0 | J39: 0.14 | K39: 0 | L39: 0
B40: =IF(AND('فاتورة مبيعات'!$F$3=E40,'فاتورة مبيعات'!$D$3=D40),COUNTIFS($E$5:E40,E40,$D$5:D40,D40),"") ->  | I40: 0 | J40: 0.14 | K40: 0 | L40: 0
B41: =IF(AND('فاتورة مبيعات'!$F$3=E41,'فاتورة مبيعات'!$D$3=D41),COUNTIFS($E$5:E41,E41,$D$5:D41,D41),"") ->  | I41: 0 | J41: 0.14 | K41: 0 | L41: 0
B42: =IF(AND('فاتورة مبيعات'!$F$3=E42,'فاتورة مبيعات'!$D$3=D42),COUNTIFS($E$5:E42,E42,$D$5:D42,D42),"") ->  | I42: 0 | J42: 0.14 | K42: 0 | L42: 0
B43: =IF(AND('فاتورة مبيعات'!$F$3=E43,'فاتورة مبيعات'!$D$3=D43),COUNTIFS($E$5:E43,E43,$D$5:D43,D43),"") ->  | I43: 0 | J43: 0.14 | K43: 0 | L43: 0
B44: =IF(AND('فاتورة مبيعات'!$F$3=E44,'فاتورة مبيعات'!$D$3=D44),COUNTIFS($E$5:E44,E44,$D$5:D44,D44),"") ->  | I44: 0 | J44: 0.14 | K44: 0 | L44: 0
B45: =IF(AND('فاتورة مبيعات'!$F$3=E45,'فاتورة مبيعات'!$D$3=D45),COUNTIFS($E$5:E45,E45,$D$5:D45,D45),"") ->  | I45: 0 | J45: 0.14 | K45: 0 | L45: 0
B46: =IF(AND('فاتورة مبيعات'!$F$3=E46,'فاتورة مبيعات'!$D$3=D46),COUNTIFS($E$5:E46,E46,$D$5:D46,D46),"") ->  | I46: 0 | J46: 0.14 | K46: 0 | L46: 0
B47: =IF(AND('فاتورة مبيعات'!$F$3=E47,'فاتورة مبيعات'!$D$3=D47),COUNTIFS($E$5:E47,E47,$D$5:D47,D47),"") ->  | I47: 0 | J47: 0.14 | K47: 0 | L47: 0
B48: =IF(AND('فاتورة مبيعات'!$F$3=E48,'فاتورة مبيعات'!$D$3=D48),COUNTIFS($E$5:E48,E48,$D$5:D48,D48),"") ->  | I48: 0 | J48: 0.14 | K48: 0 | L48: 0
B49: =IF(AND('فاتورة مبيعات'!$F$3=E49,'فاتورة مبيعات'!$D$3=D49),COUNTIFS($E$5:E49,E49,$D$5:D49,D49),"") ->  | I49: 0 | J49: 0.14 | K49: 0 | L49: 0
B50: =IF(AND('فاتورة مبيعات'!$F$3=E50,'فاتورة مبيعات'!$D$3=D50),COUNTIFS($E$5:E50,E50,$D$5:D50,D50),"") ->  | I50: 0 | J50: 0.14 | K50: 0 | L50: 0
B51: =IF(AND('فاتورة مبيعات'!$F$3=E51,'فاتورة مبيعات'!$D$3=D51),COUNTIFS($E$5:E51,E51,$D$5:D51,D51),"") ->  | I51: 0 | J51: 0.14 | K51: 0 | L51: 0
B52: =IF(AND('فاتورة مبيعات'!$F$3=E52,'فاتورة مبيعات'!$D$3=D52),COUNTIFS($E$5:E52,E52,$D$5:D52,D52),"") ->  | I52: 0 | J52: 0.14 | K52: 0 | L52: 0
B53: =IF(AND('فاتورة مبيعات'!$F$3=E53,'فاتورة مبيعات'!$D$3=D53),COUNTIFS($E$5:E53,E53,$D$5:D53,D53),"") ->  | I53: 0 | J53: 0.14 | K53: 0 | L53: 0
B54: =IF(AND('فاتورة مبيعات'!$F$3=E54,'فاتورة مبيعات'!$D$3=D54),COUNTIFS($E$5:E54,E54,$D$5:D54,D54),"") ->  | I54: 0 | J54: 0.14 | K54: 0 | L54: 0
B55: =IF(AND('فاتورة مبيعات'!$F$3=E55,'فاتورة مبيعات'!$D$3=D55),COUNTIFS($E$5:E55,E55,$D$5:D55,D55),"") ->  | I55: 0 | J55: 0.14 | K55: 0 | L55: 0
B56: =IF(AND('فاتورة مبيعات'!$F$3=E56,'فاتورة مبيعات'!$D$3=D56),COUNTIFS($E$5:E56,E56,$D$5:D56,D56),"") ->  | I56: 0 | J56: 0.14 | K56: 0 | L56: 0
B57: =IF(AND('فاتورة مبيعات'!$F$3=E57,'فاتورة مبيعات'!$D$3=D57),COUNTIFS($E$5:E57,E57,$D$5:D57,D57),"") ->  | I57: 0 | J57: 0.14 | K57: 0 | L57: 0
B58: =IF(AND('فاتورة مبيعات'!$F$3=E58,'فاتورة مبيعات'!$D$3=D58),COUNTIFS($E$5:E58,E58,$D$5:D58,D58),"") ->  | I58: 0 | J58: 0.14 | K58: 0 | L58: 0
B59: =IF(AND('فاتورة مبيعات'!$F$3=E59,'فاتورة مبيعات'!$D$3=D59),COUNTIFS($E$5:E59,E59,$D$5:D59,D59),"") ->  | I59: 0 | J59: 0.14 | K59: 0 | L59: 0
B60: =IF(AND('فاتورة مبيعات'!$F$3=E60,'فاتورة مبيعات'!$D$3=D60),COUNTIFS($E$5:E60,E60,$D$5:D60,D60),"") ->  | I60: 0 | J60: 0.14 | K60: 0 | L60: 0
B61: =IF(AND('فاتورة مبيعات'!$F$3=E61,'فاتورة مبيعات'!$D$3=D61),COUNTIFS($E$5:E61,E61,$D$5:D61,D61),"") ->  | I61: 0 | J61: 0.14 | K61: 0 | L61: 0
B62: =IF(AND('فاتورة مبيعات'!$F$3=E62,'فاتورة مبيعات'!$D$3=D62),COUNTIFS($E$5:E62,E62,$D$5:D62,D62),"") ->  | I62: 0 | J62: 0.14 | K62: 0 | L62: 0
B63: =IF(AND('فاتورة مبيعات'!$F$3=E63,'فاتورة مبيعات'!$D$3=D63),COUNTIFS($E$5:E63,E63,$D$5:D63,D63),"") ->  | I63: 0 | J63: 0.14 | K63: 0 | L63: 0
B64: =IF(AND('فاتورة مبيعات'!$F$3=E64,'فاتورة مبيعات'!$D$3=D64),COUNTIFS($E$5:E64,E64,$D$5:D64,D64),"") ->  | I64: 0 | J64: 0.14 | K64: 0 | L64: 0
B65: =IF(AND('فاتورة مبيعات'!$F$3=E65,'فاتورة مبيعات'!$D$3=D65),COUNTIFS($E$5:E65,E65,$D$5:D65,D65),"") ->  | I65: 0 | J65: 0.14 | K65: 0 | L65: 0
B66: =IF(AND('فاتورة مبيعات'!$F$3=E66,'فاتورة مبيعات'!$D$3=D66),COUNTIFS($E$5:E66,E66,$D$5:D66,D66),"") ->  | I66: 0 | J66: 0.14 | K66: 0 | L66: 0
B67: =IF(AND('فاتورة مبيعات'!$F$3=E67,'فاتورة مبيعات'!$D$3=D67),COUNTIFS($E$5:E67,E67,$D$5:D67,D67),"") ->  | I67: 0 | J67: 0.14 | K67: 0 | L67: 0
B68: =IF(AND('فاتورة مبيعات'!$F$3=E68,'فاتورة مبيعات'!$D$3=D68),COUNTIFS($E$5:E68,E68,$D$5:D68,D68),"") ->  | I68: 0 | J68: 0.14 | K68: 0 | L68: 0
B69: =IF(AND('فاتورة مبيعات'!$F$3=E69,'فاتورة مبيعات'!$D$3=D69),COUNTIFS($E$5:E69,E69,$D$5:D69,D69),"") ->  | I69: =H69*G69 -> 0 | J69: 0.14 | K69: =I69*J69 -> 0 | L69: 0
B70: =IF(AND('فاتورة مبيعات'!$F$3=E70,'فاتورة مبيعات'!$D$3=D70),COUNTIFS($E$5:E70,E70,$D$5:D70,D70),"") ->  | I70: 0 | J70: 0.14 | K70: 0 | L70: 0
B71: =IF(AND('فاتورة مبيعات'!$F$3=E71,'فاتورة مبيعات'!$D$3=D71),COUNTIFS($E$5:E71,E71,$D$5:D71,D71),"") ->  | I71: 0 | J71: 0.14 | K71: 0 | L71: 0
B72: =IF(AND('فاتورة مبيعات'!$F$3=E72,'فاتورة مبيعات'!$D$3=D72),COUNTIFS($E$5:E72,E72,$D$5:D72,D72),"") ->  | I72: 0 | J72: 0.14 | K72: 0 | L72: =I72+K72 -> 0
B73: =IF(AND('فاتورة مبيعات'!$F$3=E73,'فاتورة مبيعات'!$D$3=D73),COUNTIFS($E$5:E73,E73,$D$5:D73,D73),"") ->  | I73: 0 | J73: 0.14 | K73: 0 | L73: 0
B74: =IF(AND('فاتورة مبيعات'!$F$3=E74,'فاتورة مبيعات'!$D$3=D74),COUNTIFS($E$5:E74,E74,$D$5:D74,D74),"") ->  | I74: 0 | J74: 0.14 | K74: 0 | L74: 0
B75: =IF(AND('فاتورة مبيعات'!$F$3=E75,'فاتورة مبيعات'!$D$3=D75),COUNTIFS($E$5:E75,E75,$D$5:D75,D75),"") ->  | I75: 0 | J75: 0.14 | K75: 0 | L75: 0
B76: =IF(AND('فاتورة مبيعات'!$F$3=E76,'فاتورة مبيعات'!$D$3=D76),COUNTIFS($E$5:E76,E76,$D$5:D76,D76),"") ->  | I76: 0 | J76: 0.14 | K76: 0 | L76: 0
B77: =IF(AND('فاتورة مبيعات'!$F$3=E77,'فاتورة مبيعات'!$D$3=D77),COUNTIFS($E$5:E77,E77,$D$5:D77,D77),"") ->  | I77: 0 | J77: 0.14 | K77: 0 | L77: 0
B78: =IF(AND('فاتورة مبيعات'!$F$3=E78,'فاتورة مبيعات'!$D$3=D78),COUNTIFS($E$5:E78,E78,$D$5:D78,D78),"") ->  | I78: 0 | J78: 0.14 | K78: 0 | L78: 0
B79: =IF(AND('فاتورة مبيعات'!$F$3=E79,'فاتورة مبيعات'!$D$3=D79),COUNTIFS($E$5:E79,E79,$D$5:D79,D79),"") ->  | I79: 0 | J79: 0.14 | K79: 0 | L79: 0
B80: =IF(AND('فاتورة مبيعات'!$F$3=E80,'فاتورة مبيعات'!$D$3=D80),COUNTIFS($E$5:E80,E80,$D$5:D80,D80),"") ->  | I80: 0 | J80: 0.14 | K80: 0 | L80: 0
B81: =IF(AND('فاتورة مبيعات'!$F$3=E81,'فاتورة مبيعات'!$D$3=D81),COUNTIFS($E$5:E81,E81,$D$5:D81,D81),"") ->  | I81: 0 | J81: 0.14 | K81: 0 | L81: 0
B82: =IF(AND('فاتورة مبيعات'!$F$3=E82,'فاتورة مبيعات'!$D$3=D82),COUNTIFS($E$5:E82,E82,$D$5:D82,D82),"") ->  | I82: 0 | J82: 0.14 | K82: 0 | L82: 0
B83: =IF(AND('فاتورة مبيعات'!$F$3=E83,'فاتورة مبيعات'!$D$3=D83),COUNTIFS($E$5:E83,E83,$D$5:D83,D83),"") ->  | I83: 0 | J83: 0.14 | K83: 0 | L83: 0
B84: =IF(AND('فاتورة مبيعات'!$F$3=E84,'فاتورة مبيعات'!$D$3=D84),COUNTIFS($E$5:E84,E84,$D$5:D84,D84),"") ->  | I84: 0 | J84: 0.14 | K84: 0 | L84: 0
B85: =IF(AND('فاتورة مبيعات'!$F$3=E85,'فاتورة مبيعات'!$D$3=D85),COUNTIFS($E$5:E85,E85,$D$5:D85,D85),"") ->  | I85: 0 | J85: 0.14 | K85: 0 | L85: 0
B86: =IF(AND('فاتورة مبيعات'!$F$3=E86,'فاتورة مبيعات'!$D$3=D86),COUNTIFS($E$5:E86,E86,$D$5:D86,D86),"") ->  | I86: 0 | J86: 0.14 | K86: 0 | L86: 0
B87: =IF(AND('فاتورة مبيعات'!$F$3=E87,'فاتورة مبيعات'!$D$3=D87),COUNTIFS($E$5:E87,E87,$D$5:D87,D87),"") ->  | I87: 0 | J87: 0.14 | K87: 0 | L87: 0
B88: =IF(AND('فاتورة مبيعات'!$F$3=E88,'فاتورة مبيعات'!$D$3=D88),COUNTIFS($E$5:E88,E88,$D$5:D88,D88),"") ->  | I88: 0 | J88: 0.14 | K88: 0 | L88: 0
B89: =IF(AND('فاتورة مبيعات'!$F$3=E89,'فاتورة مبيعات'!$D$3=D89),COUNTIFS($E$5:E89,E89,$D$5:D89,D89),"") ->  | I89: 0 | J89: 0.14 | K89: 0 | L89: 0
B90: =IF(AND('فاتورة مبيعات'!$F$3=E90,'فاتورة مبيعات'!$D$3=D90),COUNTIFS($E$5:E90,E90,$D$5:D90,D90),"") ->  | I90: 0 | J90: 0.14 | K90: 0 | L90: 0
B91: =IF(AND('فاتورة مبيعات'!$F$3=E91,'فاتورة مبيعات'!$D$3=D91),COUNTIFS($E$5:E91,E91,$D$5:D91,D91),"") ->  | I91: 0 | J91: 0.14 | K91: 0 | L91: 0
B92: =IF(AND('فاتورة مبيعات'!$F$3=E92,'فاتورة مبيعات'!$D$3=D92),COUNTIFS($E$5:E92,E92,$D$5:D92,D92),"") ->  | I92: 0 | J92: 0.14 | K92: 0 | L92: 0
B93: =IF(AND('فاتورة مبيعات'!$F$3=E93,'فاتورة مبيعات'!$D$3=D93),COUNTIFS($E$5:E93,E93,$D$5:D93,D93),"") ->  | I93: 0 | J93: 0.14 | K93: 0 | L93: 0
B94: =IF(AND('فاتورة مبيعات'!$F$3=E94,'فاتورة مبيعات'!$D$3=D94),COUNTIFS($E$5:E94,E94,$D$5:D94,D94),"") ->  | I94: 0 | J94: 0.14 | K94: 0 | L94: 0
B95: =IF(AND('فاتورة مبيعات'!$F$3=E95,'فاتورة مبيعات'!$D$3=D95),COUNTIFS($E$5:E95,E95,$D$5:D95,D95),"") ->  | I95: 0 | J95: 0.14 | K95: 0 | L95: 0
B96: =IF(AND('فاتورة مبيعات'!$F$3=E96,'فاتورة مبيعات'!$D$3=D96),COUNTIFS($E$5:E96,E96,$D$5:D96,D96),"") ->  | I96: 0 | J96: 0.14 | K96: 0 | L96: 0
B97: =IF(AND('فاتورة مبيعات'!$F$3=E97,'فاتورة مبيعات'!$D$3=D97),COUNTIFS($E$5:E97,E97,$D$5:D97,D97),"") -> 
C98: الاجماليات | G98: =SUM(G5:G96) -> 22 | H98: =SUM(H5:H96) -> 205 | I98: =SUM(I5:I96) -> 2250 | K98: =SUM(K5:K96) -> 315 | L98: =SUM(L5:L96) -> 2565
C100: الاجماليات | G100: =SUBTOTAL(9,G5:G97) -> 22 | H100: =SUBTOTAL(9,H5:H97) -> 205 | I100: =SUBTOTAL(9,I5:I97) -> 2250 | K100: =SUBTOTAL(9,K5:K97) -> 315 | L100: =SUBTOTAL(9,L5:L97) -> 2565

Sheet فاتورة مبيعات
B3: =IFERROR(INDEX($K$7:$K$18,SUMPRODUCT(($L$7:$L$18<>"")*ROW($1:$12))),"") -> 2 | C3: رقم الفاتورة | D3: 273 | F3: =IF(B3="","",VLOOKUP(B3,K7:M18,3,0)) -> 2019-02-15 | G3: اسم العميل | H3: =IF(B3="","",VLOOKUP(B3,K7:N18,4,0)) -> تتتتت
B5: مسلسل | C5: التاريخ | D5: كمية | E5: سعر | F5: قيمة | I5: الاجمالى
B7: 1 | C7: =IFERROR(VLOOKUP(B7,INDIRECT($B$3&"!"&"b5:L123"),4,0),"") -> 2019-02-15 | D7: =IFERROR(VLOOKUP(B7,INDIRECT($B$3&"!"&"b5:L123"),6,0),"") -> 12 | E7: =IFERROR(VLOOKUP(B7,INDIRECT($B$3&"!"&"b5:L123"),7,0),"") -> 100 | F7: =IF(E7="","",D7*E7) -> 1200 | G7: =IFERROR(VLOOKUP(B7,INDIRECT($B$3&"!"&"b5:L123"),9,0),"") -> 0.14 | H7: =IFERROR(VLOOKUP(B7,INDIRECT($B$3&"!"&"b5:L123"),10,0),"") -> 168 | I7: =IFERROR(VLOOKUP(B7,INDIRECT($B$3&"!"&"b5:L123"),11,0),"") -> 1368 | K7: 1 | L7: =IFERROR(MATCH($D$3,INDIRECT($K7&"!$D:$D"),0),"") ->  | M7: =IFERROR(VLOOKUP($D$3,'1'!D:L,2,0),"") ->  | N7: =IFERROR(VLOOKUP($D$3,'1'!D:L,3,0),"") -> 
B8: 2 | C8: =IFERROR(VLOOKUP(B8,INDIRECT($B$3&"!"&"b5:L123"),4,0),"") -> 2019-02-15 | D8: =IFERROR(VLOOKUP(B8,INDIRECT($B$3&"!"&"b5:L123"),6,0),"") -> 10 | E8: =IFERROR(VLOOKUP(B8,INDIRECT($B$3&"!"&"b5:L123"),7,0),"") -> 105 | F8: =IF(E8="","",D8*E8) -> 1050 | G8: =IFERROR(VLOOKUP(B8,INDIRECT($B$3&"!"&"b5:L123"),9,0),"") -> 0.14 | H8: =IFERROR(VLOOKUP(B8,INDIRECT($B$3&"!"&"b5:L123"),10,0),"") -> 147 | I8: =IFERROR(VLOOKUP(B8,INDIRECT($B$3&"!"&"b5:L123"),11,0),"") -> 1197 | K8: 2 | L8: =IFERROR(MATCH($D$3,INDIRECT($K8&"!$D:$D"),0),"") -> 5 | M8: =IFERROR(VLOOKUP($D$3,'2'!D:L,2,0),"") -> 43511 | N8: =IFERROR(VLOOKUP($D$3,'2'!D:L,3,0),"") -> تتتتت
B9: 3 | C9: 2019-02-15 | D9: 4 | E9: 5 | F9: 20 | G9: 0.14 | H9: 2.8 | I9: 22.8 | K9: 3 | M9: =IFERROR(VLOOKUP($D$3,'3'!D:L,2,0),"") ->  | N9: =IFERROR(VLOOKUP($D$3,'3'!D:L,3,0),"") -> 
B10: 4 | C10: 2019-02-15 | D10: 5 | E10: 6 | F10: 30 | G10: 0.14 | H10: 4.2 | I10: 34.2 | K10: 4 | M10: =IFERROR(VLOOKUP($D$3,'4'!D:L,2,0),"") ->  | N10: =IFERROR(VLOOKUP($D$3,'4'!D:L,3,0),"") -> 
B11: 5 | C11: 2019-02-15 | D11: 6 | E11: 7 | F11: 42 | G11: 0.14 | H11: 5.88 | I11: 47.88 | K11: 5 | M11: =IFERROR(VLOOKUP($D$3,'5'!D:L,2,0),"") ->  | N11: =IFERROR(VLOOKUP($D$3,'5'!D:L,3,0),"") -> 
B12: 6 | C12: 2019-02-15 | D12: 7 | E12: 8 | F12: 56 | G12: 0.14 | H12: 7.84 | I12: 63.84 | K12: 6 | M12: =IFERROR(VLOOKUP($D$3,'6'!D:L,2,0),"") ->  | N12: =IFERROR(VLOOKUP($D$3,'6'!D:L,3,0),"") -> 
B13: 7 | C13: 2019-02-15 | D13: 8 | E13: 9 | F13: 72 | G13: 0.14 | H13: 10.08 | I13: 82.08 | K13: 7 | M13: =IFERROR(VLOOKUP($D$3,'7'!D:L,2,0),"") ->  | N13: =IFERROR(VLOOKUP($D$3,'7'!D:L,3,0),"") -> 
B14: 8 | C14: 2019-02-15 | D14: 9 | E14: 10 | F14: 90 | G14: 0.14 | H14: 12.6 | I14: 102.6 | K14: 8 | M14: =IFERROR(VLOOKUP($D$3,'8'!D:L,2,0),"") ->  | N14: =IFERROR(VLOOKUP($D$3,'8'!D:L,3,0),"") -> 
B15: 9 | C15: 2019-02-15 | D15: 10 | E15: 11 | F15: 110 | G15: 0.14 | H15: 15.4 | I15: 125.4 | K15: 9 | M15: =IFERROR(VLOOKUP($D$3,'9'!D:L,2,0),"") ->  | N15: =IFERROR(VLOOKUP($D$3,'9'!D:L,3,0),"") -> 
B16: 10 | C16: 2019-02-15 | D16: 11 | E16: 12 | F16: 132 | G16: 0.14 | H16: 18.48 | I16: 150.48 | K16: 10 | M16: =IFERROR(VLOOKUP($D$3,'10'!D:L,2,0),"") ->  | N16: =IFERROR(VLOOKUP($D$3,'10'!D:L,3,0),"") -> 
B17: 11 | C17: 2019-02-15 | D17: 12 | E17: 13 | F17: 156 | G17: 0.14 | H17: 21.84 | I17: 177.84 | K17: 11 | M17: =IFERROR(VLOOKUP($D$3,'11'!D:L,2,0),"") ->  | N17: =IFERROR(VLOOKUP($D$3,'11'!D:L,3,0),"") -> 
B18: 12 | K18: 12 | M18: =IFERROR(VLOOKUP($D$3,'12'!D:L,2,0),"") ->  | N18: =IFERROR(VLOOKUP($D$3,'12'!D:L,3,0),"") -> 
B19: 13
B20: 14
B21: 15
B22: 16 | H22: =IFERROR(VLOOKUP(B22,INDIRECT($B$3&"!"&"b5:L123"),10,0),"") -> 
B23: الاجمالي | G23: =SUM(G7:G22) -> 1.54 | H23: =SUM(H7:H22) -> 414.12 | I23: =SUM(I7:I22) -> 3372.12
